Workbook

Sheet Main
B10: 2019-08-14
B12: Sheet No. | C12: Template Name | D12: Summary
B13: 1 | C13: Future Intra | D13: For Intraday trading in F&O segment
B14: 2 | C14: Cash Intra | D14: For Intraday trading in cash market segment
B15: 3 | C15: Mid-cap Intra | D15: For Intraday trading in Mid-cap stocks
B16: 4 | C16: Bulk Deals | D16: Reveals Bulk Deals carried on NSE & BSE
B17: 5 | C17: Call Tracker
K27: `

Sheet Future Intra
M5: Back to Main Page
A6: FOR INTRA DAY TRADING | L6: =Main!B10 -> 2019-08-14
A9: Sr.no | B9: Sector | C9: Scrip | D9: CLOSE RATE | E9: Pivot Point | F9: Supports | I9: Resistances
B10: Sector | D10: Point | E10: Point | F10: S1 | G10: S2 | H10: S3 | I10: R1 | J10: R2 | K10: R3 | L10: HIGH | M10: LOW | N10: OI | O10: % Change in OI
A11: 1 | B11: Index | C11: BANKNIFTY | D11: 27737.80 | E11: 27970.10 | F11: 27450.20 | G11: 27162.60 | H11: 26642.70 | I11: 28257.70 | J11: 28777.60 | K11: 29065.20 | L11: 28490 | M11: 27682.5 | N11: 1759560 | O11: 6.44%
A12: 2 | B12: Index | C12: NIFTY | D12: 10925.15 | E12: 10993.40 | F12: 10841.75 | G12: 10758.35 | H12: 10606.70 | I12: 11076.80 | J12: 11228.45 | K12: 11311.85 | L12: 11145.05 | M12: 10910 | N12: 20029500 | O12: -0.58%
A13: 3 | B13: Index | C13: NIFTYIT | D13: 15422.00 | E13: 15540.67 | F13: 15276.33 | G13: 15130.67 | H13: 14866.33 | I13: 15686.33 | J13: 15950.67 | K13: 16096.33 | L13: 15805 | M13: 15395 | N13: 13000 | O13: 11.11%
A14: 4 | B14: Cement | C14: ACC | D14: 1547.60 | E14: 1559.28 | F14: 1529.47 | G14: 1511.33 | H14: 1481.52 | I14: 1577.42 | J14: 1607.23 | K14: 1625.37 | L14: 1589.1 | M14: 1541.15 | N14: 1995200 | O14: -5.58%
A15: 5 | B15: Others | C15: ADANIENT | D15: 130.05 | E15: 130.82 | F15: 127.48 | G15: 124.92 | H15: 121.58 | I15: 133.38 | J15: 136.72 | K15: 139.28 | L15: 134.15 | M15: 128.25 | N15: 28176000 | O15: -0.56%
A16: 6 | B16: Others | C16: ADANIPORTS | D16: 361.70 | E16: 366.82 | F16: 355.43 | G16: 349.17 | H16: 337.78 | I16: 373.08 | J16: 384.47 | K16: 390.73 | L16: 378.2 | M16: 360.55 | N16: 13930000 | O16: 1.79%
A17: 7 | B17: Power | C17: ADANIPOWER | D17: 58.55 | E17: 59.43 | F17: 57.37 | G17: 56.18 | H17: 54.12 | I17: 60.62 | J17: 62.68 | K17: 63.87 | L17: 61.5 | M17: 58.25 | N17: 111060000 | O17: -1.21%
A18: 8 | B18: Automobile | C18: AMARAJABAT | D18: 626.70 | E18: 631.17 | F18: 614.53 | G18: 602.37 | H18: 585.73 | I18: 643.33 | J18: 659.97 | K18: 672.13 | L18: 647.8 | M18: 619 | N18: 1348200 | O18: -8.55%
A19: 9 | B19: Cement | C19: AMBUJACEM | D19: 208.20 | E19: 209.60 | F19: 205.60 | G19: 203.00 | H19: 199.00 | I19: 212.20 | J19: 216.20 | K19: 218.80 | L19: 213.6 | M19: 207 | N19: 18500000 | O19: -1.61%
A20: 10 | B20: Others | C20: APOLLOHOSP | D20: 1320.70 | E20: 1331.12 | F20: 1292.23 | G20: 1263.77 | H20: 1224.88 | I20: 1359.58 | J20: 1398.47 | K20: 1426.93 | L20: 1370 | M20: 1302.65 | N20: 1034000 | O20: -2.54%
A21: 11 | B21: Automobile | C21: APOLLOTYRE | D21: 157.85 | E21: 159.72 | F21: 155.13 | G21: 152.42 | H21: 147.83 | I21: 162.43 | J21: 167.02 | K21: 169.73 | L21: 164.3 | M21: 157 | N21: 7536000 | O21: 2.11%
A22: 12 | B22: Textile | C22: ARVIND | D22: 50.55 | E22: 51.82 | F22: 48.18 | G22: 45.82 | H22: 42.18 | I22: 54.18 | J22: 57.82 | K22: 60.18 | L22: 55.45 | M22: 49.45 | N22: 6924000 | O22: -4.86%
A23: 13 | B23: Automobile | C23: ASHOKLEY | D23: 61.65 | E23: 62.62 | F23: 60.33 | G23: 59.02 | H23: 56.73 | I23: 63.93 | J23: 66.22 | K23: 67.53 | L23: 64.9 | M23: 61.3 | N23: 91398000 | O23: -0.35%
A24: 14 | B24: FMCG | C24: ASIANPAINT | D24: 1572.75 | E24: 1579.22 | F24: 1562.53 | G24: 1552.32 | H24: 1535.63 | I24: 1589.43 | J24: 1606.12 | K24: 1616.33 | L24: 1595.9 | M24: 1569 | N24: 6977400 | O24: -4.01%
A25: 15 | B25: Pharma | C25: AUROPHARMA | D25: 604.65 | E25: 605.65 | F25: 591.40 | G25: 578.15 | H25: 563.90 | I25: 618.90 | J25: 633.15 | K25: 646.40 | L25: 619.9 | M25: 592.4 | N25: 16728000 | O25: 5.24%
A26: 16 | B26: Banking | C26: AXISBANK | D26: 650.15 | E26: 655.90 | F26: 641.10 | G26: 632.05 | H26: 617.25 | I26: 664.95 | J26: 679.75 | K26: 688.80 | L26: 670.7 | M26: 646.85 | N26: 51745200 | O26: -1.28%
A27: 17 | B27: Automobile | C27: BAJAJ-AUTO | D27: 2672.50 | E27: 2688.83 | F27: 2633.67 | G27: 2594.83 | H27: 2539.67 | I27: 2727.67 | J27: 2782.83 | K27: 2821.67 | L27: 2744 | M27: 2650 | N27: 2264250 | O27: -1.33%
A28: 18 | B28: Finance | C28: BAJAJFINSV | D28: 7082.45 | E28: 7232.68 | F28: 6906.37 | G28: 6730.28 | H28: 6403.97 | I28: 7408.77 | J28: 7735.08 | K28: 7911.17 | L28: 7559 | M28: 7056.6 | N28: 857125 | O28: -5.04%
A29: 19 | B29: Finance | C29: BAJFINANCE | D29: 3228.65 | E29: 3292.13 | F29: 3154.27 | G29: 3079.88 | H29: 2942.02 | I29: 3366.52 | J29: 3504.38 | K29: 3578.77 | L29: 3430 | M29: 3217.75 | N29: 6583250 | O29: 1.69%
A30: 20 | B30: Automobile | C30: BALKRISIND | D30: 738.40 | E30: 740.58 | F30: 725.17 | G30: 711.93 | H30: 696.52 | I30: 753.82 | J30: 769.23 | K30: 782.47 | L30: 756 | M30: 727.35 | N30: 2432800 | O30: -2.16%
A31: 21 | B31: Banking | C31: BANKBARODA | D31: 98.15 | E31: 99.45 | F31: 96.00 | G31: 93.85 | H31: 90.40 | I31: 101.60 | J31: 105.05 | K31: 107.20 | L31: 102.9 | M31: 97.3 | N31: 63985500 | O31: 1.29%
A32: 22 | B32: Banking | C32: BANKINDIA | D32: 66.55 | E32: 67.38 | F32: 65.17 | G32: 63.78 | H32: 61.57 | I32: 68.77 | J32: 70.98 | K32: 72.37 | L32: 69.6 | M32: 66 | N32: 30528000 | O32: 0.14%
A33: 23 | B33: FMCG | C33: BATAINDIA | D33: 1433.05 | E33: 1438.52 | F33: 1417.53 | G33: 1402.02 | H33: 1381.03 | I33: 1454.03 | J33: 1475.02 | K33: 1490.53 | L33: 1459.5 | M33: 1423 | N33: 2607000 | O33: -5.52%
A34: 24 | B34: Capital_Goods | C34: BEL | D34: 92.40 | E34: 93.67 | F34: 90.43 | G34: 88.47 | H34: 85.23 | I34: 95.63 | J34: 98.87 | K34: 100.83 | L34: 96.9 | M34: 91.7 | N34: 34710000 | O34: -3.55%
A35: 25 | B35: FMCG | C35: BERGEPAINT | D35: 362.35 | E35: 361.27 | F35: 358.03 | G35: 353.72 | H35: 350.48 | I35: 365.58 | J35: 368.82 | K35: 373.13 | L35: 364.5 | M35: 356.95 | N35: 3161400 | O35: 7.24%
A36: 26 | B36: Automobile | C36: BHARATFORG | D36: 399.70 | E36: 408.58 | F36: 387.62 | G36: 375.53 | H36: 354.57 | I36: 420.67 | J36: 441.63 | K36: 453.72 | L36: 429.55 | M36: 396.5 | N36: 8019600 | O36: 2.74%
A37: 27 | B37: Telecom | C37: BHARTIARTL | D37: 352.75 | E37: 355.22 | F37: 344.93 | G37: 337.12 | H37: 326.83 | I37: 363.03 | J37: 373.32 | K37: 381.13 | L37: 365.5 | M37: 347.4 | N37: 32657193 | O37: -5.77%
A38: 28 | B38: Capital_Goods | C38: BHEL | D38: 50.50 | E38: 52.47 | F38: 48.23 | G38: 45.97 | H38: 41.73 | I38: 54.73 | J38: 58.97 | K38: 61.23 | L38: 56.7 | M38: 50.2 | N38: 49845000 | O38: -0.46%
A39: 29 | B39: Pharma | C39: BIOCON | D39: 224.30 | E39: 226.68 | F39: 221.02 | G39: 217.73 | H39: 212.07 | I39: 229.97 | J39: 235.63 | K39: 238.92 | L39: 232.35 | M39: 223.4 | N39: 11946600 | O39: 1.73%
A40: 30 | B40: Automobile | C40: BOSCHLTD | D40: 13429.05 | E40: 13671.57 | F40: 13017.48 | G40: 12605.92 | H40: 11951.83 | I40: 14083.13 | J40: 14737.22 | K40: 15148.78 | L40: 14325.65 | M40: 13260 | N40: 172800 | O40: 3.04%
A41: 31 | B41: Oil_Gas | C41: BPCL | D41: 335.25 | E41: 340.13 | F41: 329.52 | G41: 323.78 | H41: 313.17 | I41: 345.87 | J41: 356.48 | K41: 362.22 | L41: 350.75 | M41: 334.4 | N41: 12072600 | O41: -2.49%
A42: 32 | B42: FMCG | C42: BRITANNIA | D42: 2485.10 | E42: 2498.83 | F42: 2449.67 | G42: 2414.23 | H42: 2365.07 | I42: 2534.27 | J42: 2583.43 | K42: 2618.87 | L42: 2548 | M42: 2463.4 | N42: 2402400 | O42: -1.44%
A43: 33 | B43: Technology | C43: CADILAHC | D43: 219.60 | E43: 223.25 | F43: 214.50 | G43: 209.40 | H43: 200.65 | I43: 228.35 | J43: 237.10 | K43: 242.20 | L43: 232 | M43: 218.15 | N43: 13252800 | O43: 0.69%
A44: 34 | B44: Pharma | C44: CANBK | D44: 221.30 | E44: 224.73 | F44: 217.07 | G44: 212.83 | H44: 205.17 | I44: 228.97 | J44: 236.63 | K44: 240.87 | L44: 232.4 | M44: 220.5 | N44: 10258000 | O44: 2.19%
A45: 35 | B45: Banking | C45: CASTROLIND | D45: 115.60 | E45: 116.83 | F45: 114.02 | G45: 112.43 | H45: 109.62 | I45: 118.42 | J45: 121.23 | K45: 122.82 | L45: 119.65 | M45: 115.25 | N45: 7633000 | O45: 0.63%
A46: 36 | B46: Oil_Gas | C46: CENTURYTEX | D46: 878.90 | E46: 886.25 | F46: 866.65 | G46: 854.40 | H46: 834.80 | I46: 898.50 | J46: 918.10 | K46: 930.35 | L46: 905.85 | M46: 874 | N46: 3417000 | O46: -1.35%
A47: 37 | B47: Textile | C47: CESC | D47: 741.45 | E47: 748.38 | F47: 730.77 | G47: 720.08 | H47: 702.47 | I47: 759.07 | J47: 776.68 | K47: 787.37 | L47: 766 | M47: 737.7 | N47: 778400 | O47: -9.66%
A48: 38 | B48: Power | C48: CHOLAFIN | D48: 262.75 | E48: 266.25 | F48: 257.85 | G48: 252.95 | H48: 244.55 | I48: 271.15 | J48: 279.55 | K48: 284.45 | L48: 274.65 | M48: 261.35 | N48: 3797500 | O48: -8.38%
A49: 39 | B49: Finance | C49: CIPLA | D49: 476.55 | E49: 479.38 | F49: 471.62 | G49: 466.68 | H49: 458.92 | I49: 484.32 | J49: 492.08 | K49: 497.02 | L49: 487.15 | M49: 474.45 | N49: 11068000 | O49: 0.18%
A50: 40 | B50: Pharma | C50: COALINDIA | D50: 204.30 | E50: 206.37 | F50: 201.13 | G50: 197.97 | H50: 192.73 | I50: 209.53 | J50: 214.77 | K50: 217.93 | L50: 211.6 | M50: 203.2 | N50: 31204800 | O50: -3.99%
A51: 41 | B51: Others | C51: COLPAL | D51: 1211.10 | E51: 1218.33 | F51: 1199.37 | G51: 1187.63 | H51: 1168.67 | I51: 1230.07 | J51: 1249.03 | K51: 1260.77 | L51: 1237.3 | M51: 1206.6 | N51: 1725500 | O51: -1.60%
A52: 42 | B52: FMCG | C52: CONCOR | D52: 465.70 | E52: 469.38 | F52: 459.77 | G52: 453.83 | H52: 444.22 | I52: 475.32 | J52: 484.93 | K52: 490.87 | L52: 479 | M52: 463.45 | N52: 2680545 | O52: 2.27%
A53: 43 | B53: Others | C53: CUMMINSIND | D53: 586.10 | E53: 590.38 | F53: 580.12 | G53: 574.13 | H53: 563.87 | I53: 596.37 | J53: 606.63 | K53: 612.62 | L53: 600.65 | M53: 584.4 | N53: 2373700 | O53: 0.77%
A54: 44 | B54: Capital_Goods | C54: DABUR | D54: 430.50 | E54: 433.12 | F54: 426.38 | G54: 422.27 | H54: 415.53 | I54: 437.23 | J54: 443.97 | K54: 448.08 | L54: 439.85 | M54: 429 | N54: 12867500 | O54: 0.21%
A55: 45 | B55: FMCG | C55: DHFL | D55: 37.75 | E55: 40.55 | F55: 34.60 | G55: 31.45 | H55: 25.50 | I55: 43.70 | J55: 49.65 | K55: 52.80 | L55: 46.5 | M55: 37.4 | N55: 22432000 | O55: 8.28%
A56: 46 | B56: Finance | C56: DISHTV | D56: 22.70 | E56: 22.55 | F56: 21.60 | G56: 20.50 | H56: 19.55 | I56: 23.65 | J56: 24.60 | K56: 25.70 | L56: 23.5 | M56: 21.45 | N56: 103712000 | O56: -1.79%
A57: 47 | B57: Media | C57: DIVISLAB | D57: 1506.60 | E57: 1537.93 | F57: 1466.62 | G57: 1426.63 | H57: 1355.32 | I57: 1577.92 | J57: 1649.23 | K57: 1689.22 | L57: 1609.25 | M57: 1497.95 | N57: 2813600 | O57: -0.23%
A58: 48 | B58: Pharma | C58: DLF | D58: 173.65 | E58: 175.02 | F58: 171.03 | G58: 168.42 | H58: 164.43 | I58: 177.63 | J58: 181.62 | K58: 184.23 | L58: 179 | M58: 172.4 | N58: 37864400 | O58: -1.42%
A59: 49 | B59: Realty | C59: DRREDDY | D59: 2554.75 | E59: 2568.18 | F59: 2530.62 | G59: 2506.48 | H59: 2468.92 | I59: 2592.32 | J59: 2629.88 | K59: 2654.02 | L59: 2605.75 | M59: 2544.05 | N59: 3396000 | O59: 1.00%
A60: 50 | B60: Pharma | C60: EICHERMOT | D60: 16569.00 | E60: 16876.25 | F60: 16192.65 | G60: 15816.30 | H60: 15132.70 | I60: 17252.60 | J60: 17936.20 | K60: 18312.55 | L60: 17559.85 | M60: 16499.9 | N60: 463200 | O60: 5.24%
A61: 51 | B61: Automobile | C61: ENGINERSIN | D61: 102.85 | E61: 102.22 | F61: 100.18 | G61: 97.52 | H61: 95.48 | I61: 104.88 | J61: 106.92 | K61: 109.58 | L61: 104.25 | M61: 99.55 | N61: 7631400 | O61: -4.87%
A62: 52 | B62: Infrastructure | C62: EQUITAS | D62: 108.25 | E62: 108.62 | F62: 106.43 | G62: 104.62 | H62: 102.43 | I62: 110.43 | J62: 112.62 | K62: 114.43 | L62: 110.8 | M62: 106.8 | N62: 11968000 | O62: -5.35%
A63: 53 | B63: Finance | C63: ESCORTS | D63: 462.35 | E63: 470.50 | F63: 452.75 | G63: 443.15 | H63: 425.40 | I63: 480.10 | J63: 497.85 | K63: 507.45 | L63: 488.25 | M63: 460.9 | N63: 5310800 | O63: 1.30%
A64: 54 | B64: Automobile | C64: EXIDEIND | D64: 177.15 | E64: 178.55 | F64: 174.30 | G64: 171.45 | H64: 167.20 | I64: 181.40 | J64: 185.65 | K64: 188.50 | L64: 182.8 | M64: 175.7 | N64: 9028800 | O64: -4.81%
A65: 55 | B65: Automobile | C65: FEDERALBNK | D65: 83.50 | E65: 84.95 | F65: 81.70 | G65: 79.90 | H65: 76.65 | I65: 86.75 | J65: 90.00 | K65: 91.80 | L65: 88.2 | M65: 83.15 | N65: 45962000 | O65: 2.83%
A66: 56 | B66: Banking | C66: GAIL | D66: 126.35 | E66: 126.57 | F66: 123.83 | G66: 121.32 | H66: 118.58 | I66: 129.08 | J66: 131.82 | K66: 134.33 | L66: 129.3 | M66: 124.05 | N66: 41642538 | O66: -3.66%
A67: 57 | B67: Oil_Gas | C67: GLENMARK | D67: 416.45 | E67: 420.83 | F67: 409.07 | G67: 401.68 | H67: 389.92 | I67: 428.22 | J67: 439.98 | K67: 447.37 | L67: 432.6 | M67: 413.45 | N67: 5053000 | O67: 2.91%
A68: 58 | B68: Pharma | C68: GMRINFRA | D68: 15.00 | E68: 15.12 | F68: 14.78 | G68: 14.57 | H68: 14.23 | I68: 15.33 | J68: 15.67 | K68: 15.88 | L68: 15.45 | M68: 14.9 | N68: 143820000 | O68: 2.08%
A69: 59 | B69: Infrastructure | C69: GODREJCP | D69: 644.00 | E69: 645.48 | F69: 634.42 | G69: 624.83 | H69: 613.77 | I69: 655.07 | J69: 666.13 | K69: 675.72 | L69: 656.55 | M69: 635.9 | N69: 5232000 | O69: -2.58%
A70: 60 | B70: FMCG | C70: GRASIM | D70: 711.95 | E70: 723.57 | F70: 696.38 | G70: 680.82 | H70: 653.63 | I70: 739.13 | J70: 766.32 | K70: 781.88 | L70: 750.75 | M70: 708 | N70: 15089250 | O70: 0.70%
A71: 61 | B71: Cement | C71: HAVELLS | D71: 647.80 | E71: 653.15 | F71: 639.45 | G71: 631.10 | H71: 617.40 | I71: 661.50 | J71: 675.20 | K71: 683.55 | L71: 666.85 | M71: 644.8 | N71: 6719000 | O71: -3.11%
A72: 62 | B72: Others | C72: HCLTECH | D72: 1072.95 | E72: 1077.07 | F72: 1064.83 | G72: 1056.72 | H72: 1044.48 | I72: 1085.18 | J72: 1097.42 | K72: 1105.53 | L72: 1089.3 | M72: 1068.95 | N72: 9276400 | O72: -2.34%
A73: 63 | B73: Technology | C73: HDFC | D73: 2105.75 | E73: 2139.87 | F73: 2065.18 | G73: 2024.62 | H73: 1949.93 | I73: 2180.43 | J73: 2255.12 | K73: 2295.68 | L73: 2214.55 | M73: 2099.3 | N73: 30283000 | O73: -0.56%
A74: 64 | B74: Finance | C74: HDFCBANK | D74: 2218.70 | E74: 2233.03 | F74: 2188.97 | G74: 2159.23 | H74: 2115.17 | I74: 2262.77 | J74: 2306.83 | K74: 2336.57 | L74: 2277.1 | M74: 2203.3 | N74: 19025000 | O74: 0.63%
A75: 65 | B75: Banking | C75: HEROMOTOCO | D75: 2569.35 | E75: 2588.60 | F75: 2527.20 | G75: 2485.05 | H75: 2423.65 | I75: 2630.75 | J75: 2692.15 | K75: 2734.30 | L75: 2650 | M75: 2546.45 | N75: 2380400 | O75: -2.46%
A76: 66 | B76: Automobile | C76: HEXAWARE | D76: 373.85 | E76: 370.95 | F76: 362.90 | G76: 351.95 | H76: 343.90 | I76: 381.90 | J76: 389.95 | K76: 400.90 | L76: 379 | M76: 360 | N76: 2373000 | O76: -7.76%
A77: 67 | B77: Technology | C77: HINDALCO | D77: 174.80 | E77: 175.48 | F77: 171.57 | G77: 168.33 | H77: 164.42 | I77: 178.72 | J77: 182.63 | K77: 185.87 | L77: 179.4 | M77: 172.25 | N77: 33596500 | O77: -5.20%
A78: 68 | B78: Metals | C78: HINDPETRO | D78: 241.10 | E78: 244.57 | F78: 236.38 | G78: 231.67 | H78: 223.48 | I78: 249.28 | J78: 257.47 | K78: 262.18 | L78: 252.75 | M78: 239.85 | N78: 17782800 | O78: -2.46%
A79: 69 | B79: Oil_Gas | C79: HINDUNILVR | D79: 1824.50 | E79: 1824.08 | F79: 1809.27 | G79: 1794.03 | H79: 1779.22 | I79: 1839.32 | J79: 1854.13 | K79: 1869.37 | L79: 1838.9 | M79: 1808.85 | N79: 10506900 | O79: -4.29%
A80: 70 | B80: FMCG | C80: HINDZINC | D80: 205.60 | E80: 207.63 | F80: 202.42 | G80: 199.23 | H80: 194.02 | I80: 210.82 | J80: 216.03 | K80: 219.22 | L80: 212.85 | M80: 204.45 | N80: 6505600 | O80: -1.02%
A81: 71 | B81: Metals | C81: IBULHSGFIN | D81: 534.85 | E81: 524.72 | F81: 491.83 | G81: 448.82 | H81: 415.93 | I81: 567.73 | J81: 600.62 | K81: 643.63 | L81: 557.6 | M81: 481.7 | N81: 22082400 | O81: 14.15%
A82: 72 | B82: Finance | C82: ICICIBANK | D82: 411.20 | E82: 414.35 | F82: 406.95 | G82: 402.70 | H82: 395.30 | I82: 418.60 | J82: 426.00 | K82: 430.25 | L82: 421.75 | M82: 410.1 | N82: 77072875 | O82: -1.74%
A83: 73 | B83: Banking | C83: ICICIPRULI | D83: 373.45 | E83: 379.57 | F83: 361.23 | G83: 349.02 | H83: 330.68 | I83: 391.78 | J83: 410.12 | K83: 422.33 | L83: 397.9 | M83: 367.35 | N83: 6922500 | O83: 2.58%
A84: 74 | B84: Finance | C84: IDBI | D84: 26.30 | E84: 26.53 | F84: 25.82 | G84: 25.33 | H84: 24.62 | I84: 27.02 | J84: 27.73 | K84: 28.22 | L84: 27.25 | M84: 26.05 | N84: 23592000 | O84: 0.51%
A85: 75 | B85: Banking | C85: IDEA | D85: 5.05 | E85: 5.10 | F85: 4.75 | G85: 4.45 | H85: 4.10 | I85: 5.40 | J85: 5.75 | K85: 6.05 | L85: 5.45 | M85: 4.8 | N85: 471772000 | O85: 1.18%
A86: 76 | B86: Telecom | C86: IDFCFIRSTB | D86: 42.50 | E86: 42.82 | F86: 41.83 | G86: 41.17 | H86: 40.18 | I86: 43.48 | J86: 44.47 | K86: 45.13 | L86: 43.8 | M86: 42.15 | N86: 153984000 | O86: 1.77%
A87: 77 | B87: Banking | C87: IGL | D87: 308.40 | E87: 308.98 | F87: 305.62 | G87: 302.83 | H87: 299.47 | I87: 311.77 | J87: 315.13 | K87: 317.92 | L87: 312.35 | M87: 306.2 | N87: 4463250 | O87: -11.50%
A88: 78 | B88: Oil_Gas | C88: INDIGO | D88: 1503.65 | E88: 1512.22 | F88: 1485.43 | G88: 1467.22 | H88: 1440.43 | I88: 1530.43 | J88: 1557.22 | K88: 1575.43 | L88: 1539 | M88: 1494 | N88: 2872200 | O88: -2.60%
A89: 79 | B89: Others | C89: INDUSINDBK | D89: 1372.80 | E89: 1382.27 | F89: 1343.93 | G89: 1315.07 | H89: 1276.73 | I89: 1411.13 | J89: 1449.47 | K89: 1478.33 | L89: 1420.6 | M89: 1353.4 | N89: 10582000 | O89: 3.29%
A90: 80 | B90: Banking | C90: INFRATEL | D90: 242.15 | E90: 243.73 | F90: 238.42 | G90: 234.68 | H90: 229.37 | I90: 247.47 | J90: 252.78 | K90: 256.52 | L90: 249.05 | M90: 240 | N90: 6808000 | O90: -1.05%
A91: 81 | B91: Telecom | C91: INFY | D91: 765.70 | E91: 771.43 | F91: 756.87 | G91: 748.03 | H91: 733.47 | I91: 780.27 | J91: 794.83 | K91: 803.67 | L91: 786 | M91: 762.6 | N91: 57699600 | O91: -0.54%
A92: 82 | B92: Technology | C92: IOC | D92: 125.15 | E92: 126.95 | F92: 122.50 | G92: 119.85 | H92: 115.40 | I92: 129.60 | J92: 134.05 | K92: 136.70 | L92: 131.4 | M92: 124.3 | N92: 58408000 | O92: 0.88%
A93: 83 | B93: Oil_Gas | C93: ITC | D93: 246.10 | E93: 248.38 | F93: 242.32 | G93: 238.53 | H93: 232.47 | I93: 252.17 | J93: 258.23 | K93: 262.02 | L93: 254.45 | M93: 244.6 | N93: 95083200 | O93: 5.29%
A94: 84 | B94: FMCG | C94: JINDALSTEL | D94: 95.00 | E94: 97.17 | F94: 92.03 | G94: 89.07 | H94: 83.93 | I94: 100.13 | J94: 105.27 | K94: 108.23 | L94: 102.3 | M94: 94.2 | N94: 36060800 | O94: 0.83%
A95: 85 | B95: Metals | C95: JSWSTEEL | D95: 220.05 | E95: 220.48 | F95: 216.52 | G95: 212.98 | H95: 209.02 | I95: 224.02 | J95: 227.98 | K95: 231.52 | L95: 224.45 | M95: 216.95 | N95: 48062000 | O95: 0.52%
A96: 86 | B96: Metals | C96: JUBLFOOD | D96: 1129.00 | E96: 1141.05 | F96: 1104.75 | G96: 1080.50 | H96: 1044.20 | I96: 1165.30 | J96: 1201.60 | K96: 1225.85 | L96: 1177.35 | M96: 1116.8 | N96: 2898000 | O96: 4.11%
A97: 87 | B97: Others | C97: JUSTDIAL | D97: 652.25 | E97: 662.32 | F97: 625.93 | G97: 599.62 | H97: 563.23 | I97: 688.63 | J97: 725.02 | K97: 751.33 | L97: 698.7 | M97: 636 | N97: 2819600 | O97: 16.15%
A98: 88 | B98: Others | C98: KAJARIACER | D98: 467.60 | E98: 470.20 | F98: 462.40 | G98: 457.20 | H98: 449.40 | I98: 475.40 | J98: 483.20 | K98: 488.40 | L98: 478 | M98: 465 | N98: 1541800 | O98: -3.26%
A99: 89 | B99: Others | C99: KOTAKBANK | D99: 1507.35 | E99: 1514.92 | F99: 1496.58 | G99: 1485.82 | H99: 1467.48 | I99: 1525.68 | J99: 1544.02 | K99: 1554.78 | L99: 1533.25 | M99: 1504.15 | N99: 8709200 | O99: 4.24%
A100: 90 | B100: Banking | C100: BSOFT | D100: 60.15 | E100: 60.82 | F100: 58.63 | G100: 57.12 | H100: 54.93 | I100: 62.33 | J100: 64.52 | K100: 66.03 | L100: 63 | M100: 59.3 | N100: 3253800 | O100: -6.86%
A101: 91 | B101: Finance | C101: L&TFH | D101: 100.80 | E101: 102.28 | F101: 98.87 | G101: 96.93 | H101: 93.52 | I101: 104.22 | J101: 107.63 | K101: 109.57 | L101: 105.7 | M101: 100.35 | N101: 32004000 | O101: 0.69%
A102: 92 | B102: Finance | C102: LICHSGFIN | D102: 477.00 | E102: 482.67 | F102: 469.43 | G102: 461.87 | H102: 448.63 | I102: 490.23 | J102: 503.47 | K102: 511.03 | L102: 495.9 | M102: 475.1 | N102: 8387500 | O102: 1.69%
A103: 93 | B103: Capital_Goods | C103: LT | D103: 1316.05 | E103: 1332.25 | F103: 1294.50 | G103: 1272.95 | H103: 1235.20 | I103: 1353.80 | J103: 1391.55 | K103: 1413.10 | L103: 1370 | M103: 1310.7 | N103: 13754625 | O103: 2.12%
A104: 94 | B104: Pharma | C104: LUPIN | D104: 748.35 | E104: 751.47 | F104: 741.48 | G104: 734.62 | H104: 724.63 | I104: 758.33 | J104: 768.32 | K104: 775.18 | L104: 761.45 | M104: 744.6 | N104: 8614900 | O104: 0.50%
A105: 95 | B105: Automobile | C105: M&M | D105: 513.85 | E105: 523.60 | F105: 502.35 | G105: 490.85 | H105: 469.60 | I105: 535.10 | J105: 556.35 | K105: 567.85 | L105: 544.85 | M105: 512.1 | N105: 23209000 | O105: 2.00%
A106: 96 | B106: Finance | C106: M&MFIN | D106: 297.90 | E106: 304.00 | F106: 289.15 | G106: 280.40 | H106: 265.55 | I106: 312.75 | J106: 327.60 | K106: 336.35 | L106: 318.85 | M106: 295.25 | N106: 14328750 | O106: -2.04%
A107: 97 | B107: Finance | C107: MANAPPURAM | D107: 115.50 | E107: 118.43 | F107: 111.92 | G107: 108.33 | H107: 101.82 | I107: 122.02 | J107: 128.53 | K107: 132.12 | L107: 124.95 | M107: 114.85 | N107: 11256000 | O107: -3.40%
A108: 98 | B108: FMCG | C108: MARICO | D108: 392.40 | E108: 392.97 | F108: 389.73 | G108: 387.07 | H108: 383.83 | I108: 395.63 | J108: 398.87 | K108: 401.53 | L108: 396.2 | M108: 390.3 | N108: 11203400 | O108: -3.64%
A109: 99 | B109: Automobile | C109: MARUTI | D109: 5730.10 | E109: 5822.77 | F109: 5620.73 | G109: 5511.37 | H109: 5309.33 | I109: 5932.13 | J109: 6134.17 | K109: 6243.53 | L109: 6024.8 | M109: 5713.4 | N109: 3294225 | O109: -1.40%
A110: 100 | B110: FMCG | C110: MCDOWELL-N | D110: 584.60 | E110: 592.18 | F110: 572.67 | G110: 560.73 | H110: 541.22 | I110: 604.12 | J110: 623.63 | K110: 635.57 | L110: 611.7 | M110: 580.25 | N110: 10513750 | O110: 1.37%
A111: 101 | B111: Others | C111: MCX | D111: 823.45 | E111: 831.63 | F111: 811.87 | G111: 800.28 | H111: 780.52 | I111: 843.22 | J111: 862.98 | K111: 874.57 | L111: 851.4 | M111: 820.05 | N111: 1477000 | O111: -1.95%
A112: 102 | B112: Finance | C112: MFSL | D112: 394.45 | E112: 397.47 | F112: 389.48 | G112: 384.52 | H112: 376.53 | I112: 402.43 | J112: 410.42 | K112: 415.38 | L112: 405.45 | M112: 392.5 | N112: 2892000 | O112: -4.71%
A113: 103 | B113: Oil_Gas | C113: MGL | D113: 769.60 | E113: 780.05 | F113: 756.50 | G113: 743.40 | H113: 719.85 | I113: 793.15 | J113: 816.70 | K113: 829.80 | L113: 803.6 | M113: 766.95 | N113: 1428600 | O113: -1.94%
A114: 104 | B114: Technology | C114: MINDTREE | D114: 700.60 | E114: 712.72 | F114: 683.93 | G114: 667.27 | H114: 638.48 | I114: 729.38 | J114: 758.17 | K114: 774.83 | L114: 741.5 | M114: 696.05 | N114: 2000400 | O114: 6.72%
A115: 105 | B115: Automobile | C115: MOTHERSUMI | D115: 97.25 | E115: 99.78 | F115: 93.57 | G115: 89.88 | H115: 83.67 | I115: 103.47 | J115: 109.68 | K115: 113.37 | L115: 106 | M115: 96.1 | N115: 33963600 | O115: -2.19%
A116: 106 | B116: Automobile | C116: MRF | D116: 56336.50 | E116: 56462.50 | F116: 55625.00 | G116: 54913.50 | H116: 54076.00 | I116: 57174.00 | J116: 58011.50 | K116: 58723.00 | L116: 57300 | M116: 55751 | N116: 28810 | O116: 7.50%
A117: 107 | B117: Finance | C117: MUTHOOTFIN | D117: 596.90 | E117: 610.82 | F117: 577.63 | G117: 558.37 | H117: 525.18 | I117: 630.08 | J117: 663.27 | K117: 682.53 | L117: 644 | M117: 591.55 | N117: 2319000 | O117: -3.56%
A118: 108 | B118: Metals | C118: NATIONALUM | D118: 42.75 | E118: 42.85 | F118: 42.15 | G118: 41.55 | H118: 40.85 | I118: 43.45 | J118: 44.15 | K118: 44.75 | L118: 43.55 | M118: 42.25 | N118: 34750000 | O118: -3.23%
A119: 109 | B119: Infrastructure | C119: NBCC | D119: 34.35 | E119: 34.78 | F119: 33.47 | G119: 32.58 | H119: 31.27 | I119: 35.67 | J119: 36.98 | K119: 37.87 | L119: 36.1 | M119: 33.9 | N119: 46299500 | O119: -3.35%
A120: 110 | B120: Infrastructure | C120: NCC | D120: 64.05 | E120: 66.22 | F120: 61.53 | G120: 59.02 | H120: 54.33 | I120: 68.73 | J120: 73.42 | K120: 75.93 | L120: 70.9 | M120: 63.7 | N120: 37360000 | O120: 2.26%
A121: 111 | B121: FMCG | C121: NESTLEIND | D121: 11924.15 | E121: 11998.65 | F121: 11797.45 | G121: 11670.75 | H121: 11469.55 | I121: 12125.35 | J121: 12326.55 | K121: 12453.25 | L121: 12199.85 | M121: 11871.95 | N121: 376950 | O121: 2.45%
A122: 112 | B122: Technology | C122: NIITTECH | D122: 1280.05 | E122: 1283.47 | F122: 1263.43 | G122: 1246.82 | H122: 1226.78 | I122: 1300.08 | J122: 1320.12 | K122: 1336.73 | L122: 1303.5 | M122: 1266.85 | N122: 1164000 | O122: 10.31%
A123: 113 | B123: Metals | C123: NMDC | D123: 101.00 | E123: 102.10 | F123: 99.20 | G123: 97.40 | H123: 94.50 | I123: 103.90 | J123: 106.80 | K123: 108.60 | L123: 105 | M123: 100.3 | N123: 26718000 | O123: -1.81%
A124: 114 | B124: Power | C124: NTPC | D124: 117.05 | E124: 118.30 | F124: 113.90 | G124: 110.75 | H124: 106.35 | I124: 121.45 | J124: 125.85 | K124: 129.00 | L124: 122.7 | M124: 115.15 | N124: 71841600 | O124: -1.40%
A125: 115 | B125: Technology | C125: OFSS | D125: 3059.45 | E125: 3093.08 | F125: 3006.42 | G125: 2953.38 | H125: 2866.72 | I125: 3146.12 | J125: 3232.78 | K125: 3285.82 | L125: 3179.75 | M125: 3040.05 | N125: 204300 | O125: -5.35%
A126: 116 | B126: Oil_Gas | C126: OIL | D126: 148.45 | E126: 150.28 | F126: 145.37 | G126: 142.28 | H126: 137.37 | I126: 153.37 | J126: 158.28 | K126: 161.37 | L126: 155.2 | M126: 147.2 | N126: 7154895 | O126: -1.36%
A127: 117 | B127: Oil_Gas | C127: ONGC | D127: 127.20 | E127: 128.40 | F127: 124.10 | G127: 121.00 | H127: 116.70 | I127: 131.50 | J127: 135.80 | K127: 138.90 | L127: 132.7 | M127: 125.3 | N127: 56107500 | O127: -2.89%
A128: 118 | B128: Textile | C128: PAGEIND | D128: 17864.05 | E128: 17920.97 | F128: 17291.98 | G128: 16719.92 | H128: 16090.93 | I128: 18493.03 | J128: 19122.02 | K128: 19694.08 | L128: 18549.95 | M128: 17348.9 | N128: 222375 | O128: -0.99%
A129: 119 | B129: Pharma | C129: PEL | D129: 1726.35 | E129: 1749.68 | F129: 1691.37 | G129: 1656.38 | H129: 1598.07 | I129: 1784.67 | J129: 1842.98 | K129: 1877.97 | L129: 1808 | M129: 1714.7 | N129: 3417734 | O129: 0.28%
A130: 120 | B130: Oil_Gas | C130: PETRONET | D130: 235.85 | E130: 235.77 | F130: 233.73 | G130: 231.62 | H130: 229.58 | I130: 237.88 | J130: 239.92 | K130: 242.03 | L130: 237.8 | M130: 233.65 | N130: 16974000 | O130: -0.79%
A131: 121 | B131: Finance | C131: PFC | D131: 103.90 | E131: 105.83 | F131: 101.32 | G131: 98.73 | H131: 94.22 | I131: 108.42 | J131: 112.93 | K131: 115.52 | L131: 110.35 | M131: 103.25 | N131: 39320400 | O131: 3.70%
A132: 122 | B132: FMCG | C132: PIDILITIND | D132: 1343.30 | E132: 1349.82 | F132: 1329.73 | G132: 1316.17 | H132: 1296.08 | I132: 1363.38 | J132: 1383.47 | K132: 1397.03 | L132: 1369.9 | M132: 1336.25 | N132: 2655500 | O132: -4.01%
A133: 123 | B133: Banking | C133: PNB | D133: 65.55 | E133: 66.22 | F133: 64.58 | G133: 63.62 | H133: 61.98 | I133: 67.18 | J133: 68.82 | K133: 69.78 | L133: 67.85 | M133: 65.25 | N133: 105378000 | O133: 1.54%
A134: 124 | B134: Power | C134: POWERGRID | D134: 199.85 | E134: 199.50 | F134: 195.55 | G134: 191.25 | H134: 187.30 | I134: 203.80 | J134: 207.75 | K134: 212.05 | L134: 203.45 | M134: 195.2 | N134: 28032000 | O134: -4.05%
A135: 125 | B135: Media | C135: PVR | D135: 1404.20 | E135: 1397.77 | F135: 1347.53 | G135: 1290.87 | H135: 1240.63 | I135: 1454.43 | J135: 1504.67 | K135: 1561.33 | L135: 1448 | M135: 1341.1 | N135: 1020800 | O135: 2.37%
A136: 126 | B136: Cement | C136: RAMCOCEM | D136: 728.70 | E136: 737.90 | F136: 717.45 | G136: 706.20 | H136: 685.75 | I136: 749.15 | J136: 769.60 | K136: 780.85 | L136: 758.35 | M136: 726.65 | N136: 1372800 | O136: 4.63%
A137: 127 | B137: Textile | C137: RAYMOND | D137: 615.25 | E137: 620.82 | F137: 602.68 | G137: 590.12 | H137: 571.98 | I137: 633.38 | J137: 651.52 | K137: 664.08 | L137: 638.95 | M137: 608.25 | N137: 2141600 | O137: 1.86%
A138: 128 | B138: Banking | C138: RBLBANK | D138: 370.85 | E138: 375.90 | F138: 362.15 | G138: 353.45 | H138: 339.70 | I138: 384.60 | J138: 398.35 | K138: 407.05 | L138: 389.65 | M138: 367.2 | N138: 11542800 | O138: -6.81%
A139: 129 | B139: Power | C139: RECLTD | D139: 140.45 | E139: 141.88 | F139: 137.82 | G139: 135.18 | H139: 131.12 | I139: 144.52 | J139: 148.58 | K139: 151.22 | L139: 145.95 | M139: 139.25 | N139: 26400000 | O139: 0.18%
A140: 130 | B140: Finance | C140: RELCAPITAL | D140: 43.10 | E140: 45.08 | F140: 39.87 | G140: 36.63 | H140: 31.42 | I140: 48.32 | J140: 53.53 | K140: 56.77 | L140: 50.3 | M140: 41.85 | N140: 14205000 | O140: 2.22%
A141: 131 | B141: Oil_Gas | C141: RELIANCE | D141: 1277.90 | E141: 1265.73 | F141: 1228.17 | G141: 1178.43 | H141: 1140.87 | I141: 1315.47 | J141: 1353.03 | K141: 1402.77 | L141: 1303.3 | M141: 1216 | N141: 48957000 | O141: 1.28%
A142: 132 | B142: Power | C142: RELINFRA | D142: 43.60 | E142: 44.65 | F142: 41.75 | G142: 39.90 | H142: 37.00 | I142: 46.50 | J142: 49.40 | K142: 51.25 | L142: 47.55 | M142: 42.8 | N142: 12008000 | O142: 0.77%
A143: 133 | B143: Metals | C143: SAIL | D143: 36.00 | E143: 36.72 | F143: 34.63 | G143: 33.27 | H143: 31.18 | I143: 38.08 | J143: 40.17 | K143: 41.53 | L143: 38.8 | M143: 35.35 | N143: 110892000 | O143: 2.87%
A144: 134 | B144: Banking | C144: SBIN | D144: 284.30 | E144: 286.85 | F144: 281.00 | G144: 277.70 | H144: 271.85 | I144: 290.15 | J144: 296.00 | K144: 299.30 | L144: 292.7 | M144: 283.55 | N144: 103776000 | O144: 3.69%
A145: 135 | B145: Cement | C145: SHREECEM | D145: 19652.15 | E145: 19712.45 | F145: 19318.25 | G145: 18984.35 | H145: 18590.15 | I145: 20046.35 | J145: 20440.55 | K145: 20774.45 | L145: 20106.65 | M145: 19378.55 | N145: 164600 | O145: 0.52%
A146: 136 | B146: Capital_Goods | C146: SIEMENS | D146: 1143.50 | E146: 1153.18 | F146: 1129.07 | G146: 1114.63 | H146: 1090.52 | I146: 1167.62 | J146: 1191.73 | K146: 1206.17 | L146: 1177.3 | M146: 1138.75 | N146: 1443750 | O146: -4.02%
A147: 137 | B147: Textile | C147: SRF | D147: 2841.05 | E147: 2851.05 | F147: 2801.10 | G147: 2761.15 | H147: 2711.20 | I147: 2891.00 | J147: 2940.95 | K147: 2980.90 | L147: 2901 | M147: 2811.1 | N147: 1075500 | O147: 0.91%
A148: 138 | B148: Finance | C148: SRTRANSFIN | D148: 985.45 | E148: 1004.25 | F148: 958.55 | G148: 931.65 | H148: 885.95 | I148: 1031.15 | J148: 1076.85 | K148: 1103.75 | L148: 1049.95 | M148: 977.35 | N148: 4280400 | O148: -3.96%
A149: 139 | B149: Pharma | C149: STAR | D149: 406.80 | E149: 407.38 | F149: 402.77 | G149: 398.73 | H149: 394.12 | I149: 411.42 | J149: 416.03 | K149: 420.07 | L149: 412 | M149: 403.35 | N149: 3210000 | O149: -3.88%
A150: 140 | B150: Pharma | C150: SUNPHARMA | D150: 435.60 | E150: 432.22 | F150: 423.13 | G150: 410.67 | H150: 401.58 | I150: 444.68 | J150: 453.77 | K150: 466.23 | L150: 441.3 | M150: 419.75 | N150: 51901300 | O150: 4.35%
A151: 141 | B151: Media | C151: SUNTV | D151: 420.05 | E151: 430.97 | F151: 407.73 | G151: 395.42 | H151: 372.18 | I151: 443.28 | J151: 466.52 | K151: 478.83 | L151: 454.2 | M151: 418.65 | N151: 5538000 | O151: 3.77%
A152: 142 | B152: Fertilisers | C152: TATACHEM | D152: 550.80 | E152: 555.08 | F152: 540.57 | G152: 530.33 | H152: 515.82 | I152: 565.32 | J152: 579.83 | K152: 590.07 | L152: 569.6 | M152: 544.85 | N152: 2358900 | O152: -5.34%
A153: 143 | B153: Technology | C153: TATAELXSI | D153: 611.60 | E153: 618.48 | F153: 600.92 | G153: 590.23 | H153: 572.67 | I153: 629.17 | J153: 646.73 | K153: 657.42 | L153: 636.05 | M153: 607.8 | N153: 2592600 | O153: 3.72%
A154: 144 | B154: FMCG | C154: TATAGLOBAL | D154: 264.00 | E154: 265.25 | F154: 261.35 | G154: 258.70 | H154: 254.80 | I154: 267.90 | J154: 271.80 | K154: 274.45 | L154: 269.15 | M154: 262.6 | N154: 7403400 | O154: 1.48%
A155: 145 | B155: Automobile | C155: TATAMOTORS | D155: 121.80 | E155: 123.22 | F155: 119.63 | G155: 117.47 | H155: 113.88 | I155: 125.38 | J155: 128.97 | K155: 131.13 | L155: 126.8 | M155: 121.05 | N155: 72876000 | O155: -0.82%
A156: 146 | B156: Automobile | C156: TATAMTRDVR | D156: 57.75 | E156: 58.60 | F156: 56.60 | G156: 55.45 | H156: 53.45 | I156: 59.75 | J156: 61.75 | K156: 62.90 | L156: 60.6 | M156: 57.45 | N156: 32598000 | O156: 1.67%
A157: 147 | B157: Power | C157: TATAPOWER | D157: 55.85 | E157: 56.52 | F157: 54.93 | G157: 54.02 | H157: 52.43 | I157: 57.43 | J157: 59.02 | K157: 59.93 | L157: 58.1 | M157: 55.6 | N157: 59139000 | O157: 2.82%
A158: 148 | B158: Metals | C158: TATASTEEL | D158: 349.60 | E158: 354.98 | F158: 341.07 | G158: 332.53 | H158: 318.62 | I158: 363.52 | J158: 377.43 | K158: 385.97 | L158: 368.9 | M158: 346.45 | N158: 36634208 | O158: 8.52%
A159: 149 | B159: Technology | C159: TCS | D159: 2205.10 | E159: 2219.70 | F159: 2186.40 | G159: 2167.70 | H159: 2134.40 | I159: 2238.40 | J159: 2271.70 | K159: 2290.40 | L159: 2253 | M159: 2201 | N159: 15695750 | O159: -2.52%
A160: 150 | B160: Technology | C160: TECHM | D160: 640.55 | E160: 648.08 | F160: 630.77 | G160: 620.98 | H160: 603.67 | I160: 657.87 | J160: 675.18 | K160: 684.97 | L160: 665.4 | M160: 638.3 | N160: 14674800 | O160: 1.42%
A161: 151 | B161: FMCG | C161: TITAN | D161: 1063.05 | E161: 1069.48 | F161: 1051.77 | G161: 1040.48 | H161: 1022.77 | I161: 1080.77 | J161: 1098.48 | K161: 1109.77 | L161: 1087.2 | M161: 1058.2 | N161: 9225000 | O161: -9.96%
A162: 152 | B162: Pharma | C162: TORNTPHARM | D162: 1656.75 | E162: 1639.43 | F162: 1612.87 | G162: 1568.98 | H162: 1542.42 | I162: 1683.32 | J162: 1709.88 | K162: 1753.77 | L162: 1666 | M162: 1595.55 | N162: 558000 | O162: -0.80%
A163: 153 | B163: Power | C163: TORNTPOWER | D163: 286.00 | E163: 288.67 | F163: 280.33 | G163: 274.67 | H163: 266.33 | I163: 294.33 | J163: 302.67 | K163: 308.33 | L163: 297 | M163: 283 | N163: 4812000 | O163: 1.71%
A164: 154 | B164: Automobile | C164: TVSMOTOR | D164: 368.65 | E164: 373.75 | F164: 360.00 | G164: 351.35 | H164: 337.60 | I164: 382.40 | J164: 396.15 | K164: 404.80 | L164: 387.5 | M164: 365.1 | N164: 8092700 | O164: 2.35%
A165: 155 | B165: FMCG | C165: UBL | D165: 1362.30 | E165: 1362.75 | F165: 1352.55 | G165: 1342.80 | H165: 1332.60 | I165: 1372.50 | J165: 1382.70 | K165: 1392.45 | L165: 1372.95 | M165: 1353 | N165: 1359400 | O165: -2.46%
A166: 156 | B166: Finance | C166: UJJIVAN | D166: 284.90 | E166: 287.70 | F166: 280.95 | G166: 277.00 | H166: 270.25 | I166: 291.65 | J166: 298.40 | K166: 302.35 | L166: 294.45 | M166: 283.75 | N166: 7587200 | O166: -1.31%
A167: 157 | B167: Cement | C167: ULTRACEMCO | D167: 4183.00 | E167: 4214.78 | F167: 4135.57 | G167: 4088.13 | H167: 4008.92 | I167: 4262.22 | J167: 4341.43 | K167: 4388.87 | L167: 4294 | M167: 4167.35 | N167: 2642800 | O167: 2.63%
A168: 158 | B168: Banking | C168: UNIONBANK | D168: 62.95 | E168: 63.78 | F168: 61.92 | G168: 60.88 | H168: 59.02 | I168: 64.82 | J168: 66.68 | K168: 67.72 | L168: 65.65 | M168: 62.75 | N168: 31731000 | O168: 0.47%
A169: 159 | B169: Fertilisers | C169: UPL | D169: 505.15 | E169: 516.32 | F169: 488.78 | G169: 472.42 | H169: 444.88 | I169: 532.68 | J169: 560.22 | K169: 576.58 | L169: 543.85 | M169: 499.95 | N169: 16150500 | O169: 9.03%
A170: 160 | B170: Metals | C170: VEDL | D170: 139.75 | E170: 139.72 | F170: 136.58 | G170: 133.42 | H170: 130.28 | I170: 142.88 | J170: 146.02 | K170: 149.18 | L170: 142.85 | M170: 136.55 | N170: 63858000 | O170: -3.73%
A171: 161 | B171: Capital_Goods | C171: VOLTAS | D171: 585.95 | E171: 591.98 | F171: 574.47 | G171: 562.98 | H171: 545.47 | I171: 603.47 | J171: 620.98 | K171: 632.47 | L171: 609.5 | M171: 580.5 | N171: 4066000 | O171: -9.48%
A172: 162 | B172: Technology | C172: WIPRO | D172: 258.65 | E172: 260.25 | F172: 256.40 | G172: 254.15 | H172: 250.30 | I172: 262.50 | J172: 266.35 | K172: 268.60 | L172: 264.1 | M172: 258 | N172: 30220800 | O172: 1.21%
A173: 163 | B173: Banking | C173: YESBANK | D173: 72.40 | E173: 75.97 | F173: 67.53 | G173: 62.67 | H173: 54.23 | I173: 80.83 | J173: 89.27 | K173: 94.13 | L173: 84.4 | M173: 71.1 | N173: 179139400 | O173: 9.77%
A174: 164 | B174: Media | C174: ZEEL | D174: 327.45 | E174: 330.43 | F174: 322.47 | G174: 317.48 | H174: 309.52 | I174: 335.42 | J174: 343.38 | K174: 348.37 | L174: 338.4 | M174: 325.45 | N174: 20237100 | O174: 1.82%
A190: Pivot Point: This is trigger point for intra day buy/sell based on the price range of the previous day
A191: As per the tool,the trader should take BUY position just above Pivot and keep the stop loss of pivot point and the first target would be Resistance 1(R1)
A192: If R1 is crossed then R2 becomes the next target with stop loss of at R1
A193: Similarly if price goes below pivot point then the trader should sell and keep a stop loss of pivot point and the first target would be S1
A194: If S1 is crossed then S2 becomes the next target with stop loss of at S1
A196: Disclaimer:
A197: This document has been prepared by the Retail Research Desk of Asit C Mehta
A198: Investment Intermediates Ltd. and is meant for use of the recipient only
A199: and is not for circulation. This document is not to be reported or
A200: copied or made available to others. It should not be considered to be
A201: taken as an offer to sell or a solicitation to buy any security. The
A202: information contained herein is from sources believed reliable. We do
A203: not represent that it is accurate or complete and it should not be
A204: relied upon as such. We may from time to time have positions in and buy
A205: and sell securities referred to herein

Sheet Cash Intra
M5: Back to Main Page
A6: FOR INTRA DAY TRADING | K6: =Main!B10 -> 2019-08-14
A8: Sr.no | B8: Scrip | C8: CLOSE RATE | D8: Pivot Point | E8: Supports | H8: Resistances
C9: Point | E9: S1 | F9: S2 | G9: S3 | H9: R1 | I9: R2 | J9: R3 | K9: HIGH | L9: LOW | M9: Total Trade Quanity in Lakhs
A10: 1 | B10: Nifty 50 | C10: 10925.85 | D10: 10991.12 | E10: 10836.33 | F10: 10746.82 | G10: 10592.03 | H10: 11080.63 | I10: 11235.42 | J10: 11324.93 | K10: 11145.9 | L10: 10901.6
A11: 2 | B11: Nifty Bank | C11: 27729.1 | D11: 27923.82 | E11: 27488.78 | F11: 27248.47 | G11: 26813.43 | H11: 28164.13 | I11: 28599.17 | J11: 28839.48 | K11: 28358.85 | L11: 27683.5
A12: 3 | B12: Nifty CPSE | C12: 1883.3 | D12: 1901.40 | E12: 1854.70 | F12: 1826.10 | G12: 1779.40 | H12: 1930.00 | I12: 1976.70 | J12: 2005.30 | K12: 1948.1 | L12: 1872.8
A13: 4 | B13: Nifty Infra | C13: 2958.6 | D13: 2990.63 | E13: 2921.77 | F13: 2884.93 | G13: 2816.07 | H13: 3027.47 | I13: 3096.33 | J13: 3133.17 | K13: 3059.5 | L13: 2953.8
A14: 5 | B14: Nifty IT | C14: 15424.4 | D14: 15542.13 | E14: 15261.87 | F14: 15099.33 | G14: 14819.07 | H14: 15704.67 | I14: 15984.93 | J14: 16147.47 | K14: 15822.4 | L14: 15379.6
A15: 6 | B15: Nifty PSE | C15: 3045.2 | D15: 3065.18 | E15: 3012.87 | F15: 2980.53 | G15: 2928.22 | H15: 3097.52 | I15: 3149.83 | J15: 3182.17 | K15: 3117.5 | L15: 3032.85
A16: 7 | B16: Nifty Midcap 50 | C16: 4210.05 | D16: 4251.63 | E16: 4161.67 | F16: 4113.28 | G16: 4023.32 | H16: 4300.02 | I16: 4389.98 | J16: 4438.37 | K16: 4341.6 | L16: 4203.25
A17: 8 | B17: ABB | C17: 1379.1 | D17: 1386.03 | E17: 1365.07 | F17: 1351.03 | G17: 1330.07 | H17: 1400.07 | I17: 1421.03 | J17: 1435.07 | K17: 1407 | L17: 1372 | M17: 0.55372
A18: 9 | B18: ACC | C18: 1547.1 | D18: 1557.42 | E18: 1528.03 | F18: 1508.97 | G18: 1479.58 | H18: 1576.48 | I18: 1605.87 | J18: 1624.93 | K18: 1586.8 | L18: 1538.35 | M18: 4.19671
A19: 10 | B19: AUBANK | C19: 685.2 | D19: 687.22 | E19: 675.48 | F19: 665.77 | G19: 654.03 | H19: 696.93 | I19: 708.67 | J19: 718.38 | K19: 698.95 | L19: 677.5 | M19: 1.576
A20: 11 | B20: ADANIPORTS | C20: 360.55 | D20: 366.40 | E20: 353.25 | F20: 345.95 | G20: 332.80 | H20: 373.70 | I20: 386.85 | J20: 394.15 | K20: 379.55 | L20: 359.1 | M20: 25.76776
A21: 12 | B21: ADANIPOWER | C21: 58.5 | D21: 59.32 | E21: 57.33 | F21: 56.17 | G21: 54.18 | H21: 60.48 | I21: 62.47 | J21: 63.63 | K21: 61.3 | L21: 58.15 | M21: 79.97922
A22: 13 | B22: ABCAPITAL | C22: 86.35 | D22: 87.45 | E22: 84.60 | F22: 82.85 | G22: 80.00 | H22: 89.20 | I22: 92.05 | J22: 93.80 | K22: 90.3 | L22: 85.7 | M22: 10.23415
A23: 14 | B23: ABFRL | C23: 201.1 | D23: 203.35 | E23: 197.85 | F23: 194.60 | G23: 189.10 | H23: 206.60 | I23: 212.10 | J23: 215.35 | K23: 208.85 | L23: 200.1 | M23: 5.57661
A24: 15 | B24: AJANTPHARM | C24: 942.65 | D24: 953.27 | E24: 910.63 | F24: 878.62 | G24: 835.98 | H24: 985.28 | I24: 1027.92 | J24: 1059.93 | K24: 995.9 | L24: 921.25 | M24: 3.76688
A25: 16 | B25: ALKEM | C25: 1790.45 | D25: 1782.48 | E25: 1754.97 | F25: 1719.48 | G25: 1691.97 | H25: 1817.97 | I25: 1845.48 | J25: 1880.97 | K25: 1810 | L25: 1747 | M25: 0.26775
A26: 17 | B26: AMARAJABAT | C26: 627.1 | D26: 630.32 | E26: 614.33 | F26: 601.57 | G26: 585.58 | H26: 643.08 | I26: 659.07 | J26: 671.83 | K26: 646.3 | L26: 617.55 | M26: 7.50881
A27: 18 | B27: AMBUJACEM | C27: 208.4 | D27: 209.78 | E27: 205.82 | F27: 203.23 | G27: 199.27 | H27: 212.37 | I27: 216.33 | J27: 218.92 | K27: 213.75 | L27: 207.2 | M27: 51.25593
A28: 19 | B28: APOLLOHOSP | C28: 1322.5 | D28: 1334.98 | E28: 1299.42 | F28: 1276.33 | G28: 1240.77 | H28: 1358.07 | I28: 1393.63 | J28: 1416.72 | K28: 1370.55 | L28: 1311.9 | M28: 6.10748
A29: 20 | B29: APOLLOTYRE | C29: 158.7 | D29: 160.57 | E29: 156.13 | F29: 153.57 | G29: 149.13 | H29: 163.13 | I29: 167.57 | J29: 170.13 | K29: 165 | L29: 158 | M29: 30.38805
A30: 21 | B30: ASHOKLEY | C30: 61.55 | D30: 62.50 | E30: 60.35 | F30: 59.15 | G30: 57.00 | H30: 63.70 | I30: 65.85 | J30: 67.05 | K30: 64.65 | L30: 61.3 | M30: 229.99939
A31: 22 | B31: ASIANPAINT | C31: 1573.35 | D31: 1578.45 | E31: 1562.90 | F31: 1552.45 | G31: 1536.90 | H31: 1588.90 | I31: 1604.45 | J31: 1614.90 | K31: 1594 | L31: 1568 | M31: 16.12748
A32: 23 | B32: AUROPHARMA | C32: 602.8 | D32: 603.90 | E32: 590.20 | F32: 577.60 | G32: 563.90 | H32: 616.50 | I32: 630.20 | J32: 642.80 | K32: 617.6 | L32: 591.3 | M32: 44.94786
A33: 24 | B33: DMART | C33: 1460.9 | D33: 1465.72 | E33: 1447.18 | F33: 1433.47 | G33: 1414.93 | H33: 1479.43 | I33: 1497.97 | J33: 1511.68 | K33: 1484.25 | L33: 1452 | M33: 8.02879
A34: 25 | B34: AXISBANK | C34: 649.45 | D34: 654.38 | E34: 640.07 | F34: 630.68 | G34: 616.37 | H34: 663.77 | I34: 678.08 | J34: 687.47 | K34: 668.7 | L34: 645 | M34: 73.89394
A35: 26 | B35: BAJAJ-AUTO | C35: 2670.55 | D35: 2685.33 | E35: 2627.82 | F35: 2585.08 | G35: 2527.57 | H35: 2728.07 | I35: 2785.58 | J35: 2828.32 | K35: 2742.85 | L35: 2642.6 | M35: 7.06218
A36: 27 | B36: BAJFINANCE | C36: 3221.85 | D36: 3284.63 | E36: 3145.27 | F36: 3068.68 | G36: 2929.32 | H36: 3361.22 | I36: 3500.58 | J36: 3577.17 | K36: 3424 | L36: 3208.05 | M36: 19.00694
A37: 28 | B37: BAJAJFINSV | C37: 7089.15 | D37: 7233.40 | E37: 6921.80 | F37: 6754.45 | G37: 6442.85 | H37: 7400.75 | I37: 7712.35 | J37: 7879.70 | K37: 7545 | L37: 7066.05 | M37: 4.06528
A38: 29 | B38: BAJAJHLDNG | C38: 3365.05 | D38: 3389.58 | E38: 3325.47 | F38: 3285.88 | G38: 3221.77 | H38: 3429.17 | I38: 3493.28 | J38: 3532.87 | K38: 3453.7 | L38: 3350 | M38: 0.15054
A39: 30 | B39: BALKRISIND | C39: 749.35 | D39: 746.65 | E39: 731.40 | F39: 713.45 | G39: 698.20 | H39: 764.60 | I39: 779.85 | J39: 797.80 | K39: 761.9 | L39: 728.7 | M39: 10.84235
A40: 31 | B40: BANDHANBNK | C40: 494 | D40: 496.28 | E40: 486.87 | F40: 479.73 | G40: 470.32 | H40: 503.42 | I40: 512.83 | J40: 519.97 | K40: 505.7 | L40: 489.15 | M40: 3.15301
A41: 32 | B41: BANKBARODA | C41: 98.1 | D41: 99.20 | E41: 96.00 | F41: 93.90 | G41: 90.70 | H41: 101.30 | I41: 104.50 | J41: 106.60 | K41: 102.4 | L41: 97.1 | M41: 223.74374
A42: 33 | B42: BANKINDIA | C42: 66.7 | D42: 67.42 | E42: 65.38 | F42: 64.07 | G42: 62.03 | H42: 68.73 | I42: 70.77 | J42: 72.08 | K42: 69.45 | L42: 66.1 | M42: 58.75135
A43: 34 | B43: BATAINDIA | C43: 1432.8 | D43: 1436.98 | E43: 1415.97 | F43: 1399.13 | G43: 1378.12 | H43: 1453.82 | I43: 1474.83 | J43: 1491.67 | K43: 1458 | L43: 1420.15 | M43: 9.58382
A44: 35 | B44: BERGEPAINT | C44: 363.55 | D44: 361.47 | E44: 357.93 | F44: 352.32 | G44: 348.78 | H44: 367.08 | I44: 370.62 | J44: 376.23 | K44: 365 | L44: 355.85 | M44: 15.41929
A45: 36 | B45: BEL | C45: 94.25 | D45: 95.37 | E45: 92.28 | F45: 90.32 | G45: 87.23 | H45: 97.33 | I45: 100.42 | J45: 102.38 | K45: 98.45 | L45: 93.4 | M45: 74.3925
A46: 37 | B46: BHARATFORG | C46: 400.5 | D46: 409.72 | E46: 388.88 | F46: 377.27 | G46: 356.43 | H46: 421.33 | I46: 442.17 | J46: 453.78 | K46: 430.55 | L46: 398.1 | M46: 33.40232
A47: 38 | B47: BHEL | C47: 50.55 | D47: 52.48 | E47: 48.47 | F47: 46.38 | G47: 42.37 | H47: 54.57 | I47: 58.58 | J47: 60.67 | K47: 56.5 | L47: 50.4 | M47: 441.4772
A48: 39 | B48: BPCL | C48: 343.1 | D48: 347.65 | E48: 337.45 | F48: 331.80 | G48: 321.60 | H48: 353.30 | I48: 363.50 | J48: 369.15 | K48: 357.85 | L48: 342 | M48: 55.26502
A49: 40 | B49: BHARTIARTL | C49: 351.65 | D49: 354.27 | E49: 343.53 | F49: 335.42 | G49: 324.68 | H49: 362.38 | I49: 373.12 | J49: 381.23 | K49: 365 | L49: 346.15 | M49: 140.28958
A50: 41 | B50: INFRATEL | C50: 246.65 | D50: 247.97 | E50: 242.48 | F50: 238.32 | G50: 232.83 | H50: 252.13 | I50: 257.62 | J50: 261.78 | K50: 253.45 | L50: 243.8 | M50: 31.8722
A51: 42 | B51: BIOCON | C51: 224.05 | D51: 226.37 | E51: 220.48 | F51: 216.92 | G51: 211.03 | H51: 229.93 | I51: 235.82 | J51: 239.38 | K51: 232.25 | L51: 222.8 | M51: 21.19261
A52: 43 | B52: BBTC | C52: 783.2 | D52: 793.77 | E52: 763.43 | F52: 743.67 | G52: 713.33 | H52: 813.53 | I52: 843.87 | J52: 863.63 | K52: 824.1 | L52: 774 | M52: 0.59898
A53: 44 | B53: BOSCHLTD | C53: 13530.1 | D53: 13798.47 | E53: 13112.43 | F53: 12694.77 | G53: 12008.73 | H53: 14216.13 | I53: 14902.17 | J53: 15319.83 | K53: 14484.5 | L53: 13380.8 | M53: 0.32902
A54: 45 | B54: BRITANNIA | C54: 2511.9 | D54: 2522.63 | E54: 2480.27 | F54: 2448.63 | G54: 2406.27 | H54: 2554.27 | I54: 2596.63 | J54: 2628.27 | K54: 2565 | L54: 2491 | M54: 7.3108
A55: 46 | B55: CADILAHC | C55: 219.7 | D55: 223.83 | E55: 213.97 | F55: 208.23 | G55: 198.37 | H55: 229.57 | I55: 239.43 | J55: 245.17 | K55: 233.7 | L55: 218.1 | M55: 24.44453
A56: 47 | B56: CANBK | C56: 221.2 | D56: 224.37 | E56: 216.83 | F56: 212.47 | G56: 204.93 | H56: 228.73 | I56: 236.27 | J56: 240.63 | K56: 231.9 | L56: 220 | M56: 42.26823
A57: 48 | B57: CASTROLIND | C57: 115.15 | D57: 116.45 | E57: 113.50 | F57: 111.85 | G57: 108.90 | H57: 118.10 | I57: 121.05 | J57: 122.70 | K57: 119.4 | L57: 114.8 | M57: 7.76784
A58: 49 | B58: CHOLAFIN | C58: 261.75 | D58: 265.52 | E58: 256.43 | F58: 251.12 | G58: 242.03 | H58: 270.83 | I58: 279.92 | J58: 285.23 | K58: 274.6 | L58: 260.2 | M58: 7.38242
A59: 50 | B59: CIPLA | C59: 475.75 | D59: 478.57 | E59: 470.23 | F59: 464.72 | G59: 456.38 | H59: 484.08 | I59: 492.42 | J59: 497.93 | K59: 486.9 | L59: 473.05 | M59: 29.52687
A60: 51 | B60: COALINDIA | C60: 203.75 | D60: 205.90 | E60: 200.35 | F60: 196.95 | G60: 191.40 | H60: 209.30 | I60: 214.85 | J60: 218.25 | K60: 211.45 | L60: 202.5 | M60: 69.0737
A61: 52 | B61: COLPAL | C61: 1211.45 | D61: 1218.73 | E61: 1197.72 | F61: 1183.98 | G61: 1162.97 | H61: 1232.47 | I61: 1253.48 | J61: 1267.22 | K61: 1239.75 | L61: 1205 | M61: 4.52197
A62: 53 | B62: CONCOR | C62: 474.05 | D62: 477.53 | E62: 467.07 | F62: 460.08 | G62: 449.62 | H62: 484.52 | I62: 494.98 | J62: 501.97 | K62: 488 | L62: 470.55 | M62: 5.35974
A63: 54 | B63: COROMANDEL | C63: 353.7 | D63: 353.42 | E63: 346.13 | F63: 338.57 | G63: 331.28 | H63: 360.98 | I63: 368.27 | J63: 375.83 | K63: 360.7 | L63: 345.85 | M63: 1.24776
A64: 55 | B64: CROMPTON | C64: 227.05 | D64: 228.35 | E64: 225.30 | F64: 223.55 | G64: 220.50 | H64: 230.10 | I64: 233.15 | J64: 234.90 | K64: 231.4 | L64: 226.6 | M64: 10.20762
A65: 56 | B65: CUMMINSIND | C65: 591.3 | D65: 595.02 | E65: 585.38 | F65: 579.47 | G65: 569.83 | H65: 600.93 | I65: 610.57 | J65: 616.48 | K65: 604.65 | L65: 589.1 | M65: 5.6046
A66: 57 | B66: DLF | C66: 173.75 | D66: 175.02 | E66: 171.03 | F66: 168.32 | G66: 164.33 | H66: 177.73 | I66: 181.72 | J66: 184.43 | K66: 179 | L66: 172.3 | M66: 49.17578
A67: 58 | B67: DABUR | C67: 429.25 | D67: 431.58 | E67: 424.67 | F67: 420.08 | G67: 413.17 | H67: 436.17 | I67: 443.08 | J67: 447.67 | K67: 438.5 | L67: 427 | M67: 13.5743
A68: 59 | B68: DHFL | C68: 46.45 | D68: 47.45 | E68: 44.00 | F68: 41.55 | G68: 38.10 | H68: 49.90 | I68: 53.35 | J68: 55.80 | K68: 50.9 | L68: 45 | M68: 223.76401
A69: 60 | B69: DBL | C69: 397.15 | D69: 404.05 | E69: 388.10 | F69: 379.05 | G69: 363.10 | H69: 413.10 | I69: 429.05 | J69: 438.10 | K69: 420 | L69: 395 | M69: 1.72572
A70: 61 | B70: DISHTV | C70: 22.65 | D70: 22.48 | E70: 21.52 | F70: 20.38 | G70: 19.42 | H70: 23.62 | I70: 24.58 | J70: 25.72 | K70: 23.45 | L70: 21.35 | M70: 328.71639
A71: 62 | B71: DIVISLAB | C71: 1524.4 | D71: 1552.20 | E71: 1484.40 | F71: 1444.40 | G71: 1376.60 | H71: 1592.20 | I71: 1660.00 | J71: 1700.00 | K71: 1620 | L71: 1512.2 | M71: 26.9899
A72: 63 | B72: DRREDDY | C72: 2556.35 | D72: 2565.62 | E72: 2531.73 | F72: 2507.12 | G72: 2473.23 | H72: 2590.23 | I72: 2624.12 | J72: 2648.73 | K72: 2599.5 | L72: 2541 | M72: 3.74844
A73: 64 | B73: EDELWEISS | C73: 142.45 | D73: 142.65 | E73: 140.30 | F73: 138.15 | G73: 135.80 | H73: 144.80 | I73: 147.15 | J73: 149.30 | K73: 145 | L73: 140.5 | M73: 13.89752
A74: 65 | B74: EICHERMOT | C74: 16645 | D74: 16947.53 | E74: 16245.22 | F74: 15845.43 | G74: 15143.12 | H74: 17347.32 | I74: 18049.63 | J74: 18449.42 | K74: 17649.85 | L74: 16547.75 | M74: 1.47466
A75: 66 | B75: ENDURANCE | C75: 859.7 | D75: 849.93 | E75: 829.87 | F75: 800.03 | G75: 779.97 | H75: 879.77 | I75: 899.83 | J75: 929.67 | K75: 870 | L75: 820.1 | M75: 1.98807
A76: 67 | B76: ENGINERSIN | C76: 103.05 | D76: 102.17 | E76: 100.53 | F76: 98.02 | G76: 96.38 | H76: 104.68 | I76: 106.32 | J76: 108.83 | K76: 103.8 | L76: 99.65 | M76: 19.5276
A77: 68 | B77: ESCORTS | C77: 461.65 | D77: 470.02 | E77: 451.63 | F77: 441.62 | G77: 423.23 | H77: 480.03 | I77: 498.42 | J77: 508.43 | K77: 488.4 | L77: 460 | M77: 17.70023
A78: 69 | B78: EXIDEIND | C78: 177.6 | D78: 178.82 | E78: 174.88 | F78: 172.17 | G78: 168.23 | H78: 181.53 | I78: 185.47 | J78: 188.18 | K78: 182.75 | L78: 176.1 | M78: 11.34301
A79: 70 | B79: FEDERALBNK | C79: 83.3 | D79: 84.92 | E79: 81.38 | F79: 79.47 | G79: 75.93 | H79: 86.83 | I79: 90.37 | J79: 92.28 | K79: 88.45 | L79: 83 | M79: 132.48595
A80: 71 | B80: FCONSUMER | C80: 32.95 | D80: 32.40 | E80: 30.55 | F80: 28.15 | G80: 26.30 | H80: 34.80 | I80: 36.65 | J80: 39.05 | K80: 34.25 | L80: 30 | M80: 21.72931
A81: 72 | B81: FRETAIL | C81: 413.35 | D81: 420.90 | E81: 397.80 | F81: 382.25 | G81: 359.15 | H81: 436.45 | I81: 459.55 | J81: 475.10 | K81: 444 | L81: 405.35 | M81: 10.60031
A82: 73 | B82: GAIL | C82: 126 | D82: 126.38 | E82: 123.62 | F82: 121.23 | G82: 118.47 | H82: 128.77 | I82: 131.53 | J82: 133.92 | K82: 129.15 | L82: 124 | M82: 227.90395
A83: 74 | B83: GMRINFRA | C83: 14.95 | D83: 15.10 | E83: 14.75 | F83: 14.55 | G83: 14.20 | H83: 15.30 | I83: 15.65 | J83: 15.85 | K83: 15.45 | L83: 14.9 | M83: 81.05559
A84: 75 | B84: GICRE | C84: 191.05 | D84: 191.58 | E84: 187.52 | F84: 183.98 | G84: 179.92 | H84: 195.12 | I84: 199.18 | J84: 202.72 | K84: 195.65 | L84: 188.05 | M84: 0.38053
A85: 76 | B85: GSKCONS | C85: 7817.45 | D85: 7816.73 | E85: 7755.72 | F85: 7693.98 | G85: 7632.97 | H85: 7878.47 | I85: 7939.48 | J85: 8001.22 | K85: 7877.75 | L85: 7755 | M85: 0.07405
A86: 77 | B86: GLENMARK | C86: 415.6 | D86: 421.20 | E86: 406.40 | F86: 397.20 | G86: 382.40 | H86: 430.40 | I86: 445.20 | J86: 454.40 | K86: 436 | L86: 412 | M86: 16.49499
A87: 78 | B87: GODREJAGRO | C87: 460.55 | D87: 459.18 | E87: 451.37 | F87: 442.18 | G87: 434.37 | H87: 468.37 | I87: 476.18 | J87: 485.37 | K87: 467 | L87: 450 | M87: 0.27636
A88: 79 | B88: GODREJCP | C88: 645.1 | D88: 646.55 | E88: 634.00 | F88: 622.90 | G88: 610.35 | H88: 657.65 | I88: 670.20 | J88: 681.30 | K88: 659.1 | L88: 635.45 | M88: 20.6947
A89: 80 | B89: GODREJIND | C89: 454.85 | D89: 458.90 | E89: 440.20 | F89: 425.55 | G89: 406.85 | H89: 473.55 | I89: 492.25 | J89: 506.90 | K89: 477.6 | L89: 444.25 | M89: 1.07383
A90: 81 | B90: GRAPHITE | C90: 292 | D90: 292.47 | E90: 281.33 | F90: 270.67 | G90: 259.53 | H90: 303.13 | I90: 314.27 | J90: 324.93 | K90: 303.6 | L90: 281.8 | M90: 17.22028
A91: 82 | B91: GRASIM | C91: 709.65 | D91: 721.78 | E91: 693.57 | F91: 677.48 | G91: 649.27 | H91: 737.87 | I91: 766.08 | J91: 782.17 | K91: 750 | L91: 705.7 | M91: 13.5422
A92: 83 | B92: GRUH | C92: 257.7 | D92: 258.50 | E92: 254.00 | F92: 250.30 | G92: 245.80 | H92: 262.20 | I92: 266.70 | J92: 270.40 | K92: 263 | L92: 254.8 | M92: 7.54557
A93: 84 | B93: GSPL | C93: 216.95 | D93: 219.32 | E93: 212.63 | F93: 208.32 | G93: 201.63 | H93: 223.63 | I93: 230.32 | J93: 234.63 | K93: 226 | L93: 215 | M93: 5.8896
A94: 85 | B94: HEG | C94: 948.9 | D94: 959.97 | E94: 928.93 | F94: 908.97 | G94: 877.93 | H94: 979.93 | I94: 1010.97 | J94: 1030.93 | K94: 991 | L94: 940 | M94: 3.0595
A95: 86 | B95: HCLTECH | C95: 1072.5 | D95: 1077.25 | E95: 1062.60 | F95: 1052.70 | G95: 1038.05 | H95: 1087.15 | I95: 1101.80 | J95: 1111.70 | K95: 1091.9 | L95: 1067.35 | M95: 12.53805
A96: 87 | B96: HDFCAMC | C96: 2218.25 | D96: 2226.42 | E96: 2191.83 | F96: 2165.42 | G96: 2130.83 | H96: 2252.83 | I96: 2287.42 | J96: 2313.83 | K96: 2261 | L96: 2200 | M96: 2.31439
A97: 88 | B97: HDFCBANK | C97: 2220.35 | D97: 2232.08 | E97: 2190.87 | F97: 2161.38 | G97: 2120.17 | H97: 2261.57 | I97: 2302.78 | J97: 2332.27 | K97: 2273.3 | L97: 2202.6 | M97: 38.60017
A98: 89 | B98: HDFCLIFE | C98: 519.35 | D98: 524.12 | E98: 511.23 | F98: 503.12 | G98: 490.23 | H98: 532.23 | I98: 545.12 | J98: 553.23 | K98: 537 | L98: 516 | M98: 35.43626
A99: 90 | B99: HAVELLS | C99: 647.9 | D99: 652.63 | E99: 639.67 | F99: 631.43 | G99: 618.47 | H99: 660.87 | I99: 673.83 | J99: 682.07 | K99: 665.6 | L99: 644.4 | M99: 5.43712
A100: 91 | B100: HEROMOTOCO | C100: 2566.8 | D100: 2588.23 | E100: 2525.42 | F100: 2484.03 | G100: 2421.22 | H100: 2629.62 | I100: 2692.43 | J100: 2733.82 | K100: 2651.05 | L100: 2546.85 | M100: 11.79168
A101: 92 | B101: HEXAWARE | C101: 374.8 | D101: 372.13 | E101: 364.77 | F101: 354.73 | G101: 347.37 | H101: 382.17 | I101: 389.53 | J101: 399.57 | K101: 379.5 | L101: 362.1 | M101: 20.5512
A102: 93 | B102: HINDALCO | C102: 176.25 | D102: 176.52 | E102: 172.73 | F102: 169.22 | G102: 165.43 | H102: 180.03 | I102: 183.82 | J102: 187.33 | K102: 180.3 | L102: 173 | M102: 68.36149
A103: 94 | B103: HINDPETRO | C103: 240.7 | D103: 243.83 | E103: 235.97 | F103: 231.23 | G103: 223.37 | H103: 248.57 | I103: 256.43 | J103: 261.17 | K103: 251.7 | L103: 239.1 | M103: 30.75689
A104: 95 | B104: HINDUNILVR | C104: 1824.75 | D104: 1821.63 | E104: 1805.27 | F104: 1785.78 | G104: 1769.42 | H104: 1841.12 | I104: 1857.48 | J104: 1876.97 | K104: 1838 | L104: 1802.15 | M104: 19.07934
A105: 96 | B105: HINDZINC | C105: 205.25 | D105: 207.52 | E105: 202.03 | F105: 198.82 | G105: 193.33 | H105: 210.73 | I105: 216.22 | J105: 219.43 | K105: 213 | L105: 204.3 | M105: 10.88197
A106: 97 | B106: HUDCO | C106: 33.15 | D106: 33.28 | E106: 32.62 | F106: 32.08 | G106: 31.42 | H106: 33.82 | I106: 34.48 | J106: 35.02 | K106: 33.95 | L106: 32.75 | M106: 5.38826
A107: 98 | B107: HDFC | C107: 2100.1 | D107: 2134.07 | E107: 2058.48 | F107: 2016.87 | G107: 1941.28 | H107: 2175.68 | I107: 2251.27 | J107: 2292.88 | K107: 2209.65 | L107: 2092.45 | M107: 33.58448
A108: 99 | B108: ICICIBANK | C108: 410.25 | D108: 413.70 | E108: 405.70 | F108: 401.15 | G108: 393.15 | H108: 418.25 | I108: 426.25 | J108: 430.80 | K108: 421.7 | L108: 409.15 | M108: 183.89104
A109: 100 | B109: ICICIGI | C109: 1153.1 | D109: 1161.32 | E109: 1132.08 | F109: 1111.07 | G109: 1081.83 | H109: 1182.33 | I109: 1211.57 | J109: 1232.58 | K109: 1190.55 | L109: 1140.3 | M109: 3.41774
A110: 101 | B110: ICICIPRULI | C110: 375.1 | D110: 381.45 | E110: 363.65 | F110: 352.20 | G110: 334.40 | H110: 392.90 | I110: 410.70 | J110: 422.15 | K110: 399.25 | L110: 370 | M110: 16.06373
A111: 102 | B111: IDBI | C111: 26.75 | D111: 26.93 | E111: 26.42 | F111: 26.08 | G111: 25.57 | H111: 27.27 | I111: 27.78 | J111: 28.12 | K111: 27.45 | L111: 26.6 | M111: 35.63436
A112: 103 | B112: IDFCFIRSTB | C112: 43.15 | D112: 43.37 | E112: 42.38 | F112: 41.62 | G112: 40.63 | H112: 44.13 | I112: 45.12 | J112: 45.88 | K112: 44.35 | L112: 42.6 | M112: 113.14837
A113: 104 | B113: ITC | C113: 246.3 | D113: 248.10 | E113: 242.20 | F113: 238.10 | G113: 232.20 | H113: 252.20 | I113: 258.10 | J113: 262.20 | K113: 254 | L113: 244 | M113: 209.92894
A114: 105 | B114: IBULHSGFIN | C114: 573.1 | D114: 558.55 | E114: 519.55 | F114: 466.00 | G114: 427.00 | H114: 612.10 | I114: 651.10 | J114: 704.65 | K114: 597.55 | L114: 505 | M114: 335.70671
A115: 106 | B115: IBVENTURES | C115: 204.45 | D115: 206.43 | E115: 199.02 | F115: 193.58 | G115: 186.17 | H115: 211.87 | I115: 219.28 | J115: 224.72 | K115: 213.85 | L115: 201 | M115: 29.98271
A116: 107 | B116: INDIANB | C116: 185 | D116: 188.85 | E116: 180.15 | F116: 175.30 | G116: 166.60 | H116: 193.70 | I116: 202.40 | J116: 207.25 | K116: 197.55 | L116: 184 | M116: 6.26124
A117: 108 | B117: INDHOTEL | C117: 136.4 | D117: 136.93 | E117: 134.07 | F117: 131.73 | G117: 128.87 | H117: 139.27 | I117: 142.13 | J117: 144.47 | K117: 139.8 | L117: 134.6 | M117: 6.35596
A118: 109 | B118: IOC | C118: 125.9 | D118: 127.60 | E118: 123.35 | F118: 120.80 | G118: 116.55 | H118: 130.15 | I118: 134.40 | J118: 136.95 | K118: 131.85 | L118: 125.05 | M118: 125.46335
A119: 110 | B119: IGL | C119: 309.25 | D119: 310.32 | E119: 305.93 | F119: 302.62 | G119: 298.23 | H119: 313.63 | I119: 318.02 | J119: 321.33 | K119: 314.7 | L119: 307 | M119: 21.85527
A120: 111 | B120: INDUSINDBK | C120: 1373.45 | D120: 1380.93 | E120: 1344.72 | F120: 1315.98 | G120: 1279.77 | H120: 1409.67 | I120: 1445.88 | J120: 1474.62 | K120: 1417.15 | L120: 1352.2 | M120: 34.77027
A121: 112 | B121: NAUKRI | C121: 2177.6 | D121: 2180.77 | E121: 2139.53 | F121: 2101.47 | G121: 2060.23 | H121: 2218.83 | I121: 2260.07 | J121: 2298.13 | K121: 2222 | L121: 2142.7 | M121: 1.26107
A122: 113 | B122: INFY | C122: 764.75 | D122: 770.30 | E122: 754.60 | F122: 744.45 | G122: 728.75 | H122: 780.45 | I122: 796.15 | J122: 806.30 | K122: 786 | L122: 760.15 | M122: 75.17099
A123: 114 | B123: INDIGO | C123: 1507.15 | D123: 1514.98 | E123: 1490.17 | F123: 1473.18 | G123: 1448.37 | H123: 1531.97 | I123: 1556.78 | J123: 1573.77 | K123: 1539.8 | L123: 1498 | M123: 8.58858
A124: 115 | B124: JSWENERGY | C124: 67.9 | D124: 68.57 | E124: 66.73 | F124: 65.57 | G124: 63.73 | H124: 69.73 | I124: 71.57 | J124: 72.73 | K124: 70.4 | L124: 67.4 | M124: 2.95655
A125: 116 | B125: JSWSTEEL | C125: 220.15 | D125: 220.35 | E125: 216.25 | F125: 212.35 | G125: 208.25 | H125: 224.25 | I125: 228.35 | J125: 232.25 | K125: 224.45 | L125: 216.45 | M125: 66.28569
A126: 117 | B126: JINDALSTEL | C126: 94.8 | D126: 96.98 | E126: 91.82 | F126: 88.83 | G126: 83.67 | H126: 99.97 | I126: 105.13 | J126: 108.12 | K126: 102.15 | L126: 94 | M126: 263.8251
A127: 118 | B127: JUBLFOOD | C127: 1143.75 | D127: 1153.25 | E127: 1118.50 | F127: 1093.25 | G127: 1058.50 | H127: 1178.50 | I127: 1213.25 | J127: 1238.50 | K127: 1188 | L127: 1128 | M127: 8.1261
A128: 119 | B128: JUBILANT | C128: 438.4 | D128: 437.15 | E128: 426.50 | F128: 414.60 | G128: 403.95 | H128: 449.05 | I128: 459.70 | J128: 471.60 | K128: 447.8 | L128: 425.25 | M128: 2.74266
A129: 120 | B129: KOTAKBANK | C129: 1511.4 | D129: 1516.88 | E129: 1499.77 | F129: 1488.13 | G129: 1471.02 | H129: 1528.52 | I129: 1545.63 | J129: 1557.27 | K129: 1534 | L129: 1505.25 | M129: 27.65975
A130: 121 | B130: L&TFH | C130: 100.8 | D130: 102.12 | E130: 98.88 | F130: 96.97 | G130: 93.73 | H130: 104.03 | I130: 107.27 | J130: 109.18 | K130: 105.35 | L130: 100.2 | M130: 67.69449
A131: 122 | B131: LTTS | C131: 1596.55 | D131: 1594.30 | E131: 1582.25 | F131: 1567.95 | G131: 1555.90 | H131: 1608.60 | I131: 1620.65 | J131: 1634.95 | K131: 1606.35 | L131: 1580 | M131: 0.42494
A132: 123 | B132: LICHSGFIN | C132: 484.65 | D132: 489.87 | E132: 475.78 | F132: 466.92 | G132: 452.83 | H132: 498.73 | I132: 512.82 | J132: 521.68 | K132: 503.95 | L132: 481 | M132: 11.39273
A133: 124 | B133: LTI | C133: 1583.65 | D133: 1598.03 | E133: 1553.67 | F133: 1523.68 | G133: 1479.32 | H133: 1628.02 | I133: 1672.38 | J133: 1702.37 | K133: 1642.4 | L133: 1568.05 | M133: 0.744
A134: 125 | B134: LT | C134: 1313.25 | D134: 1330.08 | E134: 1290.17 | F134: 1267.08 | G134: 1227.17 | H134: 1353.17 | I134: 1393.08 | J134: 1416.17 | K134: 1370 | L134: 1307 | M134: 31.35817
A135: 126 | B135: LUPIN | C135: 748.25 | D135: 752.08 | E135: 742.17 | F135: 736.08 | G135: 726.17 | H135: 758.17 | I135: 768.08 | J135: 774.17 | K135: 762 | L135: 746 | M135: 11.88441
A136: 127 | B136: MRF | C136: 56736.75 | D136: 56712.92 | E136: 56034.93 | F136: 55333.12 | G136: 54655.13 | H136: 57414.73 | I136: 58092.72 | J136: 58794.53 | K136: 57390.9 | L136: 56011.1 | M136: 0.07241
A137: 128 | B137: MGL | C137: 785.9 | D137: 794.88 | E137: 773.17 | F137: 760.43 | G137: 738.72 | H137: 807.62 | I137: 829.33 | J137: 842.07 | K137: 816.6 | L137: 782.15 | M137: 12.42242
A138: 129 | B138: M&MFIN | C138: 298.65 | D138: 304.57 | E138: 289.43 | F138: 280.22 | G138: 265.08 | H138: 313.78 | I138: 328.92 | J138: 338.13 | K138: 319.7 | L138: 295.35 | M138: 14.61509
A139: 130 | B139: M&M | C139: 512.4 | D139: 522.55 | E139: 500.10 | F139: 487.80 | G139: 465.35 | H139: 534.85 | I139: 557.30 | J139: 569.60 | K139: 545 | L139: 510.25 | M139: 36.1894
A140: 131 | B140: MANAPPURAM | C140: 116.25 | D140: 118.98 | E140: 112.62 | F140: 108.98 | G140: 102.62 | H140: 122.62 | I140: 128.98 | J140: 132.62 | K140: 125.35 | L140: 115.35 | M140: 55.87254
A141: 132 | B141: MRPL | C141: 50.55 | D141: 51.07 | E141: 49.83 | F141: 49.12 | G141: 47.88 | H141: 51.78 | I141: 53.02 | J141: 53.73 | K141: 52.3 | L141: 50.35 | M141: 2.3079
A142: 133 | B142: MARICO | C142: 392.55 | D142: 392.72 | E142: 389.93 | F142: 387.32 | G142: 384.53 | H142: 395.33 | I142: 398.12 | J142: 400.73 | K142: 395.5 | L142: 390.1 | M142: 37.30684
A143: 134 | B143: MARUTI | C143: 5815.45 | D143: 5910.00 | E143: 5697.00 | F143: 5578.55 | G143: 5365.55 | H143: 6028.45 | I143: 6241.45 | J143: 6359.90 | K143: 6123 | L143: 5791.55 | M143: 9.09354
A144: 135 | B144: MFSL | C144: 396 | D144: 398.37 | E144: 390.78 | F144: 385.57 | G144: 377.98 | H144: 403.58 | I144: 411.17 | J144: 416.38 | K144: 405.95 | L144: 393.15 | M144: 4.25103
A145: 136 | B145: MINDTREE | C145: 721.45 | D145: 730.78 | E145: 706.57 | F145: 691.68 | G145: 667.47 | H145: 745.67 | I145: 769.88 | J145: 784.77 | K145: 755 | L145: 715.9 | M145: 9.66776
A146: 137 | B146: MOTHERSUMI | C146: 97.3 | D146: 100.17 | E146: 93.33 | F146: 89.37 | G146: 82.53 | H146: 104.13 | I146: 110.97 | J146: 114.93 | K146: 107 | L146: 96.2 | M146: 246.86592
A147: 138 | B147: MPHASIS | C147: 962 | D147: 953.55 | E147: 939.10 | F147: 916.20 | G147: 901.75 | H147: 976.45 | I147: 990.90 | J147: 1013.80 | K147: 968 | L147: 930.65 | M147: 1.00042
A148: 139 | B148: MUTHOOTFIN | C148: 599.95 | D148: 613.13 | E148: 579.27 | F148: 558.58 | G148: 524.72 | H148: 633.82 | I148: 667.68 | J148: 688.37 | K148: 647 | L148: 592.45 | M148: 22.54196
A149: 140 | B149: NATCOPHARM | C149: 547.95 | D149: 545.17 | E149: 538.33 | F149: 528.72 | G149: 521.88 | H149: 554.78 | I149: 561.62 | J149: 571.23 | K149: 552 | L149: 535.55 | M149: 1.4646
A150: 141 | B150: NBCC | C150: 34.4 | D150: 34.85 | E150: 33.70 | F150: 33.00 | G150: 31.85 | H150: 35.55 | I150: 36.70 | J150: 37.40 | K150: 36 | L150: 34.15 | M150: 190.32352
A151: 142 | B151: NHPC | C151: 22.5 | D151: 22.57 | E151: 22.23 | F151: 21.97 | G151: 21.63 | H151: 22.83 | I151: 23.17 | J151: 23.43 | K151: 22.9 | L151: 22.3 | M151: 26.18053
A152: 143 | B152: NMDC | C152: 101.2 | D152: 102.20 | E152: 99.45 | F152: 97.70 | G152: 94.95 | H152: 103.95 | I152: 106.70 | J152: 108.45 | K152: 104.95 | L152: 100.45 | M152: 42.30832
A153: 144 | B153: NTPC | C153: 117.15 | D153: 118.30 | E153: 113.60 | F153: 110.05 | G153: 105.35 | H153: 121.85 | I153: 126.55 | J153: 130.10 | K153: 123 | L153: 114.75 | M153: 259.54194
A154: 145 | B154: NATIONALUM | C154: 42.9 | D154: 43.03 | E154: 42.37 | F154: 41.83 | G154: 41.17 | H154: 43.57 | I154: 44.23 | J154: 44.77 | K154: 43.7 | L154: 42.5 | M154: 70.79837
A155: 146 | B155: OBEROIRLTY | C155: 536.25 | D155: 540.35 | E155: 526.70 | F155: 517.15 | G155: 503.50 | H155: 549.90 | I155: 563.55 | J155: 573.10 | K155: 554 | L155: 530.8 | M155: 0.8969
A156: 147 | B156: ONGC | C156: 127.75 | D156: 128.92 | E156: 124.33 | F156: 120.92 | G156: 116.33 | H156: 132.33 | I156: 136.92 | J156: 140.33 | K156: 133.5 | L156: 125.5 | M156: 129.44927
A157: 148 | B157: OIL | C157: 148.2 | D157: 150.10 | E157: 145.10 | F157: 142.00 | G157: 137.00 | H157: 153.20 | I157: 158.20 | J157: 161.30 | K157: 155.1 | L157: 147 | M157: 20.03933
A158: 149 | B158: OFSS | C158: 3064.3 | D158: 3090.87 | E158: 3013.43 | F158: 2962.57 | G158: 2885.13 | H158: 3141.73 | I158: 3219.17 | J158: 3270.03 | K158: 3168.3 | L158: 3040 | M158: 0.29637
A159: 150 | B159: PIIND | C159: 1116.65 | D159: 1120.12 | E159: 1110.53 | F159: 1104.42 | G159: 1094.83 | H159: 1126.23 | I159: 1135.82 | J159: 1141.93 | K159: 1129.7 | L159: 1114 | M159: 1.53255
A160: 151 | B160: PNBHOUSING | C160: 709.4 | D160: 713.50 | E160: 697.00 | F160: 684.60 | G160: 668.10 | H160: 725.90 | I160: 742.40 | J160: 754.80 | K160: 730 | L160: 701.1 | M160: 1.13294
A161: 152 | B161: PAGEIND | C161: 17990.4 | D161: 18050.97 | E161: 17472.43 | F161: 16954.47 | G161: 16375.93 | H161: 18568.93 | I161: 19147.47 | J161: 19665.43 | K161: 18629.5 | L161: 17533 | M161: 0.38907
A162: 153 | B162: PETRONET | C162: 240.3 | D162: 239.75 | E162: 237.80 | F162: 235.30 | G162: 233.35 | H162: 242.25 | I162: 244.20 | J162: 246.70 | K162: 241.7 | L162: 237.25 | M162: 21.44047
A163: 154 | B163: PFIZER | C163: 3064.4 | D163: 3035.37 | E163: 2975.08 | F163: 2885.77 | G163: 2825.48 | H163: 3124.68 | I163: 3184.97 | J163: 3274.28 | K163: 3095.65 | L163: 2946.05 | M163: 0.30309
A164: 155 | B164: PIDILITIND | C164: 1344.1 | D164: 1350.80 | E164: 1330.60 | F164: 1317.10 | G164: 1296.90 | H164: 1364.30 | I164: 1384.50 | J164: 1398.00 | K164: 1371 | L164: 1337.3 | M164: 7.33999
A165: 156 | B165: PEL | C165: 1723.9 | D165: 1747.30 | E165: 1690.60 | F165: 1657.30 | G165: 1600.60 | H165: 1780.60 | I165: 1837.30 | J165: 1870.60 | K165: 1804 | L165: 1714 | M165: 10.09863
A166: 157 | B166: PFC | C166: 104.05 | D166: 105.80 | E166: 101.50 | F166: 98.95 | G166: 94.65 | H166: 108.35 | I166: 112.65 | J166: 115.20 | K166: 110.1 | L166: 103.25 | M166: 79.82804
A167: 158 | B167: POWERGRID | C167: 202 | D167: 201.38 | E167: 197.37 | F167: 192.73 | G167: 188.72 | H167: 206.02 | I167: 210.03 | J167: 214.67 | K167: 205.4 | L167: 196.75 | M167: 42.51427
A168: 159 | B168: PRESTIGE | C168: 282.9 | D168: 284.05 | E168: 279.95 | F168: 277.00 | G168: 272.90 | H168: 287.00 | I168: 291.10 | J168: 294.05 | K168: 288.15 | L168: 281.1 | M168: 0.35079
A169: 160 | B169: PGHH | C169: 10293.2 | D169: 10307.73 | E169: 10215.47 | F169: 10137.73 | G169: 10045.47 | H169: 10385.47 | I169: 10477.73 | J169: 10555.47 | K169: 10400 | L169: 10230 | M169: 0.02368
A170: 161 | B170: PNB | C170: 65.35 | D170: 65.98 | E170: 64.42 | F170: 63.48 | G170: 61.92 | H170: 66.92 | I170: 68.48 | J170: 69.42 | K170: 67.55 | L170: 65.05 | M170: 174.05138
A171: 162 | B171: QUESS | C171: 458.55 | D171: 463.03 | E171: 451.07 | F171: 443.58 | G171: 431.62 | H171: 470.52 | I171: 482.48 | J171: 489.97 | K171: 475 | L171: 455.55 | M171: 1.02489
A172: 163 | B172: RBLBANK | C172: 371.15 | D172: 376.02 | E172: 362.58 | F172: 354.02 | G172: 340.58 | H172: 384.58 | I172: 398.02 | J172: 406.58 | K172: 389.45 | L172: 367.45 | M172: 46.41256
A173: 164 | B173: RECLTD | C173: 140.8 | D173: 142.25 | E173: 138.50 | F173: 136.20 | G173: 132.45 | H173: 144.55 | I173: 148.30 | J173: 150.60 | K173: 146 | L173: 139.95 | M173: 54.68612
A174: 165 | B174: RAJESHEXPO | C174: 698.7 | D174: 694.90 | E174: 689.35 | F174: 680.00 | G174: 674.45 | H174: 704.25 | I174: 709.80 | J174: 719.15 | K174: 700.45 | L174: 685.55 | M174: 2.15615
A175: 166 | B175: RELCAPITAL | C175: 45.95 | D175: 47.32 | E175: 43.48 | F175: 41.02 | G175: 37.18 | H175: 49.78 | I175: 53.62 | J175: 56.08 | K175: 51.15 | L175: 44.85 | M175: 202.14744
A176: 167 | B176: RELIANCE | C176: 1274.75 | D176: 1267.85 | E176: 1232.90 | F176: 1191.05 | G176: 1156.10 | H176: 1309.70 | I176: 1344.65 | J176: 1386.50 | K176: 1302.8 | L176: 1226 | M176: 479.23444
A177: 168 | B177: RELINFRA | C177: 45.05 | D177: 45.97 | E177: 43.43 | F177: 41.82 | G177: 39.28 | H177: 47.58 | I177: 50.12 | J177: 51.73 | K177: 48.5 | L177: 44.35 | M177: 203.79086
A178: 169 | B178: RPOWER | C178: 3.6 | D178: 3.67 | E178: 3.48 | F178: 3.37 | G178: 3.18 | H178: 3.78 | I178: 3.97 | J178: 4.08 | K178: 3.85 | L178: 3.55 | M178: 95.19025
A179: 170 | B179: SBILIFE | C179: 771.25 | D179: 778.22 | E179: 754.73 | F179: 738.22 | G179: 714.73 | H179: 794.73 | I179: 818.22 | J179: 834.73 | K179: 801.7 | L179: 761.7 | M179: 4.32634
A180: 171 | B180: SRF | C180: 2831.25 | D180: 2847.03 | E180: 2787.07 | F180: 2742.88 | G180: 2682.92 | H180: 2891.22 | I180: 2951.18 | J180: 2995.37 | K180: 2907 | L180: 2802.85 | M180: 2.54696
A181: 172 | B181: SHREECEM | C181: 19698.75 | D181: 19726.07 | E181: 19374.13 | F181: 19049.52 | G181: 18697.58 | H181: 20050.68 | I181: 20402.62 | J181: 20727.23 | K181: 20078 | L181: 19401.45 | M181: 0.94885
A182: 173 | B182: SRTRANSFIN | C182: 987.55 | D182: 1005.48 | E182: 962.12 | F182: 936.68 | G182: 893.32 | H182: 1030.92 | I182: 1074.28 | J182: 1099.72 | K182: 1048.85 | L182: 980.05 | M182: 10.7379
A183: 174 | B183: SIEMENS | C183: 1142.05 | D183: 1151.05 | E183: 1127.65 | F183: 1113.25 | G183: 1089.85 | H183: 1165.45 | I183: 1188.85 | J183: 1203.25 | K183: 1174.45 | L183: 1136.65 | M183: 4.20232
A184: 175 | B184: SBIN | C184: 283.35 | D184: 285.80 | E184: 280.05 | F184: 276.75 | G184: 271.00 | H184: 289.10 | I184: 294.85 | J184: 298.15 | K184: 291.55 | L184: 282.5 | M184: 242.31272
A185: 176 | B185: SAIL | C185: 36.45 | D185: 37.12 | E185: 35.13 | F185: 33.82 | G185: 31.83 | H185: 38.43 | I185: 40.42 | J185: 41.73 | K185: 39.1 | L185: 35.8 | M185: 536.09259
A186: 177 | B186: STRTECH | C186: 139.5 | D186: 140.92 | E186: 137.08 | F186: 134.67 | G186: 130.83 | H186: 143.33 | I186: 147.17 | J186: 149.58 | K186: 144.75 | L186: 138.5 | M186: 8.27069
A187: 178 | B187: SPARC | C187: 160.85 | D187: 159.23 | E187: 155.72 | F187: 150.58 | G187: 147.07 | H187: 164.37 | I187: 167.88 | J187: 173.02 | K187: 162.75 | L187: 154.1 | M187: 8.66986
A188: 179 | B188: SUNPHARMA | C188: 439.25 | D188: 434.83 | E188: 425.17 | F188: 411.08 | G188: 401.42 | H188: 448.92 | I188: 458.58 | J188: 472.67 | K188: 444.5 | L188: 420.75 | M188: 132.11835
A189: 180 | B189: SUNTV | C189: 422.4 | D189: 431.87 | E189: 408.83 | F189: 395.27 | G189: 372.23 | H189: 445.43 | I189: 468.47 | J189: 482.03 | K189: 454.9 | L189: 418.3 | M189: 30.75934
A190: 181 | B190: SYNGENE | C190: 308.95 | D190: 310.07 | E190: 305.88 | F190: 302.82 | G190: 298.63 | H190: 313.13 | I190: 317.32 | J190: 320.38 | K190: 314.25 | L190: 307 | M190: 0.21434
A191: 182 | B191: TVSMOTOR | C191: 368.7 | D191: 374.58 | E191: 359.62 | F191: 350.53 | G191: 335.57 | H191: 383.67 | I191: 398.63 | J191: 407.72 | K191: 389.55 | L191: 365.5 | M191: 14.51202
A192: 183 | B192: TATACHEM | C192: 553.15 | D192: 555.43 | E192: 540.72 | F192: 528.28 | G192: 513.57 | H192: 567.87 | I192: 582.58 | J192: 595.02 | K192: 570.15 | L192: 543 | M192: 12.69481
A193: 184 | B193: TCS | C193: 2199.45 | D193: 2213.33 | E193: 2180.42 | F193: 2161.38 | G193: 2128.47 | H193: 2232.37 | I193: 2265.28 | J193: 2284.32 | K193: 2246.25 | L193: 2194.3 | M193: 16.47281
A194: 185 | B194: TATAGLOBAL | C194: 263.6 | D194: 264.50 | E194: 260.90 | F194: 258.20 | G194: 254.60 | H194: 267.20 | I194: 270.80 | J194: 273.50 | K194: 268.1 | L194: 261.8 | M194: 10.602
A195: 186 | B195: TATAMTRDVR | C195: 57.7 | D195: 58.47 | E195: 56.58 | F195: 55.47 | G195: 53.58 | H195: 59.58 | I195: 61.47 | J195: 62.58 | K195: 60.35 | L195: 57.35 | M195: 53.62144
A196: 187 | B196: TATAMOTORS | C196: 121.95 | D196: 123.08 | E196: 119.87 | F196: 117.78 | G196: 114.57 | H196: 125.17 | I196: 128.38 | J196: 130.47 | K196: 126.3 | L196: 121 | M196: 354.98118
A197: 188 | B197: TATAPOWER | C197: 55.75 | D197: 56.38 | E197: 54.77 | F197: 53.78 | G197: 52.17 | H197: 57.37 | I197: 58.98 | J197: 59.97 | K197: 58 | L197: 55.4 | M197: 96.98903
A198: 189 | B198: TATASTEEL | C198: 348.7 | D198: 353.88 | E198: 340.17 | F198: 331.63 | G198: 317.92 | H198: 362.42 | I198: 376.13 | J198: 384.67 | K198: 367.6 | L198: 345.35 | M198: 147.82051
A199: 190 | B199: TECHM | C199: 639.15 | D199: 645.88 | E199: 629.27 | F199: 619.38 | G199: 602.77 | H199: 655.77 | I199: 672.38 | J199: 682.27 | K199: 662.5 | L199: 636 | M199: 27.16622
A200: 191 | B200: NIACL | C200: 114.35 | D200: 115.42 | E200: 112.43 | F200: 110.52 | G200: 107.53 | H200: 117.33 | I200: 120.32 | J200: 122.23 | K200: 118.4 | L200: 113.5 | M200: 0.42972
A201: 192 | B201: RAMCOCEM | C201: 732.7 | D201: 742.13 | E201: 720.57 | F201: 708.43 | G201: 686.87 | H201: 754.27 | I201: 775.83 | J201: 787.97 | K201: 763.7 | L201: 730 | M201: 2.62435
A202: 193 | B202: TITAN | C202: 1063.85 | D202: 1069.48 | E202: 1050.47 | F202: 1037.08 | G202: 1018.07 | H202: 1082.87 | I202: 1101.88 | J202: 1115.27 | K202: 1088.5 | L202: 1056.1 | M202: 32.931
A203: 194 | B203: TORNTPHARM | C203: 1653.95 | D203: 1637.35 | E203: 1611.60 | F203: 1569.25 | G203: 1543.50 | H203: 1679.70 | I203: 1705.45 | J203: 1747.80 | K203: 1663.1 | L203: 1595 | M203: 4.77303
A204: 195 | B204: TORNTPOWER | C204: 285.1 | D204: 287.70 | E204: 279.40 | F204: 273.70 | G204: 265.40 | H204: 293.40 | I204: 301.70 | J204: 307.40 | K204: 296 | L204: 282 | M204: 15.18073
A205: 196 | B205: UPL | C205: 503.1 | D205: 514.57 | E205: 486.38 | F205: 469.67 | G205: 441.48 | H205: 531.28 | I205: 559.47 | J205: 576.18 | K205: 542.75 | L205: 497.85 | M205: 41.93917
... 30 more rows

Sheet MidCap Intra
L5: Back To Main Page
A6: FOR INTRA DAY TRADING | K6: =Main!B10 -> 2019-08-14
A9: Sr.no | B9: Scrip | C9: CLOSE RATE | D9: Pivot Point | E9: Supports | H9: Resistances
C10: Point | E10: S1 | F10: S2 | G10: S3 | H10: R1 | I10: R2 | J10: R3 | K10: HIGH | L10: LOW | M10: Total Trade Quanity in Lakhs
A11: 1 | B11: 3MINDIA | C11: 21212.65 | D11: 21170.50 | E11: 20641.10 | F11: 20069.55 | G11: 19540.15 | H11: 21742.05 | I11: 22271.45 | J11: 22843.00 | K11: 21699.9 | L11: 20598.95 | M11: 0.03471
A12: 2 | B12: ABB | C12: 1379.1 | D12: 1386.03 | E12: 1365.07 | F12: 1351.03 | G12: 1330.07 | H12: 1400.07 | I12: 1421.03 | J12: 1435.07 | K12: 1407 | L12: 1372 | M12: 0.55372
A13: 3 | B13: ACC | C13: 1547.1 | D13: 1557.42 | E13: 1528.03 | F13: 1508.97 | G13: 1479.58 | H13: 1576.48 | I13: 1605.87 | J13: 1624.93 | K13: 1586.8 | L13: 1538.35 | M13: 4.19671
A14: 4 | B14: AIAENG | C14: 1649.95 | D14: 1660.60 | E14: 1630.65 | F14: 1611.35 | G14: 1581.40 | H14: 1679.90 | I14: 1709.85 | J14: 1729.15 | K14: 1690.55 | L14: 1641.3 | M14: 0.92488
A15: 5 | B15: APLAPOLLO | C15: 1292.75 | D15: 1304.02 | E15: 1254.03 | F15: 1215.32 | G15: 1165.33 | H15: 1342.73 | I15: 1392.72 | J15: 1431.43 | K15: 1354 | L15: 1265.3 | M15: 0.30448
A16: 6 | B16: AUBANK | C16: 685.2 | D16: 687.22 | E16: 675.48 | F16: 665.77 | G16: 654.03 | H16: 696.93 | I16: 708.67 | J16: 718.38 | K16: 698.95 | L16: 677.5 | M16: 1.576
A17: 7 | B17: AAVAS | C17: 1528.4 | D17: 1529.05 | E17: 1510.35 | F17: 1492.30 | G17: 1473.60 | H17: 1547.10 | I17: 1565.80 | J17: 1583.85 | K17: 1547.75 | L17: 1511 | M17: 0.3099
A18: 8 | B18: ADANIGREEN | C18: 46.5 | D18: 46.60 | E18: 45.80 | F18: 45.10 | G18: 44.30 | H18: 47.30 | I18: 48.10 | J18: 48.80 | K18: 47.4 | L18: 45.9 | M18: 3.93919
A19: 9 | B19: ADANIPORTS | C19: 360.55 | D19: 366.40 | E19: 353.25 | F19: 345.95 | G19: 332.80 | H19: 373.70 | I19: 386.85 | J19: 394.15 | K19: 379.55 | L19: 359.1 | M19: 25.76776
A20: 10 | B20: ADANIPOWER | C20: 58.5 | D20: 59.32 | E20: 57.33 | F20: 56.17 | G20: 54.18 | H20: 60.48 | I20: 62.47 | J20: 63.63 | K20: 61.3 | L20: 58.15 | M20: 79.97922
A21: 11 | B21: ADANITRANS | C21: 214.45 | D21: 215.50 | E21: 212.00 | F21: 209.55 | G21: 206.05 | H21: 217.95 | I21: 221.45 | J21: 223.90 | K21: 219 | L21: 213.05 | M21: 0.36136
A22: 12 | B22: ABCAPITAL | C22: 86.35 | D22: 87.45 | E22: 84.60 | F22: 82.85 | G22: 80.00 | H22: 89.20 | I22: 92.05 | J22: 93.80 | K22: 90.3 | L22: 85.7 | M22: 10.23415
A23: 13 | B23: ABFRL | C23: 201.1 | D23: 203.35 | E23: 197.85 | F23: 194.60 | G23: 189.10 | H23: 206.60 | I23: 212.10 | J23: 215.35 | K23: 208.85 | L23: 200.1 | M23: 5.57661
A24: 14 | B24: ADVENZYMES | C24: 151.05 | D24: 152.20 | E24: 148.95 | F24: 146.85 | G24: 143.60 | H24: 154.30 | I24: 157.55 | J24: 159.65 | K24: 155.45 | L24: 150.1 | M24: 0.19103
A25: 15 | B25: AEGISCHEM | C25: 198.4 | D25: 199.80 | E25: 195.65 | F25: 192.90 | G25: 188.75 | H25: 202.55 | I25: 206.70 | J25: 209.45 | K25: 203.95 | L25: 197.05 | M25: 0.83155
A26: 16 | B26: AJANTPHARM | C26: 942.65 | D26: 953.27 | E26: 910.63 | F26: 878.62 | G26: 835.98 | H26: 985.28 | I26: 1027.92 | J26: 1059.93 | K26: 995.9 | L26: 921.25 | M26: 3.76688
A27: 17 | B27: AKZOINDIA | C27: 1716.75 | D27: 1733.05 | E27: 1686.20 | F27: 1655.65 | G27: 1608.80 | H27: 1763.60 | I27: 1810.45 | J27: 1841.00 | K27: 1779.9 | L27: 1702.5 | M27: 0.07769
A28: 18 | B28: APLLTD | C28: 530.35 | D28: 534.45 | E28: 520.90 | F28: 511.45 | G28: 497.90 | H28: 543.90 | I28: 557.45 | J28: 566.90 | K28: 548 | L28: 525 | M28: 0.18079
A29: 19 | B29: ALKEM | C29: 1790.45 | D29: 1782.48 | E29: 1754.97 | F29: 1719.48 | G29: 1691.97 | H29: 1817.97 | I29: 1845.48 | J29: 1880.97 | K29: 1810 | L29: 1747 | M29: 0.26775
A30: 20 | B30: ALBK | C30: 36.45 | D30: 36.62 | E30: 36.03 | F30: 35.62 | G30: 35.03 | H30: 37.03 | I30: 37.62 | J30: 38.03 | K30: 37.2 | L30: 36.2 | M30: 7.07006
A31: 21 | B31: ALLCARGO | C31: 94.55 | D31: 95.23 | E31: 92.82 | F31: 91.08 | G31: 88.67 | H31: 96.97 | I31: 99.38 | J31: 101.12 | K31: 97.65 | L31: 93.5 | M31: 0.5983
A32: 22 | B32: AMARAJABAT | C32: 627.1 | D32: 630.32 | E32: 614.33 | F32: 601.57 | G32: 585.58 | H32: 643.08 | I32: 659.07 | J32: 671.83 | K32: 646.3 | L32: 617.55 | M32: 7.50881
A33: 23 | B33: AMBUJACEM | C33: 208.4 | D33: 209.78 | E33: 205.82 | F33: 203.23 | G33: 199.27 | H33: 212.37 | I33: 216.33 | J33: 218.92 | K33: 213.75 | L33: 207.2 | M33: 51.25593
A34: 24 | B34: ANDHRABANK | C34: 19 | D34: 19.28 | E34: 18.62 | F34: 18.23 | G34: 17.57 | H34: 19.67 | I34: 20.33 | J34: 20.72 | K34: 19.95 | L34: 18.9 | M34: 4.6677
A35: 25 | B35: APOLLOHOSP | C35: 1322.5 | D35: 1334.98 | E35: 1299.42 | F35: 1276.33 | G35: 1240.77 | H35: 1358.07 | I35: 1393.63 | J35: 1416.72 | K35: 1370.55 | L35: 1311.9 | M35: 6.10748
A36: 26 | B36: APOLLOTYRE | C36: 158.7 | D36: 160.57 | E36: 156.13 | F36: 153.57 | G36: 149.13 | H36: 163.13 | I36: 167.57 | J36: 170.13 | K36: 165 | L36: 158 | M36: 30.38805
A37: 27 | B37: ASHOKLEY | C37: 61.55 | D37: 62.50 | E37: 60.35 | F37: 59.15 | G37: 57.00 | H37: 63.70 | I37: 65.85 | J37: 67.05 | K37: 64.65 | L37: 61.3 | M37: 229.99939
A38: 28 | B38: ASHOKA | C38: 119.95 | D38: 119.43 | E38: 116.87 | F38: 113.78 | G38: 111.22 | H38: 122.52 | I38: 125.08 | J38: 128.17 | K38: 122 | L38: 116.35 | M38: 1.2794
A39: 29 | B39: ASIANPAINT | C39: 1573.35 | D39: 1578.45 | E39: 1562.90 | F39: 1552.45 | G39: 1536.90 | H39: 1588.90 | I39: 1604.45 | J39: 1614.90 | K39: 1594 | L39: 1568 | M39: 16.12748
A40: 30 | B40: ASTERDM | C40: 122.1 | D40: 121.82 | E40: 120.28 | F40: 118.47 | G40: 116.93 | H40: 123.63 | I40: 125.17 | J40: 126.98 | K40: 123.35 | L40: 120 | M40: 1.43464
A41: 31 | B41: ASTRAZEN | C41: 1759.65 | D41: 1797.80 | E41: 1709.90 | F41: 1660.15 | G41: 1572.25 | H41: 1847.55 | I41: 1935.45 | J41: 1985.20 | K41: 1885.7 | L41: 1748.05 | M41: 0.24387
A42: 32 | B42: ASTRAL | C42: 1205.5 | D42: 1210.42 | E42: 1197.28 | F42: 1189.07 | G42: 1175.93 | H42: 1218.63 | I42: 1231.77 | J42: 1239.98 | K42: 1223.55 | L42: 1202.2 | M42: 0.24817
A43: 33 | B43: ATUL | C43: 3622.45 | D43: 3638.80 | E43: 3588.65 | F43: 3554.85 | G43: 3504.70 | H43: 3672.60 | I43: 3722.75 | J43: 3756.55 | K43: 3688.95 | L43: 3605 | M43: 0.15965
A44: 34 | B44: AUROPHARMA | C44: 602.8 | D44: 603.90 | E44: 590.20 | F44: 577.60 | G44: 563.90 | H44: 616.50 | I44: 630.20 | J44: 642.80 | K44: 617.6 | L44: 591.3 | M44: 44.94786
A45: 35 | B45: AVANTIFEED | C45: 301.9 | D45: 303.63 | E45: 298.27 | F45: 294.63 | G45: 289.27 | H45: 307.27 | I45: 312.63 | J45: 316.27 | K45: 309 | L45: 300 | M45: 1.52816
A46: 36 | B46: DMART | C46: 1460.9 | D46: 1465.72 | E46: 1447.18 | F46: 1433.47 | G46: 1414.93 | H46: 1479.43 | I46: 1497.97 | J46: 1511.68 | K46: 1484.25 | L46: 1452 | M46: 8.02879
A47: 37 | B47: AXISBANK | C47: 649.45 | D47: 654.38 | E47: 640.07 | F47: 630.68 | G47: 616.37 | H47: 663.77 | I47: 678.08 | J47: 687.47 | K47: 668.7 | L47: 645 | M47: 73.89394
A48: 38 | B48: BASF | C48: 1004.95 | D48: 1019.20 | E48: 981.95 | F48: 958.95 | G48: 921.70 | H48: 1042.20 | I48: 1079.45 | J48: 1102.45 | K48: 1056.45 | L48: 996.2 | M48: 0.13703
A49: 39 | B49: BEML | C49: 711.35 | D49: 743.85 | E49: 665.75 | F49: 620.15 | G49: 542.05 | H49: 789.45 | I49: 867.55 | J49: 913.15 | K49: 821.95 | L49: 698.25 | M49: 15.05702
A50: 40 | B50: BSE | C50: 464.55 | D50: 463.37 | E50: 457.18 | F50: 449.82 | G50: 443.63 | H50: 470.73 | I50: 476.92 | J50: 484.28 | K50: 469.55 | L50: 456 | M50: 1.03827
A51: 41 | B51: BAJAJ-AUTO | C51: 2670.55 | D51: 2685.33 | E51: 2627.82 | F51: 2585.08 | G51: 2527.57 | H51: 2728.07 | I51: 2785.58 | J51: 2828.32 | K51: 2742.85 | L51: 2642.6 | M51: 7.06218
A52: 42 | B52: BAJAJCON | C52: 259.8 | D52: 260.23 | E52: 256.52 | F52: 253.23 | G52: 249.52 | H52: 263.52 | I52: 267.23 | J52: 270.52 | K52: 263.95 | L52: 256.95 | M52: 0.29682
A53: 43 | B53: BAJAJELEC | C53: 380.2 | D53: 381.73 | E53: 374.47 | F53: 368.73 | G53: 361.47 | H53: 387.47 | I53: 394.73 | J53: 400.47 | K53: 389 | L53: 376 | M53: 0.49139
A54: 44 | B54: BAJFINANCE | C54: 3221.85 | D54: 3284.63 | E54: 3145.27 | F54: 3068.68 | G54: 2929.32 | H54: 3361.22 | I54: 3500.58 | J54: 3577.17 | K54: 3424 | L54: 3208.05 | M54: 19.00694
A55: 45 | B55: BAJAJFINSV | C55: 7089.15 | D55: 7233.40 | E55: 6921.80 | F55: 6754.45 | G55: 6442.85 | H55: 7400.75 | I55: 7712.35 | J55: 7879.70 | K55: 7545 | L55: 7066.05 | M55: 4.06528
A56: 46 | B56: BAJAJHLDNG | C56: 3365.05 | D56: 3389.58 | E56: 3325.47 | F56: 3285.88 | G56: 3221.77 | H56: 3429.17 | I56: 3493.28 | J56: 3532.87 | K56: 3453.7 | L56: 3350 | M56: 0.15054
A57: 47 | B57: BALKRISIND | C57: 749.35 | D57: 746.65 | E57: 731.40 | F57: 713.45 | G57: 698.20 | H57: 764.60 | I57: 779.85 | J57: 797.80 | K57: 761.9 | L57: 728.7 | M57: 10.84235
A58: 48 | B58: BALMLAWRIE | C58: 172.85 | D58: 174.28 | E58: 170.57 | F58: 168.28 | G58: 164.57 | H58: 176.57 | I58: 180.28 | J58: 182.57 | K58: 178 | L58: 172 | M58: 0.65719
A59: 49 | B59: BALRAMCHIN | C59: 110.25 | D59: 112.53 | E59: 107.27 | F59: 104.28 | G59: 99.02 | H59: 115.52 | I59: 120.78 | J59: 123.77 | K59: 117.8 | L59: 109.55 | M59: 22.75502
A60: 50 | B60: BANDHANBNK | C60: 494 | D60: 496.28 | E60: 486.87 | F60: 479.73 | G60: 470.32 | H60: 503.42 | I60: 512.83 | J60: 519.97 | K60: 505.7 | L60: 489.15 | M60: 3.15301
A61: 51 | B61: BANKBARODA | C61: 98.1 | D61: 99.20 | E61: 96.00 | F61: 93.90 | G61: 90.70 | H61: 101.30 | I61: 104.50 | J61: 106.60 | K61: 102.4 | L61: 97.1 | M61: 223.74374
A62: 52 | B62: BANKINDIA | C62: 66.7 | D62: 67.42 | E62: 65.38 | F62: 64.07 | G62: 62.03 | H62: 68.73 | I62: 70.77 | J62: 72.08 | K62: 69.45 | L62: 66.1 | M62: 58.75135
A63: 53 | B63: MAHABANK | C63: 12.05 | D63: 12.10 | E63: 11.85 | F63: 11.65 | G63: 11.40 | H63: 12.30 | I63: 12.55 | J63: 12.75 | K63: 12.35 | L63: 11.9 | M63: 3.27722
A64: 54 | B64: BATAINDIA | C64: 1432.8 | D64: 1436.98 | E64: 1415.97 | F64: 1399.13 | G64: 1378.12 | H64: 1453.82 | I64: 1474.83 | J64: 1491.67 | K64: 1458 | L64: 1420.15 | M64: 9.58382
A65: 55 | B65: BERGEPAINT | C65: 363.55 | D65: 361.47 | E65: 357.93 | F65: 352.32 | G65: 348.78 | H65: 367.08 | I65: 370.62 | J65: 376.23 | K65: 365 | L65: 355.85 | M65: 15.41929
A66: 56 | B66: BDL | C66: 291.85 | D66: 292.88 | E66: 284.82 | F66: 277.78 | G66: 269.72 | H66: 299.92 | I66: 307.98 | J66: 315.02 | K66: 300.95 | L66: 285.85 | M66: 0.41398
A67: 57 | B67: BEL | C67: 94.25 | D67: 95.37 | E67: 92.28 | F67: 90.32 | G67: 87.23 | H67: 97.33 | I67: 100.42 | J67: 102.38 | K67: 98.45 | L67: 93.4 | M67: 74.3925
A68: 58 | B68: BHARATFORG | C68: 400.5 | D68: 409.72 | E68: 388.88 | F68: 377.27 | G68: 356.43 | H68: 421.33 | I68: 442.17 | J68: 453.78 | K68: 430.55 | L68: 398.1 | M68: 33.40232
A69: 59 | B69: BHEL | C69: 50.55 | D69: 52.48 | E69: 48.47 | F69: 46.38 | G69: 42.37 | H69: 54.57 | I69: 58.58 | J69: 60.67 | K69: 56.5 | L69: 50.4 | M69: 441.4772
A70: 60 | B70: BPCL | C70: 343.1 | D70: 347.65 | E70: 337.45 | F70: 331.80 | G70: 321.60 | H70: 353.30 | I70: 363.50 | J70: 369.15 | K70: 357.85 | L70: 342 | M70: 55.26502
A71: 61 | B71: BHARTIARTL | C71: 351.65 | D71: 354.27 | E71: 343.53 | F71: 335.42 | G71: 324.68 | H71: 362.38 | I71: 373.12 | J71: 381.23 | K71: 365 | L71: 346.15 | M71: 140.28958
A72: 62 | B72: INFRATEL | C72: 246.65 | D72: 247.97 | E72: 242.48 | F72: 238.32 | G72: 232.83 | H72: 252.13 | I72: 257.62 | J72: 261.78 | K72: 253.45 | L72: 243.8 | M72: 31.8722
A73: 63 | B73: BIOCON | C73: 224.05 | D73: 226.37 | E73: 220.48 | F73: 216.92 | G73: 211.03 | H73: 229.93 | I73: 235.82 | J73: 239.38 | K73: 232.25 | L73: 222.8 | M73: 21.19261
A74: 64 | B74: BIRLACORPN | C74: 576.35 | D74: 581.82 | E74: 564.53 | F74: 552.72 | G74: 535.43 | H74: 593.63 | I74: 610.92 | J74: 622.73 | K74: 599.1 | L74: 570 | M74: 0.21983
A75: 65 | B75: BLISSGVS | C75: 95.55 | D75: 96.52 | E75: 94.03 | F75: 92.52 | G75: 90.03 | H75: 98.03 | I75: 100.52 | J75: 102.03 | K75: 99 | L75: 95 | M75: 0.83589
A76: 66 | B76: BLUEDART | C76: 2257.75 | D76: 2275.67 | E76: 2232.08 | F76: 2206.42 | G76: 2162.83 | H76: 2301.33 | I76: 2344.92 | J76: 2370.58 | K76: 2319.25 | L76: 2250 | M76: 0.01613
A77: 67 | B77: BLUESTARCO | C77: 714.9 | D77: 714.87 | E77: 699.83 | F77: 684.77 | G77: 669.73 | H77: 729.93 | I77: 744.97 | J77: 760.03 | K77: 729.9 | L77: 699.8 | M77: 0.92367
A78: 68 | B78: BBTC | C78: 783.2 | D78: 793.77 | E78: 763.43 | F78: 743.67 | G78: 713.33 | H78: 813.53 | I78: 843.87 | J78: 863.63 | K78: 824.1 | L78: 774 | M78: 0.59898
A79: 69 | B79: BOMDYEING | C79: 71.25 | D79: 71.72 | E79: 70.03 | F79: 68.82 | G79: 67.13 | H79: 72.93 | I79: 74.62 | J79: 75.83 | K79: 73.4 | L79: 70.5 | M79: 6.96587
A80: 70 | B80: BOSCHLTD | C80: 13530.1 | D80: 13798.47 | E80: 13112.43 | F80: 12694.77 | G80: 12008.73 | H80: 14216.13 | I80: 14902.17 | J80: 15319.83 | K80: 14484.5 | L80: 13380.8 | M80: 0.32902
A81: 71 | B81: BRIGADE | C81: 265.15 | D81: 265.48 | E81: 262.22 | F81: 259.28 | G81: 256.02 | H81: 268.42 | I81: 271.68 | J81: 274.62 | K81: 268.75 | L81: 262.55 | M81: 0.16049
A82: 72 | B82: BRITANNIA | C82: 2511.9 | D82: 2522.63 | E82: 2480.27 | F82: 2448.63 | G82: 2406.27 | H82: 2554.27 | I82: 2596.63 | J82: 2628.27 | K82: 2565 | L82: 2491 | M82: 7.3108
A83: 73 | B83: CARERATING | C83: 521.9 | D83: 525.47 | E83: 511.43 | F83: 500.97 | G83: 486.93 | H83: 535.93 | I83: 549.97 | J83: 560.43 | K83: 539.5 | L83: 515 | M83: 0.46264
A84: 74 | B84: CCL | C84: 242.25 | D84: 243.12 | E84: 239.13 | F84: 236.02 | G84: 232.03 | H84: 246.23 | I84: 250.22 | J84: 253.33 | K84: 247.1 | L84: 240 | M84: 0.21281
A85: 75 | B85: CESC | C85: 740.6 | D85: 749.43 | E85: 728.22 | F85: 715.83 | G85: 694.62 | H85: 761.82 | I85: 783.03 | J85: 795.42 | K85: 770.65 | L85: 737.05 | M85: 2.21579
A86: 76 | B86: CGPOWER | C86: 18.15 | D86: 18.22 | E86: 17.73 | F86: 17.32 | G86: 16.83 | H86: 18.63 | I86: 19.12 | J86: 19.53 | K86: 18.7 | L86: 17.8 | M86: 18.72409
A87: 77 | B87: CRISIL | C87: 1182.65 | D87: 1176.22 | E87: 1157.43 | F87: 1132.22 | G87: 1113.43 | H87: 1201.43 | I87: 1220.22 | J87: 1245.43 | K87: 1195 | L87: 1151 | M87: 0.33639
A88: 78 | B88: CADILAHC | C88: 219.7 | D88: 223.83 | E88: 213.97 | F88: 208.23 | G88: 198.37 | H88: 229.57 | I88: 239.43 | J88: 245.17 | K88: 233.7 | L88: 218.1 | M88: 24.44453
A89: 79 | B89: CANFINHOME | C89: 371.8 | D89: 376.72 | E89: 362.63 | F89: 353.47 | G89: 339.38 | H89: 385.88 | I89: 399.97 | J89: 409.13 | K89: 390.8 | L89: 367.55 | M89: 1.97577
A90: 80 | B90: CANBK | C90: 221.2 | D90: 224.37 | E90: 216.83 | F90: 212.47 | G90: 204.93 | H90: 228.73 | I90: 236.27 | J90: 240.63 | K90: 231.9 | L90: 220 | M90: 42.26823
A91: 81 | B91: CAPLIPOINT | C91: 435 | D91: 436.98 | E91: 422.67 | F91: 410.33 | G91: 396.02 | H91: 449.32 | I91: 463.63 | J91: 475.97 | K91: 451.3 | L91: 424.65 | M91: 0.97032
A92: 82 | B92: CARBORUNIV | C92: 275.5 | D92: 278.85 | E92: 269.65 | F92: 263.80 | G92: 254.60 | H92: 284.70 | I92: 293.90 | J92: 299.75 | K92: 288.05 | L92: 273 | M92: 0.48249
A93: 83 | B93: CASTROLIND | C93: 115.15 | D93: 116.45 | E93: 113.50 | F93: 111.85 | G93: 108.90 | H93: 118.10 | I93: 121.05 | J93: 122.70 | K93: 119.4 | L93: 114.8 | M93: 7.76784
A94: 84 | B94: CEATLTD | C94: 857.15 | D94: 856.68 | E94: 845.47 | F94: 833.78 | G94: 822.57 | H94: 868.37 | I94: 879.58 | J94: 891.27 | K94: 867.9 | L94: 845 | M94: 0.8281
A95: 85 | B95: CENTRALBK | C95: 19.2 | D95: 19.53 | E95: 18.72 | F95: 18.23 | G95: 17.42 | H95: 20.02 | I95: 20.83 | J95: 21.32 | K95: 20.35 | L95: 19.05 | M95: 5.88882
A96: 86 | B96: CDSL | C96: 188.25 | D96: 189.93 | E96: 185.37 | F96: 182.48 | G96: 177.92 | H96: 192.82 | I96: 197.38 | J96: 200.27 | K96: 194.5 | L96: 187.05 | M96: 1.96942
A97: 87 | B97: CENTURYPLY | C97: 134.75 | D97: 132.25 | E97: 129.50 | F97: 124.25 | G97: 121.50 | H97: 137.50 | I97: 140.25 | J97: 145.50 | K97: 135 | L97: 127 | M97: 4.24281
A98: 88 | B98: CERA | C98: 2497.9 | D98: 2417.63 | E98: 2280.27 | F98: 2062.63 | G98: 1925.27 | H98: 2635.27 | I98: 2772.63 | J98: 2990.27 | K98: 2555 | L98: 2200 | M98: 0.04173
A99: 89 | B99: CHAMBLFERT | C99: 146.15 | D99: 146.87 | E99: 143.28 | F99: 140.42 | G99: 136.83 | H99: 149.73 | I99: 153.32 | J99: 156.18 | K99: 150.45 | L99: 144 | M99: 1.70169
A100: 90 | B100: CHENNPETRO | C100: 195 | D100: 194.93 | E100: 192.12 | F100: 189.23 | G100: 186.42 | H100: 197.82 | I100: 200.63 | J100: 203.52 | K100: 197.75 | L100: 192.05 | M100: 0.62735
A101: 91 | B101: CHOLAHLDNG | C101: 470.1 | D101: 470.53 | E101: 461.02 | F101: 451.93 | G101: 442.42 | H101: 479.62 | I101: 489.13 | J101: 498.22 | K101: 480.05 | L101: 461.45 | M101: 8.86013
A102: 92 | B102: CHOLAFIN | C102: 261.75 | D102: 265.52 | E102: 256.43 | F102: 251.12 | G102: 242.03 | H102: 270.83 | I102: 279.92 | J102: 285.23 | K102: 274.6 | L102: 260.2 | M102: 7.38242
A103: 93 | B103: CIPLA | C103: 475.75 | D103: 478.57 | E103: 470.23 | F103: 464.72 | G103: 456.38 | H103: 484.08 | I103: 492.42 | J103: 497.93 | K103: 486.9 | L103: 473.05 | M103: 29.52687
A104: 94 | B104: CUB | C104: 192.95 | D104: 194.37 | E104: 190.73 | F104: 188.52 | G104: 184.88 | H104: 196.58 | I104: 200.22 | J104: 202.43 | K104: 198 | L104: 192.15 | M104: 8.69844
A105: 95 | B105: COALINDIA | C105: 203.75 | D105: 205.90 | E105: 200.35 | F105: 196.95 | G105: 191.40 | H105: 209.30 | I105: 214.85 | J105: 218.25 | K105: 211.45 | L105: 202.5 | M105: 69.0737
A106: 96 | B106: COCHINSHIP | C106: 348.15 | D106: 349.70 | E106: 345.00 | F106: 341.85 | G106: 337.15 | H106: 352.85 | I106: 357.55 | J106: 360.70 | K106: 354.4 | L106: 346.55 | M106: 0.36245
A107: 97 | B107: COFFEEDAY | C107: 69.4 | D107: 69.40 | E107: 69.40 | F107: 69.40 | G107: 69.40 | H107: 69.40 | I107: 69.40 | J107: 69.40 | K107: 69.4 | L107: 69.4 | M107: 0.40428
A108: 98 | B108: COLPAL | C108: 1211.45 | D108: 1218.73 | E108: 1197.72 | F108: 1183.98 | G108: 1162.97 | H108: 1232.47 | I108: 1253.48 | J108: 1267.22 | K108: 1239.75 | L108: 1205 | M108: 4.52197
A109: 99 | B109: CONCOR | C109: 474.05 | D109: 477.53 | E109: 467.07 | F109: 460.08 | G109: 449.62 | H109: 484.52 | I109: 494.98 | J109: 501.97 | K109: 488 | L109: 470.55 | M109: 5.35974
A110: 100 | B110: COROMANDEL | C110: 353.7 | D110: 353.42 | E110: 346.13 | F110: 338.57 | G110: 331.28 | H110: 360.98 | I110: 368.27 | J110: 375.83 | K110: 360.7 | L110: 345.85 | M110: 1.24776
A111: 101 | B111: CORPBANK | C111: 19.95 | D111: 20.25 | E111: 19.60 | F111: 19.25 | G111: 18.60 | H111: 20.60 | I111: 21.25 | J111: 21.60 | K111: 20.9 | L111: 19.9 | M111: 2.25483
A112: 102 | B112: COX&KINGS | C112: 7.8 | D112: 7.80 | E112: 7.80 | F112: 7.80 | G112: 7.80 | H112: 7.80 | I112: 7.80 | J112: 7.80 | K112: 7.8 | L112: 7.8 | M112: 1.16998
A113: 103 | B113: CREDITACC | C113: 509.8 | D113: 512.95 | E113: 501.25 | F113: 492.70 | G113: 481.00 | H113: 521.50 | I113: 533.20 | J113: 541.75 | K113: 524.65 | L113: 504.4 | M113: 0.31194
A114: 104 | B114: CROMPTON | C114: 227.05 | D114: 228.35 | E114: 225.30 | F114: 223.55 | G114: 220.50 | H114: 230.10 | I114: 233.15 | J114: 234.90 | K114: 231.4 | L114: 226.6 | M114: 10.20762
A115: 105 | B115: CUMMINSIND | C115: 591.3 | D115: 595.02 | E115: 585.38 | F115: 579.47 | G115: 569.83 | H115: 600.93 | I115: 610.57 | J115: 616.48 | K115: 604.65 | L115: 589.1 | M115: 5.6046
A116: 106 | B116: CYIENT | C116: 440.55 | D116: 442.17 | E116: 436.28 | F116: 432.02 | G116: 426.13 | H116: 446.43 | I116: 452.32 | J116: 456.58 | K116: 448.05 | L116: 437.9 | M116: 0.63462
A117: 107 | B117: DBCORP | C117: 157.35 | D117: 156.83 | E117: 155.12 | F117: 152.88 | G117: 151.17 | H117: 159.07 | I117: 160.78 | J117: 163.02 | K117: 158.55 | L117: 154.6 | M117: 5.14421
A118: 108 | B118: DCBBANK | C118: 194.6 | D118: 196.00 | E118: 192.10 | F118: 189.60 | G118: 185.70 | H118: 198.50 | I118: 202.40 | J118: 204.90 | K118: 199.9 | L118: 193.5 | M118: 5.59981
A119: 109 | B119: DCMSHRIRAM | C119: 392.65 | D119: 391.40 | E119: 379.80 | F119: 366.95 | G119: 355.35 | H119: 404.25 | I119: 415.85 | J119: 428.70 | K119: 403 | L119: 378.55 | M119: 2.81264
A120: 110 | B120: DLF | C120: 173.75 | D120: 175.02 | E120: 171.03 | F120: 168.32 | G120: 164.33 | H120: 177.73 | I120: 181.72 | J120: 184.43 | K120: 179 | L120: 172.3 | M120: 49.17578
A121: 111 | B121: DABUR | C121: 429.25 | D121: 431.58 | E121: 424.67 | F121: 420.08 | G121: 413.17 | H121: 436.17 | I121: 443.08 | J121: 447.67 | K121: 438.5 | L121: 427 | M121: 13.5743
A122: 112 | B122: DEEPAKFERT | C122: 86.1 | D122: 87.62 | E122: 83.73 | F122: 81.37 | G122: 77.48 | H122: 89.98 | I122: 93.87 | J122: 96.23 | K122: 91.5 | L122: 85.25 | M122: 1.1024
A123: 113 | B123: DEEPAKNTR | C123: 266.6 | D123: 270.18 | E123: 260.52 | F123: 254.43 | G123: 244.77 | H123: 276.27 | I123: 285.93 | J123: 292.02 | K123: 279.85 | L123: 264.1 | M123: 2.13003
A124: 114 | B124: DELTACORP | C124: 163.8 | D124: 163.53 | E124: 160.27 | F124: 156.73 | G124: 153.47 | H124: 167.07 | I124: 170.33 | J124: 173.87 | K124: 166.8 | L124: 160 | M124: 10.28204
A125: 115 | B125: DHFL | C125: 46.45 | D125: 47.45 | E125: 44.00 | F125: 41.55 | G125: 38.10 | H125: 49.90 | I125: 53.35 | J125: 55.80 | K125: 50.9 | L125: 45 | M125: 223.76401
A126: 116 | B126: DBL | C126: 397.15 | D126: 404.05 | E126: 388.10 | F126: 379.05 | G126: 363.10 | H126: 413.10 | I126: 429.05 | J126: 438.10 | K126: 420 | L126: 395 | M126: 1.72572
A127: 117 | B127: DISHTV | C127: 22.65 | D127: 22.48 | E127: 21.52 | F127: 20.38 | G127: 19.42 | H127: 23.62 | I127: 24.58 | J127: 25.72 | K127: 23.45 | L127: 21.35 | M127: 328.71639
A128: 118 | B128: DCAL | C128: 196.65 | D128: 199.90 | E128: 188.80 | F128: 180.95 | G128: 169.85 | H128: 207.75 | I128: 218.85 | J128: 226.70 | K128: 211 | L128: 192.05 | M128: 1.74754
A129: 119 | B129: DIVISLAB | C129: 1524.4 | D129: 1552.20 | E129: 1484.40 | F129: 1444.40 | G129: 1376.60 | H129: 1592.20 | I129: 1660.00 | J129: 1700.00 | K129: 1620 | L129: 1512.2 | M129: 26.9899
A130: 120 | B130: DIXON | C130: 1992.15 | D130: 1880.72 | E130: 1671.43 | F130: 1350.72 | G130: 1141.43 | H130: 2201.43 | I130: 2410.72 | J130: 2731.43 | K130: 2090 | L130: 1560 | M130: 0.35313
A131: 121 | B131: LALPATHLAB | C131: 1074.95 | D131: 1078.20 | E131: 1057.25 | F131: 1039.55 | G131: 1018.60 | H131: 1095.90 | I131: 1116.85 | J131: 1134.55 | K131: 1099.15 | L131: 1060.5 | M131: 0.37702
A132: 122 | B132: DRREDDY | C132: 2556.35 | D132: 2565.62 | E132: 2531.73 | F132: 2507.12 | G132: 2473.23 | H132: 2590.23 | I132: 2624.12 | J132: 2648.73 | K132: 2599.5 | L132: 2541 | M132: 3.74844
A133: 123 | B133: EIDPARRY | C133: 150.9 | D133: 152.17 | E133: 148.53 | F133: 146.17 | G133: 142.53 | H133: 154.53 | I133: 158.17 | J133: 160.53 | K133: 155.8 | L133: 149.8 | M133: 0.48535
A134: 124 | B134: EIHOTEL | C134: 156.15 | D134: 157.80 | E134: 153.85 | F134: 151.55 | G134: 147.60 | H134: 160.10 | I134: 164.05 | J134: 166.35 | K134: 161.75 | L134: 155.5 | M134: 0.49704
A135: 125 | B135: EDELWEISS | C135: 142.45 | D135: 142.65 | E135: 140.30 | F135: 138.15 | G135: 135.80 | H135: 144.80 | I135: 147.15 | J135: 149.30 | K135: 145 | L135: 140.5 | M135: 13.89752
A136: 126 | B136: EICHERMOT | C136: 16645 | D136: 16947.53 | E136: 16245.22 | F136: 15845.43 | G136: 15143.12 | H136: 17347.32 | I136: 18049.63 | J136: 18449.42 | K136: 17649.85 | L136: 16547.75 | M136: 1.47466
A137: 127 | B137: ELGIEQUIP | C137: 244.8 | D137: 244.25 | E137: 239.55 | F137: 234.30 | G137: 229.60 | H137: 249.50 | I137: 254.20 | J137: 259.45 | K137: 248.95 | L137: 239 | M137: 0.13104
A138: 128 | B138: EMAMILTD | C138: 300.45 | D138: 303.80 | E138: 292.85 | F138: 285.25 | G138: 274.30 | H138: 311.40 | I138: 322.35 | J138: 329.95 | K138: 314.75 | L138: 296.2 | M138: 1.75834
A139: 129 | B139: ENDURANCE | C139: 859.7 | D139: 849.93 | E139: 829.87 | F139: 800.03 | G139: 779.97 | H139: 879.77 | I139: 899.83 | J139: 929.67 | K139: 870 | L139: 820.1 | M139: 1.98807
A140: 130 | B140: ENGINERSIN | C140: 103.05 | D140: 102.17 | E140: 100.53 | F140: 98.02 | G140: 96.38 | H140: 104.68 | I140: 106.32 | J140: 108.83 | K140: 103.8 | L140: 99.65 | M140: 19.5276
A141: 131 | B141: EQUITAS | C141: 108.45 | D141: 108.60 | E141: 106.70 | F141: 104.95 | G141: 103.05 | H141: 110.35 | I141: 112.25 | J141: 114.00 | K141: 110.5 | L141: 106.85 | M141: 21.48266
A142: 132 | B142: ERIS | C142: 396.3 | D142: 395.70 | E142: 391.60 | F142: 386.90 | G142: 382.80 | H142: 400.40 | I142: 404.50 | J142: 409.20 | K142: 399.8 | L142: 391 | M142: 0.23985
A143: 133 | B143: ESCORTS | C143: 461.65 | D143: 470.02 | E143: 451.63 | F143: 441.62 | G143: 423.23 | H143: 480.03 | I143: 498.42 | J143: 508.43 | K143: 488.4 | L143: 460 | M143: 17.70023
A144: 134 | B144: ESSELPACK | C144: 113.55 | D144: 115.08 | E144: 110.17 | F144: 106.78 | G144: 101.87 | H144: 118.47 | I144: 123.38 | J144: 126.77 | K144: 120 | L144: 111.7 | M144: 0.52182
A145: 135 | B145: EXIDEIND | C145: 177.6 | D145: 178.82 | E145: 174.88 | F145: 172.17 | G145: 168.23 | H145: 181.53 | I145: 185.47 | J145: 188.18 | K145: 182.75 | L145: 176.1 | M145: 11.34301
A146: 136 | B146: FDC | C146: 161.1 | D146: 162.83 | E146: 158.77 | F146: 156.43 | G146: 152.37 | H146: 165.17 | I146: 169.23 | J146: 171.57 | K146: 166.9 | L146: 160.5 | M146: 0.09334
A147: 137 | B147: FEDERALBNK | C147: 83.3 | D147: 84.92 | E147: 81.38 | F147: 79.47 | G147: 75.93 | H147: 86.83 | I147: 90.37 | J147: 92.28 | K147: 88.45 | L147: 83 | M147: 132.48595
A148: 138 | B148: FINEORG | C148: 1432.35 | D148: 1435.50 | E148: 1411.90 | F148: 1391.45 | G148: 1367.85 | H148: 1455.95 | I148: 1479.55 | J148: 1500.00 | K148: 1459.1 | L148: 1415.05 | M148: 0.01384
A149: 139 | B149: FINCABLES | C149: 360.15 | D149: 365.52 | E149: 354.63 | F149: 349.12 | G149: 338.23 | H149: 371.03 | I149: 381.92 | J149: 387.43 | K149: 376.4 | L149: 360 | M149: 0.26725
A150: 140 | B150: FINPIPE | C150: 525.55 | D150: 522.82 | E150: 514.73 | F150: 503.92 | G150: 495.83 | H150: 533.63 | I150: 541.72 | J150: 552.53 | K150: 530.9 | L150: 512 | M150: 0.93424
A151: 141 | B151: FSL | C151: 47.05 | D151: 47.28 | E151: 46.27 | F151: 45.48 | G151: 44.47 | H151: 48.07 | I151: 49.08 | J151: 49.87 | K151: 48.3 | L151: 46.5 | M151: 8.41218
A152: 142 | B152: FORTIS | C152: 118.6 | D152: 119.28 | E152: 116.87 | F152: 115.13 | G152: 112.72 | H152: 121.02 | I152: 123.43 | J152: 125.17 | K152: 121.7 | L152: 117.55 | M152: 5.67991
A153: 143 | B153: FCONSUMER | C153: 32.95 | D153: 32.40 | E153: 30.55 | F153: 28.15 | G153: 26.30 | H153: 34.80 | I153: 36.65 | J153: 39.05 | K153: 34.25 | L153: 30 | M153: 21.72931
A154: 144 | B154: FLFL | C154: 449.7 | D154: 447.93 | E154: 443.92 | F154: 438.13 | G154: 434.12 | H154: 453.72 | I154: 457.73 | J154: 463.52 | K154: 451.95 | L154: 442.15 | M154: 0.13844
A155: 145 | B155: FRETAIL | C155: 413.35 | D155: 420.90 | E155: 397.80 | F155: 382.25 | G155: 359.15 | H155: 436.45 | I155: 459.55 | J155: 475.10 | K155: 444 | L155: 405.35 | M155: 10.60031
A156: 146 | B156: GAIL | C156: 126 | D156: 126.38 | E156: 123.62 | F156: 121.23 | G156: 118.47 | H156: 128.77 | I156: 131.53 | J156: 133.92 | K156: 129.15 | L156: 124 | M156: 227.90395
A157: 147 | B157: GEPIL | C157: 737.9 | D157: 742.37 | E157: 726.68 | F157: 715.47 | G157: 699.78 | H157: 753.58 | I157: 769.27 | J157: 780.48 | K157: 758.05 | L157: 731.15 | M157: 0.03701
A158: 148 | B158: GET&D | C158: 159.85 | D158: 160.90 | E158: 155.00 | F158: 150.15 | G158: 144.25 | H158: 165.75 | I158: 171.65 | J158: 176.50 | K158: 166.8 | L158: 156.05 | M158: 0.35161
A159: 149 | B159: GHCL | C159: 203.1 | D159: 204.13 | E159: 199.97 | F159: 196.83 | G159: 192.67 | H159: 207.27 | I159: 211.43 | J159: 214.57 | K159: 208.3 | L159: 201 | M159: 0.40954
A160: 150 | B160: GMRINFRA | C160: 14.95 | D160: 15.10 | E160: 14.75 | F160: 14.55 | G160: 14.20 | H160: 15.30 | I160: 15.65 | J160: 15.85 | K160: 15.45 | L160: 14.9 | M160: 81.05559
A161: 151 | B161: GALAXYSURF | C161: 1200.2 | D161: 1195.30 | E161: 1180.90 | F161: 1161.60 | G161: 1147.20 | H161: 1214.60 | I161: 1229.00 | J161: 1248.30 | K161: 1209.7 | L161: 1176 | M161: 0.06814
A162: 152 | B162: GDL | C162: 98.8 | D162: 98.85 | E162: 95.95 | F162: 93.10 | G162: 90.20 | H162: 101.70 | I162: 104.60 | J162: 107.45 | K162: 101.75 | L162: 96 | M162: 0.53352
A163: 153 | B163: GAYAPROJ | C163: 132.7 | D163: 134.73 | E163: 128.47 | F163: 124.23 | G163: 117.97 | H163: 138.97 | I163: 145.23 | J163: 149.47 | K163: 141 | L163: 130.5 | M163: 0.61937
A164: 154 | B164: GICRE | C164: 191.05 | D164: 191.58 | E164: 187.52 | F164: 183.98 | G164: 179.92 | H164: 195.12 | I164: 199.18 | J164: 202.72 | K164: 195.65 | L164: 188.05 | M164: 0.38053
A165: 155 | B165: GILLETTE | C165: 6990.15 | D165: 7038.37 | E165: 6876.78 | F165: 6763.42 | G165: 6601.83 | H165: 7151.73 | I165: 7313.32 | J165: 7426.68 | K165: 7199.95 | L165: 6925 | M165: 0.02277
A166: 156 | B166: GSKCONS | C166: 7817.45 | D166: 7816.73 | E166: 7755.72 | F166: 7693.98 | G166: 7632.97 | H166: 7878.47 | I166: 7939.48 | J166: 8001.22 | K166: 7877.75 | L166: 7755 | M166: 0.07405
A167: 157 | B167: GLAXO | C167: 1203.3 | D167: 1206.80 | E167: 1196.60 | F167: 1189.90 | G167: 1179.70 | H167: 1213.50 | I167: 1223.70 | J167: 1230.40 | K167: 1217 | L167: 1200.1 | M167: 0.37223
A168: 158 | B168: GLENMARK | C168: 415.6 | D168: 421.20 | E168: 406.40 | F168: 397.20 | G168: 382.40 | H168: 430.40 | I168: 445.20 | J168: 454.40 | K168: 436 | L168: 412 | M168: 16.49499
A169: 159 | B169: GODFRYPHLP | C169: 850.7 | D169: 821.22 | E169: 791.73 | F169: 732.77 | G169: 703.28 | H169: 880.18 | I169: 909.67 | J169: 968.63 | K169: 850.7 | L169: 762.25 | M169: 4.36827
A170: 160 | B170: GODREJAGRO | C170: 460.55 | D170: 459.18 | E170: 451.37 | F170: 442.18 | G170: 434.37 | H170: 468.37 | I170: 476.18 | J170: 485.37 | K170: 467 | L170: 450 | M170: 0.27636
A171: 161 | B171: GODREJCP | C171: 645.1 | D171: 646.55 | E171: 634.00 | F171: 622.90 | G171: 610.35 | H171: 657.65 | I171: 670.20 | J171: 681.30 | K171: 659.1 | L171: 635.45 | M171: 20.6947
A172: 162 | B172: GODREJIND | C172: 454.85 | D172: 458.90 | E172: 440.20 | F172: 425.55 | G172: 406.85 | H172: 473.55 | I172: 492.25 | J172: 506.90 | K172: 477.6 | L172: 444.25 | M172: 1.07383
A173: 163 | B173: GODREJPROP | C173: 902.9 | D173: 899.78 | E173: 880.07 | F173: 857.23 | G173: 837.52 | H173: 922.62 | I173: 942.33 | J173: 965.17 | K173: 919.5 | L173: 876.95 | M173: 4.77509
A174: 164 | B174: GRANULES | C174: 93.4 | D174: 94.27 | E174: 91.53 | F174: 89.67 | G174: 86.93 | H174: 96.13 | I174: 98.87 | J174: 100.73 | K174: 97 | L174: 92.4 | M174: 3.17979
A175: 165 | B175: GRAPHITE | C175: 292 | D175: 292.47 | E175: 281.33 | F175: 270.67 | G175: 259.53 | H175: 303.13 | I175: 314.27 | J175: 324.93 | K175: 303.6 | L175: 281.8 | M175: 17.22028
A176: 166 | B176: GRASIM | C176: 709.65 | D176: 721.78 | E176: 693.57 | F176: 677.48 | G176: 649.27 | H176: 737.87 | I176: 766.08 | J176: 782.17 | K176: 750 | L176: 705.7 | M176: 13.5422
A177: 167 | B177: GESHIP | C177: 230.65 | D177: 227.83 | E177: 223.17 | F177: 215.68 | G177: 211.02 | H177: 235.32 | I177: 239.98 | J177: 247.47 | K177: 232.5 | L177: 220.35 | M177: 0.55997
A178: 168 | B178: GREAVESCOT | C178: 118.3 | D178: 117.92 | E178: 116.43 | F178: 114.57 | G178: 113.08 | H178: 119.78 | I178: 121.27 | J178: 123.13 | K178: 119.4 | L178: 116.05 | M178: 1.41022
A179: 169 | B179: GRINDWELL | C179: 541.9 | D179: 543.20 | E179: 536.30 | F179: 530.70 | G179: 523.80 | H179: 548.80 | I179: 555.70 | J179: 561.30 | K179: 550.1 | L179: 537.6 | M179: 0.05169
A180: 170 | B180: GRUH | C180: 257.7 | D180: 258.50 | E180: 254.00 | F180: 250.30 | G180: 245.80 | H180: 262.20 | I180: 266.70 | J180: 270.40 | K180: 263 | L180: 254.8 | M180: 7.54557
A181: 171 | B181: GUJALKALI | C181: 412.45 | D181: 420.87 | E181: 397.08 | F181: 381.72 | G181: 357.93 | H181: 436.23 | I181: 460.02 | J181: 475.38 | K181: 444.65 | L181: 405.5 | M181: 0.39051
A182: 172 | B182: GUJGASLTD | C182: 182.45 | D182: 183.27 | E182: 179.68 | F182: 176.92 | G182: 173.33 | H182: 186.03 | I182: 189.62 | J182: 192.38 | K182: 186.85 | L182: 180.5 | M182: 2.95766
A183: 173 | B183: GMDCLTD | C183: 65.35 | D183: 65.35 | E183: 64.00 | F183: 62.65 | G183: 61.30 | H183: 66.70 | I183: 68.05 | J183: 69.40 | K183: 66.7 | L183: 64 | M183: 0.79619
A184: 174 | B184: GNFC | C184: 202.55 | D184: 203.85 | E184: 198.90 | F184: 195.25 | G184: 190.30 | H184: 207.50 | I184: 212.45 | J184: 216.10 | K184: 208.8 | L184: 200.2 | M184: 1.67652
A185: 175 | B185: GPPL | C185: 80 | D185: 80.10 | E185: 78.70 | F185: 77.40 | G185: 76.00 | H185: 81.40 | I185: 82.80 | J185: 84.10 | K185: 81.5 | L185: 78.8 | M185: 6.1469
A186: 176 | B186: GSFC | C186: 71.4 | D186: 71.63 | E186: 70.02 | F186: 68.63 | G186: 67.02 | H186: 73.02 | I186: 74.63 | J186: 76.02 | K186: 73.25 | L186: 70.25 | M186: 2.84196
A187: 177 | B187: GSPL | C187: 216.95 | D187: 219.32 | E187: 212.63 | F187: 208.32 | G187: 201.63 | H187: 223.63 | I187: 230.32 | J187: 234.63 | K187: 226 | L187: 215 | M187: 5.8896
A188: 178 | B188: GULFOILLUB | C188: 799.4 | D188: 807.80 | E188: 785.60 | F188: 771.80 | G188: 749.60 | H188: 821.60 | I188: 843.80 | J188: 857.60 | K188: 830 | L188: 794 | M188: 0.0188
A189: 179 | B189: HEG | C189: 948.9 | D189: 959.97 | E189: 928.93 | F189: 908.97 | G189: 877.93 | H189: 979.93 | I189: 1010.97 | J189: 1030.93 | K189: 991 | L189: 940 | M189: 3.0595
A190: 180 | B190: HCLTECH | C190: 1072.5 | D190: 1077.25 | E190: 1062.60 | F190: 1052.70 | G190: 1038.05 | H190: 1087.15 | I190: 1101.80 | J190: 1111.70 | K190: 1091.9 | L190: 1067.35 | M190: 12.53805
A191: 181 | B191: HDFCAMC | C191: 2218.25 | D191: 2226.42 | E191: 2191.83 | F191: 2165.42 | G191: 2130.83 | H191: 2252.83 | I191: 2287.42 | J191: 2313.83 | K191: 2261 | L191: 2200 | M191: 2.31439
A192: 182 | B192: HDFCBANK | C192: 2220.35 | D192: 2232.08 | E192: 2190.87 | F192: 2161.38 | G192: 2120.17 | H192: 2261.57 | I192: 2302.78 | J192: 2332.27 | K192: 2273.3 | L192: 2202.6 | M192: 38.60017
A193: 183 | B193: HDFCLIFE | C193: 519.35 | D193: 524.12 | E193: 511.23 | F193: 503.12 | G193: 490.23 | H193: 532.23 | I193: 545.12 | J193: 553.23 | K193: 537 | L193: 516 | M193: 35.43626
A194: 184 | B194: HATHWAY | C194: 23.65 | D194: 22.55 | E194: 21.40 | F194: 19.15 | G194: 18.00 | H194: 24.80 | I194: 25.95 | J194: 28.20 | K194: 23.7 | L194: 20.3 | M194: 9.55758
A195: 185 | B195: HATSUN | C195: 619.95 | D195: 625.80 | E195: 611.70 | F195: 603.45 | G195: 589.35 | H195: 634.05 | I195: 648.15 | J195: 656.40 | K195: 639.9 | L195: 617.55 | M195: 0.04284
A196: 186 | B196: HAVELLS | C196: 647.9 | D196: 652.63 | E196: 639.67 | F196: 631.43 | G196: 618.47 | H196: 660.87 | I196: 673.83 | J196: 682.07 | K196: 665.6 | L196: 644.4 | M196: 5.43712
A197: 187 | B197: HEIDELBERG | C197: 188.5 | D197: 190.50 | E197: 185.75 | F197: 183.00 | G197: 178.25 | H197: 193.25 | I197: 198.00 | J197: 200.75 | K197: 195.25 | L197: 187.75 | M197: 1.84204
A198: 188 | B198: HERITGFOOD | C198: 343.65 | D198: 348.90 | E198: 336.80 | F198: 329.95 | G198: 317.85 | H198: 355.75 | I198: 367.85 | J198: 374.70 | K198: 361 | L198: 342.05 | M198: 0.11912
A199: 189 | B199: HEROMOTOCO | C199: 2566.8 | D199: 2588.23 | E199: 2525.42 | F199: 2484.03 | G199: 2421.22 | H199: 2629.62 | I199: 2692.43 | J199: 2733.82 | K199: 2651.05 | L199: 2546.85 | M199: 11.79168
A200: 190 | B200: HEXAWARE | C200: 374.8 | D200: 372.13 | E200: 364.77 | F200: 354.73 | G200: 347.37 | H200: 382.17 | I200: 389.53 | J200: 399.57 | K200: 379.5 | L200: 362.1 | M200: 20.5512
A201: 191 | B201: HFCL | C201: 18.75 | D201: 19.07 | E201: 18.43 | F201: 18.12 | G201: 17.48 | H201: 19.38 | I201: 20.02 | J201: 20.33 | K201: 19.7 | L201: 18.75 | M201: 23.17138
A202: 192 | B202: HSCL | C202: 82.8 | D202: 82.27 | E202: 78.53 | F202: 74.27 | G202: 70.53 | H202: 86.53 | I202: 90.27 | J202: 94.53 | K202: 86 | L202: 78 | M202: 8.00376
A203: 193 | B203: HIMATSEIDE | C203: 135.15 | D203: 137.10 | E203: 131.70 | F203: 128.25 | G203: 122.85 | H203: 140.55 | I203: 145.95 | J203: 149.40 | K203: 142.5 | L203: 133.65 | M203: 0.45752
A204: 194 | B204: HINDALCO | C204: 176.25 | D204: 176.52 | E204: 172.73 | F204: 169.22 | G204: 165.43 | H204: 180.03 | I204: 183.82 | J204: 187.33 | K204: 180.3 | L204: 173 | M204: 68.36149
A205: 195 | B205: HAL | C205: 636.95 | D205: 637.57 | E205: 627.18 | F205: 617.42 | G205: 607.03 | H205: 647.33 | I205: 657.72 | J205: 667.48 | K205: 647.95 | L205: 627.8 | M205: 0.0488
A206: 196 | B206: HINDCOPPER | C206: 31.65 | D206: 31.83 | E206: 31.27 | F206: 30.88 | G206: 30.32 | H206: 32.22 | I206: 32.78 | J206: 33.17 | K206: 32.4 | L206: 31.45 | M206: 3.60464
... 320 more rows

Sheet Bulk Deals
E6: Back To Main Page
A7: Subject : | B7: BULK DEAL | D7: =Main!B10 -> 2019-08-14
A9: Date | B9: Scrip code | C9: Scrip Name | D9: Client Name | E9: Buy / Sell | F9: Quantity Traded | G9: Trade Price / Wt.Avg.trade price | H9: Exchange
A10: 2019-08-13 | B10: 538567 | C10: GULFOILLUB | D10: SMALLCAP WORLD FUND INC | E10: SELL | F10: 264,882 | G10: 815.88 | H10: BSE
A11: 2019-08-13 | B11: 538765 | C11: JSHL | D11: JAWAHAR LAL AGARWAL | E11: SELL | F11: 180,000 | G11: 8.23 | H11: BSE
A12: 2019-08-13 | B12: 538765 | C12: JSHL | D12: AVINASH TIWARI | E12: BUY | F12: 35,000 | G12: 8.07 | H12: BSE
A13: 2019-08-13 | B13: 538765 | C13: JSHL | D13: KRISHNA MURTHY MALYALA | E13: BUY | F13: 40,000 | G13: 8.21 | H13: BSE
A14: 2019-08-13 | B14: 538765 | C14: JSHL | D14: VIVEK DWIVEDI | E14: BUY | F14: 125,000 | G14: 8.24 | H14: BSE
A15: 2019-08-13 | B15: 538765 | C15: JSHL | D15: VIVEK DWIVEDI | E15: SELL | F15: 20,000 | G15: 8 | H15: BSE
A16: 2019-08-13 | B16: 540775 | C16: KHADIM | D16: SIDDHARTHA ROYBURMAN | E16: BUY | F16: 100,507 | G16: 194.98 | H16: BSE
A17: 2019-08-13 | B17: 542145 | C17: RONI | D17: OVERSKUD MULTI ASSET MANAGEMENT PRIVATE LIMITED | E17: SELL | F17: 36,000 | G17: 30.00 | H17: BSE
A18: 2019-08-13 | B18: 542145 | C18: RONI | D18: HARSHAL JAYANTILAL PARDESHI | E18: BUY | F18: 30,000 | G18: 30.00 | H18: BSE
A19: 2019-08-13 | B19: 539660 | C19: SAHYOGMULT | D19: MADANLAL AGARWAL | E19: SELL | F19: 59,892 | G19: 78.00 | H19: BSE
A20: 2019-08-13 | B20: 506655 | C20: SUDARSCHEM | D20: AMANSA HOLDINGS PRIVATE LIMITED | E20: BUY | F20: 625,391 | G20: 325 | H20: BSE
A21: 2019-08-13 | B21: 530045 | C21: TITANSEC | D21: AVB SHARES TRADING PRIVATE LIMITED | E21: SELL | F21: 197,126 | G21: 2.46 | H21: BSE
A22: 2019-08-13 | B22: 530045 | C22: TITANSEC | D22: CNETLINGO MARKETING PRIVATE LIMITED | E22: BUY | F22: 200,000 | G22: 2.46 | H22: BSE
A23: 2019-08-13 | B23: 511764 | C23: UPASAFN | D23: NIRVAAN CHOPRA | E23: BUY | F23: 23,275 | G23: 41.12 | H23: BSE
A24: 2019-08-13 | B24: ARVIND | C24: Arvind Limited | D24: TOWER RESEARCH CAPITAL MARKETS INDIA PRIVATE LIMITED | E24: BUY | F24: 1,579,269 | G24: 52.57 | H24: NSE
A25: 2019-08-13 | B25: DHFL | C25: Dewan Housing Fin Corp | D25: TOWER RESEARCH CAPITAL MARKETS INDIA PRIVATE LIMITED | E25: BUY | F25: 2,815,078 | G25: 48.22 | H25: NSE
A26: 2019-08-13 | B26: IBULHSGFIN | C26: Indiabulls Hsg Fin Ltd | D26: CROSSLAND TRADING CO | E26: BUY | F26: 2,266,372 | G26: 558.82 | H26: NSE
A27: 2019-08-13 | B27: JUSTDIAL | C27: Justdial Ltd. | D27: TOWER RESEARCH CAPITAL MARKETS INDIA PRIVATE LIMITED | E27: BUY | F27: 340,820 | G27: 678.16 | H27: NSE
A28: 2019-08-13 | B28: RELCAPITAL | C28: Reliance Capital Limited | D28: TOWER RESEARCH CAPITAL MARKETS INDIA PRIVATE LIMITED | E28: BUY | F28: 3,368,157 | G28: 48.12 | H28: NSE
A29: 2019-08-13 | B29: RELINFRA | C29: Reliance Infrastructu Ltd | D29: TOWER RESEARCH CAPITAL MARKETS INDIA PRIVATE LIMITED | E29: BUY | F29: 2,962,483 | G29: 46.23 | H29: NSE
A30: 2019-08-13 | B30: YESBANK | C30: Yes Bank Limited | D30: TOWER RESEARCH CAPITAL MARKETS INDIA PRIVATE LIMITED | E30: BUY | F30: 19,614,418 | G30: 78.16 | H30: NSE
A31: 2019-08-13 | B31: ARVIND | C31: Arvind Limited | D31: TOWER RESEARCH CAPITAL MARKETS INDIA PRIVATE LIMITED | E31: SELL | F31: 1,579,269 | G31: 52.55 | H31: NSE
A32: 2019-08-13 | B32: DHFL | C32: Dewan Housing Fin Corp | D32: TOWER RESEARCH CAPITAL MARKETS INDIA PRIVATE LIMITED | E32: SELL | F32: 2,815,078 | G32: 48.32 | H32: NSE
A33: 2019-08-13 | B33: IBULHSGFIN | C33: Indiabulls Hsg Fin Ltd | D33: CROSSLAND TRADING CO | E33: SELL | F33: 2,235,338 | G33: 559.13 | H33: NSE
A34: 2019-08-13 | B34: JUSTDIAL | C34: Justdial Ltd. | D34: TOWER RESEARCH CAPITAL MARKETS INDIA PRIVATE LIMITED | E34: SELL | F34: 340,820 | G34: 679.8 | H34: NSE
A35: 2019-08-13 | B35: RELCAPITAL | C35: Reliance Capital Limited | D35: TOWER RESEARCH CAPITAL MARKETS INDIA PRIVATE LIMITED | E35: SELL | F35: 3,368,157 | G35: 48.16 | H35: NSE
A36: 2019-08-13 | B36: RELINFRA | C36: Reliance Infrastructu Ltd | D36: TOWER RESEARCH CAPITAL MARKETS INDIA PRIVATE LIMITED | E36: SELL | F36: 2,962,483 | G36: 46.27 | H36: NSE
A37: 2019-08-13 | B37: YESBANK | C37: Yes Bank Limited | D37: TOWER RESEARCH CAPITAL MARKETS INDIA PRIVATE LIMITED | E37: SELL | F37: 19,614,418 | G37: 78.18 | H37: NSE

Sheet Call Tracker (Equity & F&O)
M5: Back To Main Page
A6: Retail Research Technical Calls & Fundamental Performance Report for the month of August-2019
M7: =Main!B10 -> 2019-08-14
B8: Positional Call
A9: Sr.no | B9: Date | D9: Company | E9: Rec | F9: Rec Price | G9: Stop Loss*** | H9: Call Closed At | I9: Target | J9: Remark | K9: Profit / Loss per Share | L9: Gain / Loss % | M9: Status | N9: Closed Date | O9: NSE Closed Price
A10: 1 | B10: 2019-07-10 | D10: TCS | E10: Buy | F10: 2110 | G10: 1973 | H10: 2211 | I10: 2295-2345 | J10: Profit of Rs.101/- | K10: =H10-F10 -> 101 | L10: =K10/F10 -> 4.79% | M10: Successful | N10: 2019-08-01 | R10: H
A11: 2 | B11: 2019-07-12 | D11: LT | E11: Buy<> | F11: 1457 | G11: 1353 | H11: 1352.5 | I11: 1630-1680 | J11: Loss of Rs.104.50/- | K11: =H11-F11 -> -104.5 | L11: =K11/F11 -> -7.17% | M11: Unsuccessful | N11: 2019-08-01 | R11: H
A12: 3 | B12: 2019-07-17 | D12: BHARTIARTL | E12: Buy | F12: 348 | G12: 322 | H12: 373 | I12: 392 -396 | J12: Profit of Rs.25/- | K12: 25 | L12: 7.18% | M12: Successful | N12: 2019-08-06 | R12: R
A13: 4 | B13: 2019-07-18 | D13: NAVINFLUOR | E13: Buy | F13: 612 | G13: 570 | H13: 647 | I13: 680 -700 | J13: Profit of Rs.35/- | K13: =H13-F13 -> 35 | L13: =K13/F13 -> 5.72% | M13: Successful | N13: 2019-08-02 | R13: H
A14: 5 | B14: 2019-07-19 | D14: ACC | E14: Buy | F14: 1620 | G14: 1518 | H14: 1515 | I14: 1750-1800 | J14: Loss of Rs.105/- | K14: -105 | L14: -6.48% | M14: Unsuccessful | N14: 2019-08-01 | R14: H
A15: 6 | B15: 2019-07-22 | D15: MOTHERSUMI | E15: Buy | F15: 110 | G15: 103 | H15: 101.5 | I15: 121-123 | J15: Loss of Rs.8.5/- | K15: -8.5 | L15: -7.73% | M15: Unsuccessful | N15: 2019-08-05 | R15: R
A16: 7 | B16: 2019-07-26 | D16: M&M | E16: Buy | F16: 552.5 | G16: 530 | H16: 525 | I16: 590-600 | J16: Loss of Rs.27.5/- | K16: -27.5 | L16: -4.98% | M16: Unsuccessful | N16: 2019-08-07 | R16: H
A17: 8 | B17: 2019-07-26 | D17: GLENMARK | E17: Buy | F17: 425.5 | G17: 395 | H17: 432 | I17: 490-500 | J17: Profit of Rs.6.50/- | K17: =H17-F17 -> 6.5 | L17: =K17/F17 -> 1.53% | M17: Neautral | N17: 2019-08-09 | R17: H
A18: 9 | B18: 2019-07-31 | D18: BANKBARODA | E18: Buy | F18: 106.5 | G18: 99 | H18: 99 | I18: 120-122 | J18: Loss of Rs.7.5/- | K18: =H18-F18 -> -7.5 | L18: =K18/F18 -> -7.04% | M18: Unsuccessful | N18: 2019-08-07 | R18: H
A19: 10 | B19: 2019-08-01 | D19: WIPRO | E19: Sell | F19: 276 | G19: 292 | H19: 265 | I19: 250-240 | J19: Profit of Rs.11/- | K19: =F19-H19 -> 11 | L19: =K19/F19 -> 3.99% | M19: Successful | N19: 2019-08-02 | R19: H
A20: 11 | B20: 2019-08-01 | D20: TATASTEEL | E20: Buy | F20: 428.5 | G20: 405 | H20: 400.5 | I20: 470-475 | J20: Loss of Rs.28/- | K20: =H20-F20 -> -28 | L20: -6.53% | M20: Unsuccessful | N20: 2019-08-05 | R20: R
A21: 12 | B21: 2019-08-01 | D21: FEDERALBNK | E21: Buy | F21: 90.5 | G21: 84.7 | H21: 83.8 | I21: 101-103 | J21: Loss of Rs.6.70/- | K21: =H21-F21 -> -6.7 | L21: =K21/F21 -> -7.40% | M21: Unsuccessful | N21: 2019-08-13 | R21: R
A22: 13 | B22: 2019-08-01 | D22: HDFCBANK | E22: Buy | F22: 2205-2215 | G22: 2130 | I22: 2320-2370 | J22: Open | O22: =VLOOKUP(D22,Sheet2!A25:M1664,6,0) -> 2220.35 | R22: H
A23: 14 | B23: 2019-08-02 | D23: LT | E23: Buy | F23: 1345-1355 | G23: 1270 | I23: 1500 | J23: Open | O23: =VLOOKUP(D23,Sheet2!A26:M1665,6,0) -> 1313.25 | R23: H
A24: 15 | B24: 2019-08-02 | D24: ULTRACEMCO | E24: Buy | F24: 4290-4305 | G24: 4080 | I24: 4700-4750 | J24: Open | O24: =VLOOKUP(D24,Sheet2!A27:M1666,6,0) -> 4181.15 | R24: R
A25: 16 | B25: 2019-08-07 | D25: BAJFINANCE | E25: Buy | F25: 3295 | G25: 3118 | H25: 3405 | I25: 3550-3650 | J25: Part Profit of Rs.110/- | K25: =H25-F25 -> 110 | L25: =K25/F25 -> 3.34% | M25: Successful | N25: 2019-08-09 | O25: =VLOOKUP(D25,Sheet2!A28:M1667,6,0) -> 3221.85 | R25: H
A26: 17 | B26: 2019-08-08 | D26: POWERGRID | E26: Buy | F26: 199 | G26: 187 | H26: 208.5 | I26: 220-224 | J26: Part Profit of Rs.9.50/- | K26: 9.5 | L26: 4.77% | M26: Successful | N26: 2019-08-09 | O26: =VLOOKUP(D26,Sheet2!A29:M1668,6,0) -> 202 | R26: R
A27: 18 | B27: 2019-08-09 | D27: ITC | E27: Buy | F27: 256-258 | G27: 246.3 | I27: 275-280 | J27: Open | O27: =VLOOKUP(D27,Sheet2!A30:M1669,6,0) -> 246.3 | R27: R
A28: 19 | B28: 2019-08-09 | D28: TATASTEEL | E28: Buy | F28: 365-370 | G28: 330 | I28: 440 | J28: Open | O28: =VLOOKUP(D28,Sheet2!A31:M1670,6,0) -> 348.7 | R28: R
A29: 20 | B29: 2019-08-09 | D29: M&M | E29: Buy | F29: 538-542 | G29: 515 | I29: 575-585 | J29: Open | O29: =VLOOKUP(D29,Sheet2!A32:M1671,6,0) -> 512.4 | R29: H
A30: 21 | B30: 2019-08-09 | D30: SBIN | E30: Buy | F30: 295-297 | G30: 279 | I30: 328-332 | J30: Open | O30: =VLOOKUP(D30,Sheet2!A33:M1672,6,0) -> 283.35 | R30: R
A31: 22 | B31: 2019-08-09 | D31: TATACHEM | E31: Buy | F31: 564-568 | G31: 534 | I31: 620-640 | J31: Open | O31: =VLOOKUP(D31,Sheet2!A34:M1673,6,0) -> 553.15 | R31: H
A32: 23 | B32: 2019-08-13 | D32: CONCOR | E32: Buy | F32: 476-480 | G32: 448 | I32: 520-540 | J32: Open | O32: =VLOOKUP(D32,Sheet2!A35:M1674,6,0) -> 474.05
A38: CLBS = Closing Basis *** | F38: Reinitiated $
A39: Dividend adjusted <> | F39: Revised stoploss #
A40: Part book {}
B42: Momentum Call
A43: Sr.no | B43: Date | D43: Company | E43: Rec | F43: Rec Price | G43: Stop Loss | H43: Call Closed At | I43: Target | J43: Remark | K43: Profit / Loss per Share/Lot | L43: Gain / Loss % | M43: Gain / Loss per Lot | N43: Lot | O43: Status | P43: Closed Date
A44: 1 | B44: 2019-08-01 | D44: KOTAKBANK AUG FUT | E44: Buy | F44: 1498 | G44: 1467 | H44: 1516.5 | I44: 1540-1550 | J44: Profit of Rs.18.50/- | K44: =H44-F44 -> 18.5 | M44: =N44*K44 -> 7400 | N44: 400 | O44: Successful | P44: 2019-08-02 | R44: N
A45: 2 | B45: 2019-08-01 | D45: COLPAL AUG FUT | E45: Buy | F45: 1180.5 | G45: 1163 | H45: 1191.5 | I45: 1210 | J45: Profit of Rs.11/- | K45: 11 | M45: =N45*K45 -> 7700 | N45: 700 | O45: Successful | P45: 2019-08-02 | R45: N
A46: 3 | B46: 2019-08-02 | D46: NIFTY AUG FUT | E46: Buy | F46: 10920 | G46: 10880 | H46: 10975 | I46: 11000 | J46: Profit of Rs.55/- | K46: 55 | M46: 4125 | N46: 75 | O46: Successful | P46: 2019-08-02 | R46: R
A47: 4 | B47: 2019-08-02 | D47: BANKNIFTY AUG FUT | E47: Buy | F47: 28175 | G47: 28040 | H47: 28345 | I47: 28400 | J47: Profit of Rs.170/- | K47: 170 | M47: 3400 | N47: 20 | O47: Successful | P47: 2019-08-02 | R47: R
A48: 5 | B48: 2019-08-02 | D48: ICICIBANK | E48: Buy | F48: 407 | G48: 395 | H48: 416 | I48: 430-435 | J48: Profit of Rs.9/- | K48: 9 | L48: =K48/F48 -> 2.21% | O48: Successful | P48: 2019-08-02 | R48: H
A49: 6 | B49: 2019-08-02 | D49: AMARAJABAT AUG FUT | E49: Buy | F49: 656.5 | G49: 638 | H49: 639.5 | I49: 680-685 | J49: Loss of Rs.17/- | K49: =H49-F49 -> -17 | M49: =N49*K49 -> -11900 | N49: 700 | O49: Successful | P49: 2019-08-02 | R49: N
A50: 7 | B50: 2019-08-02 | D50: ACC | E50: Buy | F50: 1529 | G50: 1480 | H50: 1561 | I50: 1580 | J50: Profit of Rs.32/- | K50: 32 | L50: =K50/F50 -> 2.09% | O50: Successful | P50: 2019-08-07 | R50: H
A51: 8 | B51: 2019-08-05 | D51: ICICIBANK | E51: Buy | F51: 400 | G51: 389 | H51: 409 | I51: 420 | J51: Profit of Rs.9/- | K51: =H51-F51 -> 9 | L51: =K51/F51 -> 2.25% | O51: Successful | P51: 2019-08-06 | R51: H
A52: 9 | B52: 2019-08-05 | D52: KOTAKBANK AUG FUT | E52: Buy | F52: 1481.5 | G52: 1450 | H52: 1499 | I52: 1540 | J52: Profit of Rs.17.5/- | K52: 17.5 | M52: =N52*K52 -> 7000 | N52: 400 | O52: Successful | P52: 2019-08-07 | R52: N
A53: 10 | B53: 2019-08-05 | D53: NIITTECH AUG FUT | E53: Buy | F53: 1200 | G53: 1183 | H53: 1211 | I53: 1235 | J53: Profit of Rs.11/- | K53: =H53-F53 -> 11 | M53: =N53*K53 -> 8250 | N53: 750 | O53: Successful | P53: 2019-08-06 | R53: N
A54: 11 | B54: 2019-08-07 | D54: NIFTY AUG FUT | E54: Buy | F54: 10970 | G54: 10920 | H54: 10920 | I54: 11100 | J54: Loss of Rs.50/- | K54: -50 | M54: -3750 | N54: 75 | O54: UnSuccessful | P54: 2019-08-07 | R54: R
A55: 12 | B55: 2019-08-07 | D55: BANKNIFTY AUG FUT | E55: Buy | F55: 28180 | G55: 28040 | H55: 28040 | I55: 28400 | J55: Loss of Rs.140/- | K55: -140 | M55: -2800 | N55: 20 | O55: UnSuccessful | P55: 2019-08-07 | R55: R
A56: 13 | B56: 2019-08-08 | D56: ICICIBANK | E56: Buy | F56: 407 | G56: 394 | H56: 412.5 | I56: 425 | J56: Profit of Rs.5.50/- | K56: 5.5 | L56: =K56/F56 -> 1.35% | O56: Successful | P56: 2019-08-08 | R56: H
A57: 14 | B57: 2019-08-08 | D57: RELIANCE | E57: Buy | F57: 1115 | G57: 1088 | H57: 1134 | I57: 1160 | J57: Profit of Rs.19/- | K57: 19 | L57: 1.70% | O57: Successful | P57: 2019-08-08 | R57: H
A58: 15 | B58: 2019-08-08 | D58: AMARAJABAT AUG FUT | E58: Buy | F58: 643 | G58: 626 | H58: 654 | I58: 670 | J58: Profit of Rs.11/- | K58: 11 | M58: =N58*K58 -> 7700 | N58: 700 | O58: Successful | P58: 2019-08-09 | R58: N
A59: 16 | B59: 2019-08-08 | D59: TATAELXSI AUG FUT | E59: Buy | F59: 628 | G59: 608 | H59: 641 | I59: 665 | J59: Profit of Rs.13/- | K59: 13 | M59: 7800 | N59: 600 | O59: Successful | P59: 2019-08-09 | R59: N
A60: 17 | B60: 2019-08-09 | D60: DABUR AUG FUT | E60: Buy | F60: 436.5 | G60: 426 | H60: 442.25 | I60: 455 | J60: Profit of Rs.5.75/- | K60: 5.75 | M60: 7187.5 | N60: 1250 | O60: Successful | P60: 2019-08-09 | R60: N
A61: 18 | B61: 2019-08-09 | D61: AMARAJABAT AUG FUT | E61: Buy | F61: 641 | G61: 624 | H61: 624 | I61: 670 | J61: Loss of Rs.17/- | K61: =H61-F61 -> -17 | M61: -11900 | N61: 700 | O61: UnSuccessful | P61: 2019-08-13 | R61: N
A62: 19 | B62: 2019-08-13 | D62: SIEMENS AUG FUT | E62: Buy | F62: 1164.5 | G62: 1139 | H62: 1142.5 | I62: 1200 | J62: Loss of Rs.22/- | K62: -22 | M62: -12100 | N62: 550 | O62: UnSuccessful | P62: 2019-08-13
A63: 20 | B63: 2019-08-13 | D63: NIFTY AUG FUT | E63: Buy | F63: 11015 | G63: 10940 | H63: 10940 | I63: 11150 | J63: Loss of Rs.75/- | K63: =H63-F63 -> -75 | M63: =N63*K63 -> -5625 | N63: 75 | O63: UnSuccessful | P63: 2019-08-13
A64: 21 | B64: 2019-08-13 | D64: NIFTY AUG FUT | E64: Buy | F64: 11070 | G64: 10990 | H64: 11125 | I64: 11200 | J64: Profit of Rs.5.75/- | K64: 55 | M64: 4125 | N64: 75 | O64: Successful | P64: 2019-08-13
A65: 22 | B65: 2019-08-13 | D65: COLPAL | E65: Buy | F65: 1218-1222 | G65: 1188 | I65: 1250-1260 | J65: Open
A73: CLBS = Closing Basis ***
A74: Dividend adjusted <> | F74: Reinitiated $
F75: Revised stoploss #
A77: Master Trade High Risk
A78: Sr.no | B78: Date | D78: Company | E78: Rec | F78: Rec Price | G78: Stop Loss | H78: Call Closed At | I78: Target | J78: Remark | K78: Profit / Loss per share | L78: Gain / Loss per Lot | M78: Lot | N78: Status | O78: Closed Date
A79: 1 | B79: 2019-08-01 | D79: NIFTY AUG FUT | E79: Buy | F79: 11075 | G79: 10945 | H79: 10945 | I79: 11350-11400 | J79: Loss of Rs.130/- | K79: =H79-F79 -> -130 | L79: =K79*M79 -> -9750 | M79: 75 | N79: Unsuccessful | O79: 2019-08-01 | R79: H
A88: Master Trade Medium Risk
A89: Sr.no | B89: Date | D89: Company | E89: Rec | F89: Rec Price | G89: Stop Loss | H89: Call Closed At | I89: Target | J89: Remark | K89: Profit/ Loss per lot | L89: Gain / Loss per Lot | M89: Lot | N89: Status | O89: Closed Date
A90: 1 | B90: 2019-07-29 | D90: NIFTY 01-AUG 11300 CE | E90: Buy | F90: 33 | H90: 0 | I90: 60-80 | J90: Loss of Rs.33/- | K90: =H90-F90 -> -33 | L90: =K90*M90 -> -2475 | M90: 75 | N90: Unsuccessful | O90: 2019-08-01 | R90: H
A91: 2 | B91: 2019-08-02 | D91: NIFTY 8-AUG 11100 CE | E91: Buy | F91: 42 | G91: 15 | H91: 57 | I91: 80-90 | J91: Profit of Rs.15/- | K91: =H91-F91 -> 15 | L91: =K91*M91 -> 1125 | M91: 75 | N91: Successful | O91: 2019-08-02 | R91: H
A92: 3 | B92: 2019-08-05 | D92: NIFTY 8-AUG 11000 CE | E92: Buy | F92: 33.5 | G92: 8 | H92: 45 | I92: 80 | J92: Profit of Rs.11.5/- | K92: =H92-F92 -> 11.5 | L92: =K92*M92 -> 862.5 | M92: 75 | N92: Successful | O92: 2019-08-05 | R92: H
A93: 4 | B93: 2019-08-05 | D93: NIFTY 8-AUG 11000 CE | E93: Buy | F93: 33 | G93: 8 | H93: 39.5 | I93: 80 | J93: Profit of Rs.6.5/- | K93: =H93-F93 -> 6.5 | L93: =K93*M93 -> 487.5 | M93: 75 | N93: Successful | O93: 2019-08-05 | R93: H
A94: 5 | B94: 2019-08-06 | D94: NIFTY 8-AUG 10900 PE | E94: Buy | F94: 33 | G94: 8 | H94: 43 | I94: 80-90 | J94: Profit of Rs.10/- | K94: =H94-F94 -> 10 | L94: =K94*M94 -> 750 | M94: 75 | N94: Successful | O94: 2019-08-06 | R94: N
A95: 6 | B95: 2019-08-07 | D95: NIFTY 8-AUG 11000 CE | E95: Buy | F95: 31 | G95: 8 | H95: 41.5 | I95: 80 | J95: Profit of Rs.10.5/- | K95: 10.5 | L95: 787.5 | M95: 75 | N95: Successful | O95: 2019-08-07 | R95: H
A96: 6 | B96: 2019-08-07 | D96: NIFTY 14-AUG 11100 CE | E96: Buy | F96: 41.5 | G96: 15 | H96: 50.5 | I96: 80 | J96: Profit of Rs.9/- | K96: =H96-F96 -> 9 | L96: =K96*M96 -> 675 | M96: 75 | N96: Successful | O96: 2019-08-08 | R96: H
A97: 7 | B97: 2019-08-08 | D97: NIFTY 14-AUG 11200 CE | E97: Buy | F97: 28 | H97: 39 | I97: 60-80 | J97: Profit of Rs.11/- | K97: =H97-F97 -> 11 | L97: =K97*M97 -> 825 | M97: 75 | N97: Successful | O97: 2019-08-08 | R97: H
A98: 8 | B98: 2019-08-09 | D98: NIFTY 14-AUG 11000 PE | E98: Buy | F98: 30 | G98: 14 | H98: 40 | I98: 50-60 | J98: Profit of Rs.10/- | K98: =H98-F98 -> 10 | L98: =K98*M98 -> 750 | M98: 75 | N98: Successful | O98: 2019-08-09 | R98: H
A99: 9 | B99: 2019-08-09 | D99: NIFTY 14-AUG 11250 CE | E99: Buy | F99: 27 | G99: 8 | H99: 11 | I99: 50-60 | J99: Loss of Rs.16/- | K99: -16 | L99: -1200 | M99: 75 | N99: Unsuccessful | O99: 2019-08-13 | R99: H
A110: Techno -Funda (positional)
A111: Sr.no | B111: Date | D111: Company | E111: Rec | F111: Rec Price | G111: Stop Loss*** | H111: Call Closed At | I111: Target | J111: Remark | K111: Profit / Loss per Share | L111: Gain / Loss % | M111: Status | N111: Closed Date | O111: NSE Closed Price
A112: 1 | B112: 2019-08-13 | D112: ITC | E112: Buy | F112: 246-248 | G112: 228 | I112: 290-300 | J112: Open
A116: CLBS = Closing Basis *** | F116: Reinitiated $
A117: Dividend adjusted <> | F117: Revised stoploss #
B122: Investment Idea
A123: Sr.no | B123: Date | D123: Company | E123: Rec | F123: Rec Price | G123: Point of Review | H123: Close Rate | I123: Target | J123: Remark | K123: Profit / Loss per Share | L123: Gain / Loss % | M123: Status | N123: Closed Date
A124: 1 | B124: 2013-11-01 | D124: L&T Finance Holding | E124: Accu | F124: 82.00 | G124: - | H124: 100 | I124: 100.00 | J124: Target Achieved | K124: =H124-F124 -> 18.00 | L124: =K124/F124 -> 21.95% | M124: Successful | N124: 2016-10-14
A125: 2 | B125: 2014-06-04 | D125: Finolex Inds | E125: Buy | F125: 257.00 | G125: - | H125: 300 | I125: 300.00 | J125: Target Achieved | K125: =H125-F125 -> 43.00 | L125: 16.73% | M125: Successful | N125: 2014-07-02
A126: 3 | B126: 2014-07-08 | D126: JK Cement | E126: Buy | F126: 393.00 | G126: - | H126: 468 | I126: 468.00 | J126: Target Achieved | K126: =H126-F126 -> 75.00 | L126: 19.08% | M126: Successful | N126: 2014-08-12
A127: 4 | B127: 2014-08-06 | D127: Finolex Cables | E127: Buy | F127: 205.00 | G127: - | H127: 275 | I127: 250.00 | J127: Target Achieved | K127: 70.00 | L127: 34.15% | M127: Successful | N127: 2014-11-19
A128: 5 | B128: 2014-09-04 | D128: Exide Inds | E128: Buy | F128: 162.00 | G128: - | H128: 190 | I128: 190.00 | J128: Target Achieved | K128: 28.00 | L128: 17.28% | M128: Successful | N128: 2015-01-02
A129: 6 | B129: 2014-09-04 | D129: Deepak Nitrite | E129: Buy | F129: 75.00 | G129: - | H129: 91.5 | I129: 95-100 | J129: Profit of Rs.16.50/- | K129: 16.50 | L129: 22.00% | M129: Successful | N129: 2014-11-11
A130: 7 | B130: 2014-10-01 | D130: Mercks | E130: Buy | F130: 850.00 | G130: - | H130: 982.5 | I130: 1050.00 | J130: Profit of Rs.132.50/- | K130: 132.50 | L130: 15.59% | M130: Successful | N130: 2015-02-04
A131: 8 | B131: 2014-10-01 | D131: Grindwell Norton | E131: Buy | F131: 475.00 | G131: - | H131: 515 | I131: 600.00 | J131: Profit of Rs.40/- | K131: 40.00 | L131: 8.42% | M131: Successful | N131: 2014-10-27
A132: 9 | B132: 2014-10-01 | D132: Snowman Logistics | E132: Buy | F132: 86.00 | G132: - | H132: 99 | I132: 140.00 | J132: Profit of Rs.13.00/- | K132: 13.00 | L132: 15.12% | M132: Successful | N132: 2014-10-27
A133: 10 | B133: 2014-10-14 | D133: Birla Corp | E133: Buy | F133: 496.60 | G133: - | H133: 621 | I133: 580.00 | J133: Target Achieved | K133: 124.40 | L133: 25.05% | M133: Successful | N133: 2016-08-23
A134: 11 | B134: 2014-10-14 | D134: Ultratech Cem | E134: Buy | F134: 2481.90 | G134: - | H134: 2840 | I134: 2870.00 | J134: Profit of Rs.358.10/- | K134: 358.10 | L134: 14.43% | M134: Successful | N134: 2015-01-13
A135: 12 | B135: 2014-10-16 | D135: Sintex Inds | E135: Buy | F135: 84.50 | G135: - | H135: 93 | I135: 110.00 | J135: Profit of Rs.8.50/- | K135: 8.50 | L135: 10.06% | M135: Successful | N135: 2014-10-27
A136: 13 | B136: 2014-10-16 | D136: HSIL | E136: Buy | F136: 401.00 | G136: - | H136: 428 | I136: 450.00 | J136: Profit of Rs.27.00/- | K136: 27.00 | L136: 6.73% | M136: Successful | N136: 2015-01-16
A137: 14 | B137: 2014-10-16 | D137: Eveready Inds | E137: Buy | F137: 101.00 | G137: - | H137: 112 | I137: 120.00 | J137: Profit of Rs.11.00/- | K137: 11.00 | L137: 10.89% | M137: Successful | N137: 2014-10-27
A138: 15 | B138: 2014-11-11 | D138: Pennar Inds | E138: Buy | F138: 59.00 | G138: - | H138: 76 | I138: 76.00 | J138: Target Achieved | K138: 17.00 | L138: 28.81% | M138: Successful | N138: 2017-10-24
A139: 16 | B139: 2014-11-11 | D139: Snowman Logistics | E139: Buy | F139: 99.00 | G139: - | H139: 120 | I139: 120.00 | J139: Profit of Rs.21/- | K139: 21.00 | L139: 21.21% | M139: Successful | N139: 2014-11-17
A140: 17 | B140: 2014-11-13 | D140: Dharamsi Morarji Chem | E140: Buy | F140: 22.00 | G140: - | H140: 33.55 | I140: 32.00 | J140: Profit of Rs 11.55/- | K140: 11.55 | L140: 52.50% | M140: Successful | N140: 2015-07-03
A141: 18 | B141: 2014-12-03 | D141: Tatachem | E141: Buy | F141: 440.00 | G141: - | H141: 520 | I141: 520.00 | J141: Profit of Rs 80.00/- | K141: 80.00 | L141: 18.18% | M141: Successful | N141: 2015-07-23
A142: 19 | B142: 2014-12-03 | D142: Advanta | E142: Buy | F142: 360.00 | G142: - | H142: 427 | I142: 425.00 | J142: Profit of Rs.67.00/- | K142: 67.00 | L142: 18.61% | M142: Successful | N142: 2015-02-23
A143: 20 | B143: 2015-01-08 | D143: GDL | E143: Buy | F143: 360.00 | G143: - | H143: 455 | I143: 420.00 | J143: Profit of Rs.95.00/- | K143: 95.00 | L143: 26.39% | M143: Successful | N143: 2015-01-20
A144: 21 | B144: 2015-01-08 | D144: NRB Bearing | E144: Buy | F144: 130.00 | H144: 175.5 | I144: 165.00 | J144: Profit of Rs 45.50/- | K144: 45.50 | L144: 35.00% | M144: Successful | N144: 2017-12-19
A145: 22 | B145: 2015-02-05 | D145: GSFC | E145: Accu | F145: 98.00 | H145: 120 | I145: 120.00 | J145: Target Achieved | K145: 22.00 | L145: 22.45% | M145: Successful | N145: 2017-01-18
A146: 23 | B146: 2015-02-05 | D146: Sundrmfast | E146: Accu | F146: 196.00 | H146: 262 | I146: 255.00 | J146: Target Achieved | K146: 66.00 | L146: 33.67% | M146: Successful | N146: 2016-08-17
A147: 24 | B147: 2015-03-04 | D147: GPPL | E147: Accu | F147: 235 | H147: 77.00 | I147: 280-285 | J147: Loss of Rs.158/- | K147: =H147-F147 -> -158.00 | L147: -67.23% | M147: Unsuccessful | N147: 2019-02-26
A148: 25 | B148: 2015-03-04 | D148: ORIENTCEM | E148: Accu | F148: 185.00 | H148: 224 | I148: 220-225 | J148: Target Achieved | K148: 39.00 | L148: =K148/F148 -> 21.08% | M148: Successful | N148: 2016-10-04
A149: 26 | B149: 2015-03-27 | D149: PFS | E149: Accu | F149: 49.5 | H149: 15.85 | I149: 67.00 | J149: Loss of Rs.33.65/- | K149: =H149-F149 -> -33.65 | L149: =K149/F149 -> -68% | M149: Unsuccessful | N149: 2019-06-11
A150: 27 | B150: 2015-03-30 | D150: Walchandnagar Ind Ltd | E150: Accu | F150: 183.50 | H150: 219 | I150: 218.00 | J150: Profit of Rs.35.50/- | K150: 35.50 | L150: =K150/F150 -> 19.35% | M150: Successful | N150: 2015-04-09
A151: 28 | B151: 2015-04-20 | D151: Kalpataru Power Transmission Ltd | E151: Accu | F151: =(227+237)/2 -> 232.00 | H151: 298 | I151: 298.00 | J151: Target Achieved | K151: 66.00 | L151: 28.45% | M151: Successful | N151: 2017-03-29
A152: 29 | B152: 2015-05-04 | D152: Mastek Ltd | E152: Buy | F152: 385.00 | H152: =212.5+331 -> 543.5 | I152: 510.00 | J152: Profit of Rs 158.50/- | K152: 158.50 | L152: 41.17% | M152: Successful | N152: 2015-08-19
A153: 30 | B153: 2015-05-04 | D153: Suprajit Eng | E153: Buy | F153: 115.50 | H153: 146 | I153: 142.00 | J153: Profit of Rs 30.50/- | K153: 30.50 | L153: 26.41% | M153: Successful | N153: 2015-07-17
A154: 31 | B154: 2015-05-27 | D154: TCI | E154: Buy | F154: 237.50 | H154: 279.5 | I154: 278.00 | J154: Target Achieved | K154: 42.00 | L154: 17.68% | M154: Successful | N154: 2015-08-06
A155: 32 | B155: 2015-06-19 | D155: HSIL | E155: Accu | F155: 340.00 | H155: 448 | I155: 448.00 | J155: Target Achieved | K155: 108.00 | L155: 31.76% | M155: Successful | N155: 2017-10-10
A156: 33 | B156: 2015-07-06 | D156: Capital First | E156: Accu | F156: 390.00 | H156: 460 | I156: 460.00 | J156: Target Achieved | K156: 70.00 | L156: 17.95% | M156: Successful | N156: 2016-04-18
A157: 34 | B157: 2015-07-10 | D157: Dolphin OffShore | E157: Accu | F157: 122.5 | H157: 61.00 | I157: 172.00 | J157: Loss of Rs.61.50/- | K157: -61.50 | L157: -50.20% | M157: Unsuccessful | N157: 2018-08-21
A158: 35 | B158: 2015-08-03 | D158: Allcargo logistics | E158: Accu | F158: 297.50 | H158: 350 | I158: 360.00 | J158: Profit of Rs 52.50/- | K158: 52.50 | L158: 17.65% | M158: Successful | N158: 2015-08-16
A159: 36 | B159: 2015-08-03 | D159: Camline Fine | E159: Accu | F159: 115.50 | H159: 149 | I159: 140.00 | J159: Profit of Rs 33.50/- | K159: 33.50 | L159: 29.00% | M159: Successful | N159: 2017-01-05
A160: 37 | B160: 2015-09-04 | D160: TCI | E160: Accu | F160: 226.00 | H160: 292 | I160: 292.00 | J160: Target Achieved | K160: 66.00 | L160: 29.20% | M160: Successful | N160: 2015-10-09
A161: 38 | B161: 2015-09-07 | D161: Kalpataru Power Transmission Ltd | E161: Accu | F161: 232.50 | H161: 312.5 | I161: 310.00 | J161: Target Achieved | K161: 80.00 | L161: 34.41% | M161: Successful | N161: 2017-03-29
A162: 39 | B162: 2015-09-21 | D162: LLOYD ELECTRIC & ENG LTD | E162: Accu | F162: 196.50 | H162: 238 | I162: 238.00 | J162: Target Achieved | K162: 41.50 | L162: 21.12% | M162: Successful | N162: 2015-10-14
A163: 40 | B163: 2015-09-24 | D163: L&T Finance Holding | E163: Accu | F163: 65.00 | H163: 82 | I163: 82.00 | J163: Target Achieved | K163: 17.00 | L163: 26.15% | M163: Successful | N163: 2016-07-27
A164: 41 | B164: 2015-10-14 | D164: KEC International ltd | E164: Accu | F164: 144.00 | H164: 182.5 | I164: 181.00 | J164: Target Achieved | K164: 38.50 | L164: 26.74% | M164: Successful | N164: 2017-03-23
A165: 42 | B165: 2015-10-14 | D165: Gruh Finance | E165: Accu | F165: 264.00 | H165: 311 | I165: 311.00 | J165: Target Achieved | K165: 47.00 | L165: 17.80% | M165: Successful | N165: 2016-08-22
A166: 43 | B166: 2015-11-10 | D166: Pidilitind | E166: Buy | F166: 549.50 | H166: 630 | I166: 630.00 | J166: Target Achieved | K166: 80.50 | L166: 14.65% | M166: Successful | N166: 2016-02-19
A167: 44 | B167: 2015-12-04 | D167: Zensar Technology | E167: Accu | F167: 1027.50 | H167: 1315 | I167: 1250.00 | J167: Target Achieved | K167: =H167-F167 -> 287.50 | L167: 27.98% | M167: Successful | N167: 2018-05-24
A168: 45 | B168: 2015-12-29 | D168: Vinati Organics Ltd | E168: Accu | F168: 465.00 | H168: 540 | I168: 540.00 | J168: Target Achieved | K168: 75.00 | L168: 16.13% | M168: Successful | N168: 2016-06-09
A169: 46 | B169: 2016-01-11 | D169: GSFC | E169: Buy | F169: 81.00 | H169: 110 | I169: 110.00 | J169: Target Achieved | K169: 29.00 | L169: 35.80% | M169: Successful | N169: 2017-01-10
A170: 47 | B170: 2016-01-13 | D170: SSWL | E170: Buy | F170: 417.50 | H170: 547 | I170: 535.00 | J170: Target Achieved | K170: 129.50 | L170: 31.02% | M170: Successful | N170: 2016-07-27
A171: 48 | B171: 2016-02-08 | D171: Persistent System Ltd | E171: Accu | F171: 650.00 | H171: 800 | I171: 800.00 | J171: Target Achieved | K171: 150.00 | L171: 23.08% | M171: Successful | N171: 2018-02-23
A172: 49 | B172: 2016-03-04 | D172: UPL | E172: Accu | F172: 437.50 | H172: 504.5 | I172: 522.00 | J172: Profit of Rs.67/- | K172: 67.00 | L172: 15.31% | M172: Successful | N172: 2016-04-20
A173: 50 | B173: 2016-03-09 | D173: Ashoka Buildcon Ltd | E173: Accu | F173: 189.50 | H173: 218 | I173: 218.00 | J173: Target Achieved | K173: 28.50 | L173: 15.04% | M173: Successful | N173: 2017-10-26
A174: 51 | B174: 2016-04-11 | D174: PTC INDIA FIN SERV LTD | E174: Accu | F174: 36.5 | H174: 15.85 | I174: 60.00 | J174: Loss of Rs.20.65/- | K174: -20.65 | L174: -56.58% | M174: Unsuccessful | N174: 2019-06-11
A175: 52 | B175: 2016-04-12 | D175: CAMLINFINE $ | E175: Accu | F175: 93.00 | H175: 149 | I175: 140.00 | J175: Profit of Rs 56/- | K175: 56.00 | L175: 60.22% | M175: Successful | N175: 2017-01-05
A176: 53 | B176: 2016-04-12 | D176: Greaves Cotton Ltd. | E176: Accu | F176: 130.00 | H176: 150 | I176: 150-155 | J176: Target Achieved | K176: 20.00 | L176: 15.38% | M176: Successful | N176: 2016-07-13
A177: 54 | B177: 2016-05-02 | D177: KEC International ltd $ | E177: Accu | F177: 127.50 | H177: 148 | I177: 148-150 | J177: Target Achieved | K177: 20.50 | L177: 16.08% | M177: Successful | N177: 2016-07-13
A178: 55 | B178: 2016-05-03 | D178: Mindtree | E178: Accu | F178: 675.00 | H178: 815 | I178: 790-800 | J178: Target Achieved | K178: 140.00 | L178: 20.74% | M178: Successful | N178: 2018-02-23
A179: 56 | B179: 2016-06-06 | D179: TRITURBINE | E179: Accu | F179: 110.00 | H179: 126.5 | I179: 125.00 | J179: Profit of Rs.16.50/- | K179: 16.50 | L179: 15.00% | M179: Successful | N179: 2016-07-01
A180: 57 | B180: 2016-06-17 | D180: Pennar Industries Ltd | E180: Accu | F180: 44.00 | H180: 69.5 | I180: 69.50 | J180: Profit of Rs.25.50/- | K180: 25.50 | L180: 57.95% | M180: Successful | N180: 2017-08-30
A181: 58 | B181: 2016-07-05 | D181: Bajaj Corp Ltd | E181: Accu | F181: 395 | H181: =(468.5+342.5)/2 -> 405.50 | I181: 510.00 | J181: Profit of Rs.10.50/- | K181: 10.50 | L181: 3% | M181: Neutral | N181: 2019-05-21
A182: 59 | B182: 2016-08-02 | D182: GPPL $ | E182: Buy | F182: 169.5 | H182: 77.00 | I182: 198-200 | J182: Loss of Rs.92.5/- | K182: -92.50 | L182: -54.57% | M182: Unsuccessful | N182: 2019-02-26
A183: 60 | B183: 2016-08-04 | D183: WONDERLA HOLIDAYS LTD | E183: Accu | F183: 400 | H183: 305.00 | I183: 475.00 | J183: Loss of Rs.95/- | K183: -95.00 | L183: -23.75% | M183: Unsuccessful | N183: 2019-05-21
A184: 61 | B184: 2016-08-11 | D184: CAMLINFINE | E184: Accu | F184: 86.50 | H184: 130 | I184: 130.00 | J184: Profit of Rs.43.50/- | K184: 43.50 | L184: 50.29% | M184: Successful | N184: 2017-12-22
A185: 62 | B185: 2016-08-18 | D185: GRANULES | E185: Accu | F185: 133.5 | H185: 126.50 | I185: 178.00 | J185: Exit | K185: -7.00 | L185: -5.24% | M185: Unsuccessful | N185: 2016-09-02
A186: 63 | B186: 2016-08-31 | D186: VA TECH WABAG | E186: Accu | F186: 560.00 | H186: 725 | I186: 725.00 | J186: Target Achieved | K186: 165.00 | L186: 29.46% | M186: Successful | N186: 2016-03-27
A187: 64 | B187: 2016-09-01 | D187: SKIPPER LIMITED | E187: Accu | F187: 160.50 | H187: 210 | I187: 210.00 | J187: Target Achieved | K187: 49.50 | L187: 30.84% | M187: Successful | N187: 2017-05-16
A188: 65 | B188: 2016-10-14 | D188: ASIANTILES | E188: Accu | F188: 280.00 | H188: 345 | I188: 345.00 | J188: Target Achieved | K188: 65.00 | L188: 23.21% | M188: Successful | N188: 2017-03-20
A189: 66 | B189: 2016-10-14 | D189: DEEPIND | E189: Accu | F189: 245.00 | H189: 325.5 | I189: 330.00 | J189: Profit of Rs.80.5/- | K189: 80.50 | L189: 32.86% | M189: Successful | N189: 2017-02-03
A190: 67 | B190: 2016-10-17 | D190: DCBBANK | E190: Accu | F190: 125.00 | H190: 160 | I190: 160.00 | J190: Target Achieved | K190: =H190-F190 -> 35.00 | L190: 28.00% | M190: Successful | N190: 2017-03-09
A191: 68 | B191: 2016-10-17 | D191: ORIENTREF | E191: Accu | F191: 114.00 | H191: 145 | I191: 145.00 | J191: Target Achieved | K191: 31.00 | L191: =K191/F191 -> 27.19% | M191: Successful | N191: 2017-05-04
A192: 69 | B192: 2016-10-17 | D192: GANECOS | E192: Accu | F192: 212.00 | H192: 280 | I192: 276.00 | J192: Profit of Rs.68/- | K192: 68.00 | L192: =K192/F192 -> 32.08% | M192: Successful | N192: 2017-05-03
A193: 70 | B193: 2016-11-04 | D193: NBCC | E193: Accu | F193: 155.00 | H193: 210 | I193: 210.00 | J193: Profit of Rs.55/- | K193: 55.00 | L193: =K193/F193 -> 35.48% | M193: Successful | N193: 2017-07-28
A194: 71 | B194: 2016-12-08 | D194: INFRATEL | E194: Accu | F194: 380.00 | H194: 478 | I194: 468.00 | J194: Target Achieved | K194: 98.00 | L194: =K194/F194 -> 25.79% | M194: Successful | N194: 2017-10-17
A195: 72 | B195: 2016-12-30 | D195: GODREJPROP | E195: Accu | F195: 305.00 | H195: 375 | I195: 375.00 | J195: Target Achieved | K195: 70.00 | L195: 22.95% | M195: Successful | N195: 2017-02-02
A196: 73 | B196: 2017-01-04 | D196: DEEPAKNTR | E196: Accu | F196: 99.50 | H196: 158 | I196: 158.00 | J196: Target Achieved | K196: 58.50 | L196: 58.79% | M196: Successful | N196: 2017-06-12
A197: 74 | B197: 2017-02-20 | D197: RECLTD | E197: Accu | F197: 140.50 | H197: 220 | I197: 220.00 | J197: Target Achieved | K197: 79.50 | L197: 56.58% | M197: Successful | N197: 2017-05-09
A198: 75 | B198: 2017-03-24 | D198: VRLLOG | E198: Accu | F198: 300.50 | H198: 417.5 | I198: 420.00 | J198: Profit of Rs.117/- | K198: 117.00 | L198: 38.94% | M198: Successful | N198: 2017-12-01
A199: 76 | B199: 2017-04-05 | D199: RATNAMANI | E199: Accu | F199: 785.00 | H199: 930 | I199: 920.00 | J199: Profit of Rs.145/- | K199: 145.00 | L199: 18.47% | M199: Successful | N199: 2017-08-29
A200: 77 | B200: 2017-04-12 | D200: DABUR | E200: Accu | F200: 289.50 | H200: 354 | I200: 360.00 | J200: Profit of Rs.64.5/- | K200: 64.50 | L200: =K200/F200 -> 22.28% | M200: Successful | N200: 2017-11-01
A201: 78 | B201: 2017-04-20 | D201: KPRMILL | E201: Accu | F201: 700.00 | H201: 840 | I201: 840.00 | J201: Profit of Rs.140/- | K201: 140.00 | L201: =K201/F201 -> 20.00% | M201: Successful | N201: 2017-06-07
A202: 79 | B202: 2017-05-22 | D202: GREAVESCOT | E202: Accu | F202: 153-158 | I202: 190.00 | J202: Open
A203: 80 | B203: 2017-06-01 | D203: ESSELPACK | E203: Accu | F203: 130.00 | H203: 144.25 | I203: 170.00 | J203: Profit of Rs.14.25/- | K203: =H203-F203 -> 14.25 | L203: =K203/F203 -> 10.96% | M203: Successful | N203: 2019-07-29
A204: 81 | B204: 2017-06-15 | D204: KEI | E204: Accu | F204: 214.50 | H204: 262 | I204: 262.00 | J204: Profit of Rs.47.5/- | K204: =H204-F204 -> 47.50 | L204: 22.14% | M204: Successful | N204: 2017-08-30
A205: 82 | B205: 2017-07-17 | D205: MAYURUNIQ | E205: Accu | F205: 370.00 | H205: 447.5 | I205: 450.00 | J205: Target Achieved | K205: 77.50 | L205: 20.95% | M205: Successful | N205: 2017-10-27
A206: 83 | B206: 2017-07-27 | D206: RAMCOCEM | E206: Accu | F206: 657.50 | H206: 825 | I206: 820.00 | J206: Target Achieved | K206: 167.50 | L206: 25.48% | M206: Successful | N206: 2017-12-21
A207: 84 | B207: 2017-08-17 | D207: FINPIPE | E207: Accu | F207: 605.00 | H207: 750 | I207: 750.00 | J207: Profit of Rs.145/- | K207: 145.00 | L207: 23.97% | M207: Successful | N207: 2017-10-19
A208: 85 | B208: 2017-09-01 | D208: SHK | E208: Accu | F208: 255 | H208: 217.25 | I208: 320.00 | J208: Loss of Rs.37.75/- | K208: -37.75 | L208: -15% | M208: Unsuccessful | N208: 2019-07-15
A209: 86 | B209: 2017-09-19 | D209: SKIPPER | E209: Accu | F209: 215.00 | H209: 258 | I209: 258.00 | J209: Target Achieved | K209: 43.00 | L209: 20.00% | M209: Successful | N209: 2017-11-01
A210: 87 | B210: 2017-09-20 | D210: CAMLINFINE | E210: Accu | F210: 75.00 | H210: 90 | I210: 90.00 | J210: Profit of Rs.15.00/- | K210: 15.00 | L210: 20.00% | M210: Successful | N210: 2017-10-11
A211: 88 | B211: 2017-10-03 | D211: GNA | E211: Accu | F211: 315.00 | H211: 392 | I211: 384.00 | J211: Profit of Rs.77/- | K211: 77.00 | L211: 24.44% | M211: Successful | N211: 2017-10-09
A212: 89 | B212: 2017-10-05 | D212: NOCIL | E212: Accu | F212: 145.00 | H212: 179 | I212: 180.00 | J212: Profit of Rs.34/- | K212: 34.00 | L212: 23.45% | M212: Successful | N212: 2017-10-17
A213: 90 | B213: 2017-10-06 | D213: CENTURYPLY | E213: Accu | F213: 256.00 | H213: 323 | I213: 320.00 | J213: Target Achieved | K213: 67.00 | L213: 26.17% | M213: Successful | N213: 2017-11-28
A214: 91 | B214: 2017-10-09 | D214: RECLTD | E214: Accu | F214: 152.5 | H214: 183.50 | I214: 210.00 | J214: Part Profit of Rs.31/- | K214: 31.00 | L214: 20% | M214: Successful | N214: 2017-11-03
A215: 92 | B215: 2017-10-09 | D215: EIHOTEL | E215: Accu | F215: 137.50 | H215: 184 | I215: 183.00 | J215: Profit of Rs.46.5/- | K215: 46.50 | L215: 33.82% | M215: Successful | N215: 2018-01-08
A216: 93 | B216: 2017-10-10 | D216: NRBBEARING | E216: Accu | F216: 125.50 | H216: 158 | I216: 155.00 | J216: Profit of Rs.32.5/- | K216: 32.50 | L216: 25.90% | M216: Successful | N216: 2017-11-28
A217: 94 | B217: 2017-11-07 | D217: HATSUN | E217: Accu | F217: 740.00 | H217: 892.5 | I217: 900.00 | J217: Profit of Rs.152.5/- | K217: 152.50 | L217: 20.61% | M217: Successful | N217: 2017-11-13
A218: 95 | B218: 2017-12-04 | D218: SANGHIIND | E218: Accu | F218: 118.50 | H218: 143.5 | I218: 145.00 | J218: Profit of Rs.25/- | K218: 25.00 | L218: 21.10% | M218: Successful | N218: 2017-12-28
A219: 96 | B219: 2017-12-05 | D219: ALLCARGO | E219: Accu | F219: 177.5 | H219: 215.00 | I219: 230.00 | J219: Part Profit of Rs.37.5/- | K219: 37.50 | L219: 21% | M219: Successful | N219: 2017-12-27
A220: 97 | B220: 2017-12-21 | D220: KAJARIACER | E220: Accu | F220: 715 | H220: 500.00 | I220: 872.00 | J220: Loss of Rs.215/- | K220: =H220-F220 -> -215.00 | L220: =K220/F220 -> -30.07% | M220: Unsuccessful | N220: 2019-07-24
A221: 98 | B221: 2018-02-07 | D221: GREAVESCOT | E221: Accu | F221: 130-132 | I221: 190.00 | J221: Open
A222: 99 | B222: 2018-02-27 | D222: MOLDTKPAC | E222: Accu | F222: 320-330 | I222: 398.00 | J222: Open
A223: 100 | B223: 2018-03-05 | D223: LICHSGFIN | E223: Accu | F223: 505-515 | I223: 672.00 | J223: Open
A224: 101 | B224: 2018-04-02 | D224: EVERESTIND | E224: Accu | F224: 492.5 | H224: 589.00 | I224: 613.00 | J224: Part Profit of Rs.37.5/- | K224: =H224-F224 -> 96.50 | L224: =K224/F224 -> 20% | M224: Successful | N224: 2018-08-21
A225: 102 | B225: 2018-04-04 | D225: GPPL | E225: Accu | F225: 141.5 | H225: 77.00 | I225: 180.00 | J225: Loss of Rs.64.5/- | K225: =H225-F225 -> -64.50 | L225: =K225/F225 -> -45.58% | M225: Unsuccessful | N225: 2019-02-26
A226: 103 | B226: 2018-04-19 | D226: MANPASAND | E226: Accu | F226: 430 | H226: 220.00 | I226: 537.00 | J226: Loss of Rs.210/- | K226: =H226-F226 -> -210.00 | L226: =K226/F226 -> -48.84% | M226: Unsuccessful | N226: 2018-06-01
A227: 104 | B227: 2018-04-30 | D227: HEIDELBERG | E227: Accu | F227: 156 | H227: 196.00 | I227: 196.00 | J227: Profit of Rs.40/- | K227: =H227-F227 -> 40.00 | L227: =K227/F227 -> 26% | M227: Successful | N227: 2019-05-20
A228: 105 | B228: 2018-06-07 | D228: KEC | E228: Accu | F228: 340-345 | I228: 439.00 | J228: Open
A229: 106 | B229: 2018-07-04 | D229: ASHOKLEY | E229: Accu | F229: 125-130 | I229: 170.00 | J229: Open
A230: 107 | B230: 2018-08-06 | D230: GABRIEL | E230: Accu | F230: 150.00 | H230: 102 | I230: 182.00 | J230: Loss of Rs.48 /- | K230: =H230-F230 -> -48.00 | L230: =K230/F230 -> -32.00% | M230: Unsuccessful | N230: 2019-07-15
A231: 108 | B231: 2018-08-29 | D231: GRINDWELL | E231: Accu | F231: 525.00 | H231: 585 | I231: 635.00 | J231: Profit of Rs.60- | K231: =H231-F231 -> 60.00 | L231: =K231/F231 -> 11.43% | N231: 2019-07-16
A232: 109 | B232: 2018-10-22 | D232: FINPIPE | E232: Accu | F232: 475.00 | H232: 574 | I232: 570.00 | J232: Target Achieved | K232: =H232-F232 -> 99.00 | L232: =K232/F232 -> 20.84% | M232: Successful | N232: 2018-10-30
A233: 110 | B233: 2018-10-23 | D233: JKPAPER | E233: Accu | F233: 158-162 | I233: 191.00 | J233: Open
A234: 111 | B234: 2018-10-24 | D234: GULFOILLUB | E234: Accu | F234: 707.50 | H234: 872 | I234: 872.00 | J234: Target Achieved | K234: =H234-F234 -> 164.50 | L234: =K234/F234 -> 23.25% | M234: Successful | N234: 2019-01-17
A235: 112 | B235: 2018-10-25 | D235: GODREJCP | E235: Accu | F235: 707.5 | H235: 850.00 | I235: 890.00 | J235: Part Profit of Rs.142.5/- | K235: =H235-F235 -> 142.50 | L235: =K235/F235 -> 20% | M235: Successful | N235: 2018-12-19
A236: 113 | B236: 2018-10-25 | D236: DBCORP | E236: Accu | F236: 164.00 | H236: 204 | I236: 209.00 | J236: Profit of Rs.40/- | K236: =H236-F236 -> 40.00 | L236: =K236/F236 -> 24.39% | M236: Successful | N236: 2019-03-15
A237: 114 | B237: 2018-10-26 | D237: RITES | E237: Accu | F237: 240.00 | H237: 297 | I237: 297.00 | J237: Target Achieved | K237: =H237-F237 -> 57.00 | L237: =K237/F237 -> 23.75% | M237: Successful | N237: 2018-11-13
A238: 115 | B238: 2018-12-05 | D238: CCL | E238: Accu | F238: 260-270 | I238: 321.00 | J238: Open
A239: 116 | B239: 2018-12-05 | D239: BRIGADE | E239: Accu | F239: 202.50 | H239: 255 | I239: 252.00 | J239: Target Achieved | K239: =H239-F239 -> 52.50 | L239: =K239/F239 -> 25.93% | M239: Successful | N239: 2019-03-18
A240: 117 | B240: 2018-12-31 | D240: JKCEMENT | E240: Accu | F240: 710.00 | H240: 866 | I240: 866.00 | J240: Target Achieved | K240: =H240-F240 -> 156.00 | L240: =K240/F240 -> 21.97% | M240: Successful | N240: 2019-03-29
A241: 118 | B241: 2019-01-04 | D241: MGL | E241: Accu | F241: 890-900 | I241: 1185.00 | J241: Open
A242: 119 | B242: 2019-02-26 | D242: MARICO | E242: Accu | F242: 335-345 | I242: 411.00 | J242: Open
A243: 120 | B243: 2019-04-04 | D243: ITDCEM | E243: Accu | F243: 128-132 | I243: 158.00 | J243: Open
... 28 more rows

Sheet Sheet2 (hidden)
A1: SYMBOL | B1: SERIES | C1: OPEN | D1: HIGH | E1: LOW | F1: CLOSE | G1: LAST | H1: PREVCLOSE | I1: TOTTRDQTY | J1: TOTTRDVAL | K1: TIMESTAMP | L1: TOTALTRADES | M1: ISIN | N1: ISIN
A2: 20MICRONS | B2: EQ | C2: 36.95 | D2: 38 | E2: 34 | F2: 34.55 | G2: 34 | H2: 36.15 | I2: 104852 | J2: 3859383.85 | K2: 2019-08-13 | L2: 714 | M2: INE144J01027
A3: 21STCENMGM | B3: EQ | C3: 13.5 | D3: 13.5 | E3: 13.25 | F3: 13.25 | G3: 13.25 | H3: 13.5 | I3: 1357 | J3: 18105.45 | K3: 2019-08-13 | L3: 12 | M3: INE253B01015
A4: 3IINFOTECH | B4: EQ | C4: 2.1 | D4: 2.15 | E4: 1.9 | F4: 1.95 | G4: 2 | H4: 2.05 | I4: 2089151 | J4: 4182707.05 | K4: 2019-08-13 | L4: 911 | M4: INE748C01020
A5: 3MINDIA | B5: EQ | C5: 21260 | D5: 21699.9 | E5: 20598.95 | F5: 21212.65 | G5: 21695 | H5: 21225.95 | I5: 3471 | J5: 73455377.2 | K5: 2019-08-13 | L5: 886 | M5: INE470A01017
A6: 3PLAND | B6: EQ | C6: 6.15 | D6: 6.8 | E6: 6.15 | F6: 6.8 | G6: 6.8 | H6: 6.8 | I6: 87 | J6: 576.05 | K6: 2019-08-13 | L6: 9 | M6: INE105C01023
A7: 5PAISA | B7: EQ | C7: 134.95 | D7: 135.85 | E7: 129.95 | F7: 135.8 | G7: 135.85 | H7: 129.4 | I7: 14715 | J7: 1998346.45 | K7: 2019-08-13 | L7: 327 | M7: INE618L01018
A8: 63MOONS | B8: EQ | C8: 98.05 | D8: 98.05 | E8: 91 | F8: 91.7 | G8: 91.4 | H8: 99.65 | I8: 167004 | J8: 15566110.45 | K8: 2019-08-13 | L8: 2372 | M8: INE111B01023
A9: 8KMILES | B9: EQ | C9: 58.95 | D9: 59 | E9: 54.6 | F9: 56.1 | G9: 56.75 | H9: 56.5 | I9: 110082 | J9: 6290444.75 | K9: 2019-08-13 | L9: 1647 | M9: INE650K01021
A10: A2ZINFRA | B10: EQ | C10: 10.4 | D10: 10.4 | E10: 9.85 | F10: 9.9 | G10: 9.95 | H10: 10.2 | I10: 228467 | J10: 2285389.9 | K10: 2019-08-13 | L10: 410 | M10: INE619I01012
A11: AARTIDRUGS | B11: EQ | C11: 483 | D11: 483 | E11: 452 | F11: 462.3 | G11: 462 | H11: 465.1 | I11: 4427 | J11: 2042648.65 | K11: 2019-08-13 | L11: 262 | M11: INE767A01016
A12: AARTIIND | B12: EQ | C12: 1770 | D12: 1789.8 | E12: 1702 | F12: 1724.55 | G12: 1729.9 | H12: 1767.05 | I12: 35647 | J12: 62307943.8 | K12: 2019-08-13 | L12: 8383 | M12: INE769A01020
A13: AARVEEDEN | B13: EQ | C13: 16.4 | D13: 16.5 | E13: 13.9 | F13: 14.2 | G13: 13.9 | H13: 17.35 | I13: 83844 | J13: 1216207.5 | K13: 2019-08-13 | L13: 481 | M13: INE273D01019
A14: AAVAS | B14: EQ | C14: 1511 | D14: 1547.75 | E14: 1511 | F14: 1528.4 | G14: 1519 | H14: 1535.6 | I14: 30990 | J14: 47615246 | K14: 2019-08-13 | L14: 4338 | M14: INE216P01012
A15: ABAN | B15: EQ | C15: 25.65 | D15: 26.4 | E15: 24.7 | F15: 25.45 | G15: 26 | H15: 25.65 | I15: 87671 | J15: 2213269.05 | K15: 2019-08-13 | L15: 896 | M15: INE421A01028
A16: ABB | B16: EQ | C16: 1391.8 | D16: 1407 | E16: 1372 | F16: 1379.1 | G16: 1374 | H16: 1396.7 | I16: 55372 | J16: 76896892.3 | K16: 2019-08-13 | L16: 4425 | M16: INE117A01022
A17: ABBOTINDIA | B17: EQ | C17: 9018.4 | D17: 9299 | E17: 8772.95 | F17: 9116.8 | G17: 9115 | H17: 9048.85 | I17: 17233 | J17: 156889594.8 | K17: 2019-08-13 | L17: 2157 | M17: INE358A01014
A18: ABCAPITAL | B18: EQ | C18: 90 | D18: 90.3 | E18: 85.7 | F18: 86.35 | G18: 86.1 | H18: 89.3 | I18: 1023415 | J18: 89813045.55 | K18: 2019-08-13 | L18: 12121 | M18: INE674K01013
A19: ABFRL | B19: EQ | C19: 206.55 | D19: 208.85 | E19: 200.1 | F19: 201.1 | G19: 200.1 | H19: 206.3 | I19: 557661 | J19: 112945363 | K19: 2019-08-13 | L19: 15907 | M19: INE647O01011
A20: ABSLNN50ET | B20: EQ | C20: 262.5 | D20: 262.5 | E20: 257.74 | F20: 257.74 | G20: 257.74 | H20: 263.01 | I20: 77 | J20: 20105.55 | K20: 2019-08-13 | L20: 6 | M20: INF209KB1B87
A21: ACC | B21: EQ | C21: 1573.4 | D21: 1586.8 | E21: 1538.35 | F21: 1547.1 | G21: 1542.6 | H21: 1574.6 | I21: 419671 | J21: 657617607.5 | K21: 2019-08-13 | L21: 34170 | M21: INE012A01025
A22: ACCELYA | B22: EQ | C22: 760 | D22: 790 | E22: 760 | F22: 771.6 | G22: 773 | H22: 768.7 | I22: 2708 | J22: 2097603.1 | K22: 2019-08-13 | L22: 290 | M22: INE793A01012
A23: ACE | B23: EQ | C23: 71.95 | D23: 71.95 | E23: 67 | F23: 67.75 | G23: 67.25 | H23: 69.15 | I23: 72930 | J23: 5008793.7 | K23: 2019-08-13 | L23: 954 | M23: INE731H01025
A24: ADANIENT | B24: EQ | C24: 133 | D24: 133.9 | E24: 128.6 | F24: 130.3 | G24: 129.65 | H24: 132.4 | I24: 4226112 | J24: 555476397 | K24: 2019-08-13 | L24: 20073 | M24: INE423A01024
A25: ADANIGAS | B25: EQ | C25: 157.55 | D25: 157.95 | E25: 151.5 | F25: 152.7 | G25: 152.6 | H25: 157.65 | I25: 352156 | J25: 54258584.95 | K25: 2019-08-13 | L25: 3247 | M25: INE399L01023
A26: ADANIGREEN | B26: EQ | C26: 47 | D26: 47.4 | E26: 45.9 | F26: 46.5 | G26: 46.4 | H26: 46.4 | I26: 393919 | J26: 18352543.55 | K26: 2019-08-13 | L26: 1790 | M26: INE364U01010
A27: ADANIPORTS | B27: EQ | C27: 376.4 | D27: 379.55 | E27: 359.1 | F27: 360.55 | G27: 360.5 | H27: 376.6 | I27: 2576776 | J27: 949886677.4 | K27: 2019-08-13 | L27: 48081 | M27: INE742F01042
A28: ADANIPOWER | B28: EQ | C28: 60.5 | D28: 61.3 | E28: 58.15 | F28: 58.5 | G28: 58.45 | H28: 60.55 | I28: 7997922 | J28: 476094002.6 | K28: 2019-08-13 | L28: 17609 | M28: INE814H01011
A29: ADANITRANS | B29: EQ | C29: 218 | D29: 219 | E29: 213.05 | F29: 214.45 | G29: 214 | H29: 218.15 | I29: 36136 | J29: 7798361.6 | K29: 2019-08-13 | L29: 1492 | M29: INE931S01010
A30: ADFFOODS | B30: EQ | C30: 256 | D30: 262 | E30: 252 | F30: 253 | G30: 253 | H30: 248.95 | I30: 30815 | J30: 7921572 | K30: 2019-08-13 | L30: 1341 | M30: INE982B01019
A31: ADHUNIK | B31: EQ | C31: 1.2 | D31: 1.3 | E31: 1.2 | F31: 1.25 | G31: 1.25 | H31: 1.25 | I31: 51358 | J31: 65268 | K31: 2019-08-13 | L31: 37 | M31: INE400H01019
A32: ADHUNIKIND | B32: EQ | C32: 81 | D32: 86 | E32: 80.35 | F32: 84.45 | G32: 85.4 | H32: 81.45 | I32: 5784 | J32: 480206.4 | K32: 2019-08-13 | L32: 89 | M32: INE452L01012
A33: ADLABS | B33: EQ | C33: 4.05 | D33: 4.05 | E33: 3.85 | F33: 3.9 | G33: 3.85 | H33: 4 | I33: 66973 | J33: 265349.15 | K33: 2019-08-13 | L33: 238 | M33: INE172N01012
A34: ADORWELD | B34: EQ | C34: 298 | D34: 299.95 | E34: 290 | F34: 291.45 | G34: 291.5 | H34: 298.55 | I34: 1868 | J34: 547623.1 | K34: 2019-08-13 | L34: 160 | M34: INE045A01017
A35: ADROITINFO | B35: EQ | C35: 11 | D35: 11 | E35: 10.05 | F35: 10.35 | G35: 10.05 | H35: 11 | I35: 935 | J35: 9905.6 | K35: 2019-08-13 | L35: 11 | M35: INE737B01033
A36: ADSL | B36: EQ | C36: 12.85 | D36: 13.2 | E36: 12.05 | F36: 12.65 | G36: 12.95 | H36: 12.05 | I36: 40360 | J36: 506778.95 | K36: 2019-08-13 | L36: 174 | M36: INE102I01027
A37: ADVANIHOTR | B37: EQ | C37: 55 | D37: 57.8 | E37: 54.5 | F37: 54.95 | G37: 54.5 | H37: 54.65 | I37: 1545 | J37: 85562.65 | K37: 2019-08-13 | L37: 59 | M37: INE199C01026
A38: ADVENZYMES | B38: EQ | C38: 155 | D38: 155.45 | E38: 150.1 | F38: 151.05 | G38: 150.2 | H38: 155.4 | I38: 19103 | J38: 2914418.6 | K38: 2019-08-13 | L38: 682 | M38: INE837H01020
A39: AEGISCHEM | B39: EQ | C39: 198.7 | D39: 203.95 | E39: 197.05 | F39: 198.4 | G39: 198.95 | H39: 198.7 | I39: 83155 | J39: 16701894.95 | K39: 2019-08-13 | L39: 4111 | M39: INE208C01025
A40: AFFLE | B40: EQ | C40: 849.7 | D40: 859.7 | E40: 828.05 | F40: 832.85 | G40: 830 | H40: 843.05 | I40: 191338 | J40: 161149592.9 | K40: 2019-08-13 | L40: 10362 | M40: INE00WC01019
A41: AGARIND | B41: EQ | C41: 123 | D41: 123 | E41: 115.05 | F41: 116.85 | G41: 116.05 | H41: 117.75 | I41: 2605 | J41: 307052 | K41: 2019-08-13 | L41: 54 | M41: INE204E01012
A42: AGCNET | B42: EQ | C42: 84 | D42: 84.2 | E42: 76.3 | F42: 78.4 | G42: 76.3 | H42: 83.55 | I42: 1034 | J42: 81791.4 | K42: 2019-08-13 | L42: 45 | M42: INE676A01019
A43: AGLSL | B43: EQ | C43: 44.5 | D43: 44.5 | E43: 44.5 | F43: 44.5 | G43: 44.5 | H43: 44.1 | I43: 90 | J43: 4005 | K43: 2019-08-13 | L43: 1 | M43: INE517U01013
A44: AGRITECH | B44: EQ | C44: 50.45 | D44: 51 | E44: 47.3 | F44: 47.95 | G44: 48.35 | H44: 50.85 | I44: 14314 | J44: 700312.25 | K44: 2019-08-13 | L44: 308 | M44: INE449G01018
A45: AGROPHOS | B45: BE | C45: 92 | D45: 92 | E45: 87.4 | F45: 88.7 | G45: 88.7 | H45: 92 | I45: 142 | J45: 12598.4 | K45: 2019-08-13 | L45: 7 | M45: INE740V01019
A46: AHLEAST | B46: EQ | C46: 175.6 | D46: 175.75 | E46: 175.5 | F46: 175.75 | G46: 175.75 | H46: 181.35 | I46: 130 | J46: 22821.85 | K46: 2019-08-13 | L46: 17 | M46: INE926K01017
A47: AHLUCONT | B47: EQ | C47: 281.35 | D47: 283 | E47: 273.25 | F47: 281 | G47: 281 | H47: 283.05 | I47: 2382 | J47: 667642.2 | K47: 2019-08-13 | L47: 117 | M47: INE758C01029
A48: AHLWEST | B48: EQ | C48: 262 | D48: 277 | E48: 256 | F48: 264.1 | G48: 259 | H48: 273.35 | I48: 265 | J48: 69771 | K48: 2019-08-13 | L48: 26 | M48: INE915K01010
A49: AIAENG | B49: EQ | C49: 1680.05 | D49: 1690.55 | E49: 1641.3 | F49: 1649.95 | G49: 1649.95 | H49: 1680.05 | I49: 92488 | J49: 152800052.1 | K49: 2019-08-13 | L49: 5600 | M49: INE212H01026
A50: AIONJSW | B50: EQ | C50: 15.3 | D50: 15.5 | E50: 14.2 | F50: 14.85 | G50: 14.85 | H50: 15.35 | I50: 9670 | J50: 144185.8 | K50: 2019-08-13 | L50: 129 | M50: INE743C01021
A51: AIRAN | B51: EQ | C51: 19.75 | D51: 20.25 | E51: 19 | F51: 20.25 | G51: 20.25 | H51: 19.7 | I51: 2167 | J51: 43414 | K51: 2019-08-13 | L51: 25 | M51: INE645W01026
A52: AJANTPHARM | B52: EQ | C52: 944 | D52: 995.9 | E52: 921.25 | F52: 942.65 | G52: 929.4 | H52: 952.7 | I52: 376688 | J52: 366408410.6 | K52: 2019-08-13 | L52: 13350 | M52: INE031B01049
A53: AJMERA | B53: EQ | C53: 131.05 | D53: 132.9 | E53: 122.5 | F53: 124 | G53: 122.9 | H53: 133 | I53: 31032 | J53: 3910867.8 | K53: 2019-08-13 | L53: 929 | M53: INE298G01027
A54: AKSHARCHEM | B54: EQ | C54: 239 | D54: 243.1 | E54: 207.15 | F54: 220.45 | G54: 222 | H54: 235.05 | I54: 5395 | J54: 1200154.45 | K54: 2019-08-13 | L54: 340 | M54: INE542B01011
A55: AKSHOPTFBR | B55: EQ | C55: 8.85 | D55: 8.85 | E55: 8.25 | F55: 8.3 | G55: 8.35 | H55: 8.85 | I55: 231894 | J55: 1979850.45 | K55: 2019-08-13 | L55: 818 | M55: INE523B01011
A56: AKZOINDIA | B56: EQ | C56: 1749 | D56: 1779.9 | E56: 1702.5 | F56: 1716.75 | G56: 1719.75 | H56: 1732.35 | I56: 7769 | J56: 13353538.3 | K56: 2019-08-13 | L56: 895 | M56: INE133A01011
A57: ALANKIT | B57: EQ | C57: 23 | D57: 23.25 | E57: 19.3 | F57: 20.5 | G57: 19.8 | H57: 23.25 | I57: 416219 | J57: 8855950.35 | K57: 2019-08-13 | L57: 2113 | M57: INE914E01040
A58: ALBERTDAVD | B58: EQ | C58: 379 | D58: 414.7 | E58: 372 | F58: 375.55 | G58: 375.55 | H58: 367.9 | I58: 19525 | J58: 7546491.05 | K58: 2019-08-13 | L58: 730 | M58: INE155C01010
A59: ALBK | B59: EQ | C59: 37.2 | D59: 37.2 | E59: 36.2 | F59: 36.45 | G59: 36.25 | H59: 36.9 | I59: 707006 | J59: 25942083.65 | K59: 2019-08-13 | L59: 2541 | M59: INE428A01015
A60: ALCHEM | B60: BE | C60: 1.1 | D60: 1.15 | E60: 1.1 | F60: 1.15 | G60: 1.15 | H60: 1.1 | I60: 213 | J60: 239.4 | K60: 2019-08-13 | L60: 10 | M60: INE964B01033
A61: ALEMBICLTD | B61: EQ | C61: 45 | D61: 47 | E61: 44.1 | F61: 46.05 | G61: 46 | H61: 44.55 | I61: 445210 | J61: 20496338.1 | K61: 2019-08-13 | L61: 2133 | M61: INE426A01027
A62: ALICON | B62: EQ | C62: 408.95 | D62: 413 | E62: 391.7 | F62: 392.85 | G62: 392 | H62: 410.9 | I62: 3289 | J62: 1322083.05 | K62: 2019-08-13 | L62: 258 | M62: INE062D01024
A63: ALKALI | B63: EQ | C63: 43 | D63: 43.45 | E63: 41 | F63: 41.6 | G63: 41.5 | H63: 42.35 | I63: 9414 | J63: 392676.85 | K63: 2019-08-13 | L63: 147 | M63: INE773I01017
A64: ALKEM | B64: EQ | C64: 1799 | D64: 1810 | E64: 1747 | F64: 1790.45 | G64: 1810 | H64: 1762.5 | I64: 26775 | J64: 47709602.95 | K64: 2019-08-13 | L64: 2002 | M64: INE540L01014
A65: ALKYLAMINE | B65: EQ | C65: 810.2 | D65: 824.7 | E65: 770 | F65: 771.9 | G65: 770 | H65: 792.45 | I65: 7951 | J65: 6318349.15 | K65: 2019-08-13 | L65: 446 | M65: INE150B01021
A66: ALLCARGO | B66: EQ | C66: 96.95 | D66: 97.65 | E66: 93.5 | F66: 94.55 | G66: 93.5 | H66: 96.95 | I66: 59830 | J66: 5743352 | K66: 2019-08-13 | L66: 1350 | M66: INE418H01029
A67: ALLSEC | B67: EQ | C67: 276.5 | D67: 278.75 | E67: 274.9 | F67: 275 | G67: 275 | H67: 279.75 | I67: 1555 | J67: 428701 | K67: 2019-08-13 | L67: 632 | M67: INE835G01018
A68: ALMONDZ | B68: EQ | C68: 12.5 | D68: 12.5 | E68: 11.95 | F68: 11.95 | G68: 11.95 | H68: 12.5 | I68: 512 | J68: 6233.8 | K68: 2019-08-13 | L68: 10 | M68: INE326B01027
A69: ALOKTEXT | B69: EQ | C69: 2.8 | D69: 3 | E69: 2.75 | F69: 3 | G69: 3 | H69: 2.75 | I69: 4056470 | J69: 12052998.65 | K69: 2019-08-13 | L69: 1027 | M69: INE270A01011
A70: ALPA | B70: EQ | C70: 15.7 | D70: 16.6 | E70: 15.4 | F70: 15.8 | G70: 15.8 | H70: 15.3 | I70: 30277 | J70: 482460.35 | K70: 2019-08-13 | L70: 238 | M70: INE385I01010
A71: ALPHAGEO | B71: EQ | C71: 198.85 | D71: 198.85 | E71: 180.15 | F71: 184.1 | G71: 184.9 | H71: 198.85 | I71: 16240 | J71: 3076563.5 | K71: 2019-08-13 | L71: 583 | M71: INE137C01018
A72: ALPSINDUS | B72: BE | C72: 0.45 | D72: 0.55 | E72: 0.45 | F72: 0.55 | G72: 0.55 | H72: 0.5 | I72: 3100 | J72: 1500 | K72: 2019-08-13 | L72: 5 | M72: INE093B01015
A73: AMARAJABAT | B73: EQ | C73: 626 | D73: 646.3 | E73: 617.55 | F73: 627.1 | G73: 627.75 | H73: 627.5 | I73: 750881 | J73: 477230744.4 | K73: 2019-08-13 | L73: 17986 | M73: INE885A01032
A74: AMBER | B74: EQ | C74: 820 | D74: 845.95 | E74: 803.45 | F74: 820.6 | G74: 820 | H74: 799.25 | I74: 42371 | J74: 35019433.5 | K74: 2019-08-13 | L74: 2479 | M74: INE371P01015
A75: AMBIKCO | B75: EQ | C75: 892.05 | D75: 904.75 | E75: 885.6 | F75: 894.6 | G75: 894.9 | H75: 906.3 | I75: 4245 | J75: 3796279.25 | K75: 2019-08-13 | L75: 419 | M75: INE540G01014
A76: AMBUJACEM | B76: EQ | C76: 212.95 | D76: 213.75 | E76: 207.2 | F76: 208.4 | G76: 209.4 | H76: 212.95 | I76: 5125593 | J76: 1072980821 | K76: 2019-08-13 | L76: 40257 | M76: INE079A01024
A77: AMDIND | B77: EQ | C77: 13.5 | D77: 15.5 | E77: 13 | F77: 14.35 | G77: 14.4 | H77: 13.5 | I77: 6254 | J77: 88295.4 | K77: 2019-08-13 | L77: 81 | M77: INE005I01014
A78: AMJLAND | B78: EQ | C78: 17.5 | D78: 17.5 | E78: 16 | F78: 17 | G78: 17 | H78: 17.7 | I78: 1426 | J78: 24026.5 | K78: 2019-08-13 | L78: 50 | M78: INE606A01024
A79: AMRUTANJAN | B79: EQ | C79: 296.4 | D79: 299 | E79: 280.35 | F79: 284.8 | G79: 285.85 | H79: 293.65 | I79: 36250 | J79: 10465831 | K79: 2019-08-13 | L79: 1410 | M79: INE098F01031
A80: ANANTRAJ | B80: EQ | C80: 26.85 | D80: 27.15 | E80: 25.85 | F80: 26.1 | G80: 26.1 | H80: 27.3 | I80: 200894 | J80: 5302414.75 | K80: 2019-08-13 | L80: 727 | M80: INE242C01024
A81: ANDHRABANK | B81: EQ | C81: 19.8 | D81: 19.95 | E81: 18.9 | F81: 19 | G81: 18.95 | H81: 19.85 | I81: 466770 | J81: 9037220.3 | K81: 2019-08-13 | L81: 1863 | M81: INE434A01013
A82: ANDHRACEMT | B82: EQ | C82: 1.95 | D82: 1.95 | E82: 1.85 | F82: 1.85 | G82: 1.85 | H82: 1.9 | I82: 71497 | J82: 132443 | K82: 2019-08-13 | L82: 113 | M82: INE666E01012
A83: ANDHRSUGAR | B83: EQ | C83: 285.85 | D83: 294.3 | E83: 285.8 | F83: 287.35 | G83: 287 | H83: 282.65 | I83: 14240 | J83: 4130519.75 | K83: 2019-08-13 | L83: 747 | M83: INE715B01013
A84: ANIKINDS | B84: EQ | C84: 8.65 | D84: 8.85 | E84: 8.65 | F84: 8.8 | G84: 8.8 | H84: 8.65 | I84: 987 | J84: 8661.15 | K84: 2019-08-13 | L84: 12 | M84: INE087B01017
A85: ANKITMETAL | B85: BE | C85: 0.5 | D85: 0.6 | E85: 0.5 | F85: 0.6 | G85: 0.6 | H85: 0.55 | I85: 12152 | J85: 6523.8 | K85: 2019-08-13 | L85: 10 | M85: INE106I01010
A86: ANSALAPI | B86: EQ | C86: 3.85 | D86: 4.1 | E86: 3.8 | F86: 4.05 | G86: 4.1 | H86: 3.95 | I86: 80607 | J86: 327832 | K86: 2019-08-13 | L86: 114 | M86: INE436A01026
A87: ANSALHSG | B87: EQ | C87: 4.2 | D87: 4.45 | E87: 4.05 | F87: 4.15 | G87: 4.15 | H87: 4.35 | I87: 32326 | J87: 135095.8 | K87: 2019-08-13 | L87: 179 | M87: INE880B01015
A88: ANTGRAPHIC | B88: BE | C88: 0.85 | D88: 0.9 | E88: 0.85 | F88: 0.9 | G88: 0.9 | H88: 0.9 | I88: 67110 | J88: 58598.6 | K88: 2019-08-13 | L88: 31 | M88: INE414B01021
A89: ANUP | B89: EQ | C89: 445.05 | D89: 453.6 | E89: 435.7 | F89: 439.05 | G89: 439 | H89: 457.5 | I89: 8776 | J89: 3900452.1 | K89: 2019-08-13 | L89: 475 | M89: INE294Z01018
A90: APARINDS | B90: EQ | C90: 568.9 | D90: 568.9 | E90: 523.15 | F90: 537.8 | G90: 538 | H90: 553.2 | I90: 12960 | J90: 6924901.7 | K90: 2019-08-13 | L90: 1203 | M90: INE372A01015
A91: APCL | B91: EQ | C91: 163 | D91: 168.5 | E91: 158.1 | F91: 159.4 | G91: 159.5 | H91: 158.9 | I91: 15956 | J91: 2608321.1 | K91: 2019-08-13 | L91: 629 | M91: INE071F01012
A92: APCOTEXIND | B92: EQ | C92: 209.75 | D92: 214.75 | E92: 205.9 | F92: 211.4 | G92: 214 | H92: 209.3 | I92: 9784 | J92: 2063256.35 | K92: 2019-08-13 | L92: 327 | M92: INE116A01032
A93: APEX | B93: EQ | C93: 232.7 | D93: 232.7 | E93: 223 | F93: 229.65 | G93: 228.1 | H93: 230.15 | I93: 36523 | J93: 8314034.5 | K93: 2019-08-13 | L93: 2951 | M93: INE346W01013
A94: APLAPOLLO | B94: EQ | C94: 1354 | D94: 1354 | E94: 1265.3 | F94: 1292.75 | G94: 1285 | H94: 1325.2 | I94: 30448 | J94: 39515004.05 | K94: 2019-08-13 | L94: 2587 | M94: INE702C01019
A95: APLLTD | B95: EQ | C95: 545.65 | D95: 548 | E95: 525 | F95: 530.35 | G95: 529.55 | H95: 545.65 | I95: 18079 | J95: 9703457.55 | K95: 2019-08-13 | L95: 1201 | M95: INE901L01018
A96: APOLLO | B96: EQ | C96: 88.15 | D96: 88.45 | E96: 84 | F96: 85.7 | G96: 86.45 | H96: 89.15 | I96: 6473 | J96: 557378 | K96: 2019-08-13 | L96: 468 | M96: INE713T01010
A97: APOLLOHOSP | B97: EQ | C97: 1358.8 | D97: 1370.55 | E97: 1311.9 | F97: 1322.5 | G97: 1337.7 | H97: 1358.8 | I97: 610748 | J97: 813780098.6 | K97: 2019-08-13 | L97: 75059 | M97: INE437A01024
A98: APOLLOTYRE | B98: EQ | C98: 162.7 | D98: 165 | E98: 158 | F98: 158.7 | G98: 158.2 | H98: 162.65 | I98: 3038805 | J98: 491572691.7 | K98: 2019-08-13 | L98: 37979 | M98: INE438A01022
A99: APOLSINHOT | B99: EQ | C99: 900 | D99: 900.05 | E99: 862 | F99: 886.2 | G99: 885 | H99: 880.05 | I99: 2276 | J99: 2009606.3 | K99: 2019-08-13 | L99: 196 | M99: INE451F01024
A100: APTECHT | B100: EQ | C100: 134.95 | D100: 135 | E100: 125.25 | F100: 127.25 | G100: 126.15 | H100: 134.3 | I100: 127074 | J100: 16475969.95 | K100: 2019-08-13 | L100: 2008 | M100: INE266F01018
A101: ARCHIDPLY | B101: EQ | C101: 25.75 | D101: 26.25 | E101: 25.2 | F101: 25.75 | G101: 25.7 | H101: 25.75 | I101: 5253 | J101: 134610.2 | K101: 2019-08-13 | L101: 118 | M101: INE877I01016
A102: ARCHIES | B102: EQ | C102: 17.55 | D102: 17.6 | E102: 17.15 | F102: 17.45 | G102: 17.4 | H102: 17.45 | I102: 12622 | J102: 219354.4 | K102: 2019-08-13 | L102: 155 | M102: INE731A01020
A103: ARCOTECH | B103: EQ | C103: 2.45 | D103: 2.45 | E103: 2.3 | F103: 2.35 | G103: 2.4 | H103: 2.4 | I103: 57135 | J103: 135505.75 | K103: 2019-08-13 | L103: 95 | M103: INE574I01035
A104: ARIES | B104: EQ | C104: 62 | D104: 65.15 | E104: 58.6 | F104: 59.5 | G104: 59.5 | H104: 56.5 | I104: 241728 | J104: 15037690.45 | K104: 2019-08-13 | L104: 4467 | M104: INE298I01015
A105: ARIHANT | B105: EQ | C105: 19.65 | D105: 19.65 | E105: 16.3 | F105: 16.6 | G105: 16.3 | H105: 18.5 | I105: 3115 | J105: 54157.65 | K105: 2019-08-13 | L105: 46 | M105: INE413D01011
A106: ARIHANTSUP | B106: EQ | C106: 34 | D106: 34 | E106: 32.35 | F106: 33.4 | G106: 33 | H106: 34.05 | I106: 1494 | J106: 48843.75 | K106: 2019-08-13 | L106: 66 | M106: INE643K01018
A107: ARMANFIN | B107: EQ | C107: 373.95 | D107: 377 | E107: 361.6 | F107: 364.5 | G107: 361.6 | H107: 369.6 | I107: 239 | J107: 88290.05 | K107: 2019-08-13 | L107: 27 | M107: INE109C01017
A108: AROGRANITE | B108: EQ | C108: 35.6 | D108: 37.05 | E108: 34.6 | F108: 35.1 | G108: 34.95 | H108: 37.15 | I108: 9293 | J108: 328942.35 | K108: 2019-08-13 | L108: 155 | M108: INE210C01013
A109: ARROWGREEN | B109: BE | C109: 53.45 | D109: 53.45 | E109: 49 | F109: 50.5 | G109: 50.5 | H109: 51.35 | I109: 4723 | J109: 245506.9 | K109: 2019-08-13 | L109: 37 | M109: INE570D01018
A110: ARROWTEX | B110: EQ | C110: 12 | D110: 12 | E110: 10.5 | F110: 11 | G110: 10.9 | H110: 11.15 | I110: 4658 | J110: 51928 | K110: 2019-08-13 | L110: 67 | M110: INE933J01015
A111: ARSHIYA | B111: EQ | C111: 21.5 | D111: 22.1 | E111: 19.35 | F111: 20.5 | G111: 20.5 | H111: 21.15 | I111: 109495 | J111: 2210367.7 | K111: 2019-08-13 | L111: 365 | M111: INE968D01022
A112: ARSSINFRA | B112: EQ | C112: 28.35 | D112: 28.7 | E112: 26.55 | F112: 27.8 | G112: 28.7 | H112: 27.45 | I112: 4519 | J112: 125278.35 | K112: 2019-08-13 | L112: 65 | M112: INE267I01010
A113: ARVIND | B113: EQ | C113: 54.85 | D113: 55.4 | E113: 49.5 | F113: 50.55 | G113: 50.7 | H113: 54.15 | I113: 7318677 | J113: 381889794.1 | K113: 2019-08-13 | L113: 24303 | M113: INE034A01011
A114: ARVINDFASN | B114: EQ | C114: 501 | D114: 537.95 | E114: 465 | F114: 498.1 | G114: 500 | H114: 561.05 | I114: 758593 | J114: 387133029.4 | K114: 2019-08-13 | L114: 14932 | M114: INE955V01021
A115: ARVSMART | B115: EQ | C115: 91.3 | D115: 91.3 | E115: 88.5 | F115: 89.95 | G115: 90.8 | H115: 91.85 | I115: 10325 | J115: 924655 | K115: 2019-08-13 | L115: 697 | M115: INE034S01021
A116: ASAHIINDIA | B116: EQ | C116: 197 | D116: 198 | E116: 192 | F116: 192.9 | G116: 192 | H116: 195.6 | I116: 10542 | J116: 2052074.15 | K116: 2019-08-13 | L116: 202 | M116: INE439A01020
A117: ASAHISONG | B117: EQ | C117: 129 | D117: 135 | E117: 122 | F117: 122.75 | G117: 123.9 | H117: 116.55 | I117: 14797 | J117: 1849248.45 | K117: 2019-08-13 | L117: 173 | M117: INE228I01012
A118: ASAL | B118: EQ | C118: 33.15 | D118: 34 | E118: 31.1 | F118: 32.2 | G118: 32.2 | H118: 33.2 | I118: 2558 | J118: 83514.65 | K118: 2019-08-13 | L118: 51 | M118: INE900C01027
A119: ASHAPURMIN | B119: BE | C119: 26.15 | D119: 26.15 | E119: 26.15 | F119: 26.15 | G119: 26.15 | H119: 24.95 | I119: 71683 | J119: 1874510.45 | K119: 2019-08-13 | L119: 100 | M119: INE348A01023
A120: ASHIANA | B120: EQ | C120: 109 | D120: 111.9 | E120: 108.05 | F120: 108.8 | G120: 108.5 | H120: 110.75 | I120: 11592 | J120: 1263765.7 | K120: 2019-08-13 | L120: 224 | M120: INE365D01021
A121: ASHIMASYN | B121: EQ | C121: 7.45 | D121: 7.85 | E121: 7.2 | F121: 7.3 | G121: 7.4 | H121: 7.7 | I121: 10201 | J121: 75322.75 | K121: 2019-08-13 | L121: 66 | M121: INE440A01010
A122: ASHOKA | B122: EQ | C122: 120.05 | D122: 122 | E122: 116.35 | F122: 119.95 | G122: 121.8 | H122: 119.8 | I122: 127940 | J122: 15217421.05 | K122: 2019-08-13 | L122: 5330 | M122: INE442H01029
A123: ASHOKLEY | B123: EQ | C123: 64.5 | D123: 64.65 | E123: 61.3 | F123: 61.55 | G123: 61.8 | H123: 64.3 | I123: 22999939 | J123: 1443482510 | K123: 2019-08-13 | L123: 66780 | M123: INE208A01029
A124: ASIANHOTNR | B124: EQ | C124: 90.1 | D124: 92.55 | E124: 88.3 | F124: 90.35 | G124: 91 | H124: 90.15 | I124: 492 | J124: 44151.35 | K124: 2019-08-13 | L124: 83 | M124: INE363A01022
A125: ASIANPAINT | B125: EQ | C125: 1573.5 | D125: 1594 | E125: 1568 | F125: 1573.35 | G125: 1574.45 | H125: 1575.5 | I125: 1612748 | J125: 2551991362 | K125: 2019-08-13 | L125: 104013 | M125: INE021A01026
A126: ASIANTILES | B126: EQ | C126: 228 | D126: 237.4 | E126: 222 | F126: 227.6 | G126: 228 | H126: 229.2 | I126: 190341 | J126: 43791646.2 | K126: 2019-08-13 | L126: 1120 | M126: INE022I01019
A127: ASPINWALL | B127: EQ | C127: 137 | D127: 137 | E127: 136 | F127: 137 | G127: 137 | H127: 137.05 | I127: 50 | J127: 6825 | K127: 2019-08-13 | L127: 5 | M127: INE991I01015
A128: ASSAMCO | B128: BE | C128: 1.05 | D128: 1.05 | E128: 1 | F128: 1 | G128: 1 | H128: 1 | I128: 36265 | J128: 36732.75 | K128: 2019-08-13 | L128: 42 | M128: INE442A01024
A129: ASTEC | B129: EQ | C129: 364.75 | D129: 369 | E129: 359.95 | F129: 360.15 | G129: 361 | H129: 363.05 | I129: 14302 | J129: 5153227.65 | K129: 2019-08-13 | L129: 174 | M129: INE563J01010
A130: ASTERDM | B130: EQ | C130: 121.75 | D130: 123.35 | E130: 120 | F130: 122.1 | G130: 121.4 | H130: 121.75 | I130: 143464 | J130: 17536371.4 | K130: 2019-08-13 | L130: 3026 | M130: INE914M01019
A131: ASTRAL | B131: EQ | C131: 1223.55 | D131: 1223.55 | E131: 1202.2 | F131: 1205.5 | G131: 1208 | H131: 1223.55 | I131: 24817 | J131: 30077517.35 | K131: 2019-08-13 | L131: 7217 | M131: INE006I01046
A132: ASTRAMICRO | B132: EQ | C132: 78 | D132: 79.45 | E132: 76.05 | F132: 77.2 | G132: 76.75 | H132: 77.45 | I132: 52499 | J132: 4085172.85 | K132: 2019-08-13 | L132: 865 | M132: INE386C01029
A133: ASTRAZEN | B133: EQ | C133: 1870 | D133: 1885.7 | E133: 1748.05 | F133: 1759.65 | G133: 1759.9 | H133: 1873.4 | I133: 24387 | J133: 44230243.35 | K133: 2019-08-13 | L133: 3913 | M133: INE203A01020
A134: ASTRON | B134: EQ | C134: 86.3 | D134: 89.9 | E134: 84.5 | F134: 88.9 | G134: 89.1 | H134: 86.3 | I134: 480327 | J134: 41958513.3 | K134: 2019-08-13 | L134: 3629 | M134: INE646X01014
A135: ATFL | B135: EQ | C135: 495.05 | D135: 501.75 | E135: 480.5 | F135: 485.5 | G135: 482 | H135: 495 | I135: 24535 | J135: 12136106.55 | K135: 2019-08-13 | L135: 243 | M135: INE209A01019
A136: ATLANTA | B136: EQ | C136: 7.7 | D136: 7.85 | E136: 7.45 | F136: 7.55 | G136: 7.45 | H136: 7.8 | I136: 23343 | J136: 178067 | K136: 2019-08-13 | L136: 110 | M136: INE285H01022
A137: ATLASCYCLE | B137: BE | C137: 38.25 | D137: 41.9 | E137: 38.25 | F137: 39.5 | G137: 40.45 | H137: 40.25 | I137: 3997 | J137: 160286.45 | K137: 2019-08-13 | L137: 79 | M137: INE446A01025
A138: ATNINTER | B138: BE | C138: 0.15 | D138: 0.2 | E138: 0.15 | F138: 0.2 | G138: 0.2 | H138: 0.2 | I138: 26410 | J138: 4021.75 | K138: 2019-08-13 | L138: 10 | M138: INE803A01027
A139: ATUL | B139: EQ | C139: 3657.7 | D139: 3688.95 | E139: 3605 | F139: 3622.45 | G139: 3610 | H139: 3625.75 | I139: 15965 | J139: 58305165.4 | K139: 2019-08-13 | L139: 3783 | M139: INE100A01010
A140: ATULAUTO | B140: EQ | C140: 228 | D140: 230 | E140: 215 | F140: 215.8 | G140: 215.1 | H140: 223.15 | I140: 10868 | J140: 2405740.65 | K140: 2019-08-13 | L140: 684 | M140: INE951D01028
A141: AUBANK | B141: EQ | C141: 685 | D141: 698.95 | E141: 677.5 | F141: 685.2 | G141: 679.05 | H141: 689.75 | I141: 157600 | J141: 108686361.4 | K141: 2019-08-13 | L141: 17607 | M141: INE949L01017
A142: AURIONPRO | B142: EQ | C142: 98.05 | D142: 99 | E142: 96.4 | F142: 98.4 | G142: 98.9 | H142: 98.05 | I142: 8318 | J142: 815897.15 | K142: 2019-08-13 | L142: 195 | M142: INE132H01018
A143: AUROPHARMA | B143: EQ | C143: 599 | D143: 617.6 | E143: 591.3 | F143: 602.8 | G143: 602 | H143: 598.85 | I143: 4494786 | J143: 2732716580 | K143: 2019-08-13 | L143: 90093 | M143: INE406A01037
A144: AUSOMENT | B144: EQ | C144: 37.3 | D144: 37.3 | E144: 32 | F144: 33.25 | G144: 33.5 | H144: 34.05 | I144: 1320 | J144: 44427.95 | K144: 2019-08-13 | L144: 368 | M144: INE218C01016
A145: AUTOAXLES | B145: EQ | C145: 838 | D145: 838 | E145: 775.1 | F145: 778.35 | G145: 786.55 | H145: 822.95 | I145: 17835 | J145: 14271454.6 | K145: 2019-08-13 | L145: 2789 | M145: INE449A01011
A146: AUTOIND | B146: EQ | C146: 37 | D146: 37.8 | E146: 36.35 | F146: 37.1 | G146: 37.25 | H146: 37.9 | I146: 3278 | J146: 121039.25 | K146: 2019-08-13 | L146: 76 | M146: INE718H01014
A147: AUTOLITIND | B147: EQ | C147: 24.5 | D147: 24.5 | E147: 24 | F147: 24 | G147: 24 | H147: 22.9 | I147: 17 | J147: 412.25 | K147: 2019-08-13 | L147: 3 | M147: INE448A01013
A148: AVADHSUGAR | B148: EQ | C148: 215.1 | D148: 218.7 | E148: 204 | F148: 204.85 | G148: 204 | H148: 216.5 | I148: 49254 | J148: 10222175.25 | K148: 2019-08-13 | L148: 1145 | M148: INE349W01017
A149: AVANTIFEED | B149: EQ | C149: 308 | D149: 309 | E149: 300 | F149: 301.9 | G149: 302.25 | H149: 308.45 | I149: 152816 | J149: 46379403.25 | K149: 2019-08-13 | L149: 4743 | M149: INE871C01038
A150: AVTNPL | B150: EQ | C150: 21.7 | D150: 21.7 | E150: 18.85 | F150: 18.95 | G150: 19 | H150: 20.35 | I150: 40512 | J150: 789062.75 | K150: 2019-08-13 | L150: 263 | M150: INE488D01021
A151: AXISBANK | B151: EQ | C151: 662.2 | D151: 668.7 | E151: 645 | F151: 649.45 | G151: 646.7 | H151: 660.8 | I151: 7389394 | J151: 4868000257 | K151: 2019-08-13 | L151: 120937 | M151: INE238A01034
A152: AXISCADES | B152: EQ | C152: 60.05 | D152: 61.2 | E152: 55.1 | F152: 59.2 | G152: 60.35 | H152: 60.05 | I152: 364283 | J152: 21442893.05 | K152: 2019-08-13 | L152: 2168 | M152: INE555B01013
A153: AXISGOLD | B153: EQ | C153: 3400 | D153: 3400 | E153: 3249.55 | F153: 3346.35 | G153: 3360 | H153: 3249.55 | I153: 1522 | J153: 5058550.8 | K153: 2019-08-13 | L153: 172 | M153: INF846K01347
A154: AXISNIFTY | B154: EQ | C154: 1160 | D154: 1160 | E154: 1108.7 | F154: 1128.01 | G154: 1126.91 | H154: 1145.27 | I154: 141 | J154: 159659.21 | K154: 2019-08-13 | L154: 26 | M154: INF846K01ZL0
A155: AYMSYNTEX | B155: EQ | C155: 29 | D155: 31 | E155: 28.25 | F155: 30.2 | G155: 30.25 | H155: 29.6 | I155: 24731 | J155: 743977.2 | K155: 2019-08-13 | L155: 71 | M155: INE193B01039
A156: BAFNAPHARM | B156: BE | C156: 4.65 | D156: 4.65 | E156: 4.55 | F156: 4.65 | G156: 4.65 | H156: 4.55 | I156: 3306 | J156: 15262.8 | K156: 2019-08-13 | L156: 16 | M156: INE878I01014
A157: BAGFILMS | B157: EQ | C157: 3.25 | D157: 3.35 | E157: 3.05 | F157: 3.1 | G157: 3.1 | H157: 3.25 | I157: 100000 | J157: 317173.45 | K157: 2019-08-13 | L157: 113 | M157: INE116D01028
A158: BAJAJ-AUTO | B158: EQ | C158: 2699.95 | D158: 2742.85 | E158: 2642.6 | F158: 2670.55 | G158: 2664 | H158: 2707.6 | I158: 706218 | J158: 1911104788 | K158: 2019-08-13 | L158: 45188 | M158: INE917I01010
A159: BAJAJCON | B159: EQ | C159: 260.15 | D159: 263.95 | E159: 256.95 | F159: 259.8 | G159: 260 | H159: 263.5 | I159: 29682 | J159: 7716216.95 | K159: 2019-08-13 | L159: 1896 | M159: INE933K01021
A160: BAJAJELEC | B160: EQ | C160: 386.7 | D160: 389 | E160: 376 | F160: 380.2 | G160: 380.6 | H160: 380.35 | I160: 49139 | J160: 18695636.15 | K160: 2019-08-13 | L160: 2213 | M160: INE193E01025
A161: BAJAJFINSV | B161: EQ | C161: 7510 | D161: 7545 | E161: 7066.05 | F161: 7089.15 | G161: 7088 | H161: 7504 | I161: 406528 | J161: 2973740413 | K161: 2019-08-13 | L161: 45308 | M161: INE918I01018
A162: BAJAJHIND | B162: EQ | C162: 6 | D162: 6.1 | E162: 5.7 | F162: 5.7 | G162: 5.8 | H162: 6 | I162: 1677974 | J162: 9806601.8 | K162: 2019-08-13 | L162: 1934 | M162: INE306A01021
A163: BAJAJHLDNG | B163: EQ | C163: 3453.7 | D163: 3453.7 | E163: 3350 | F163: 3365.05 | G163: 3363.05 | H163: 3453.7 | I163: 15054 | J163: 51324772.15 | K163: 2019-08-13 | L163: 2383 | M163: INE118A01012
A164: BAJFINANCE | B164: EQ | C164: 3419.7 | D164: 3424 | E164: 3208.05 | F164: 3221.85 | G164: 3212 | H164: 3419.7 | I164: 1900694 | J164: 6304612451 | K164: 2019-08-13 | L164: 137328 | M164: INE296A01024
A165: BALAJITELE | B165: EQ | C165: 53.35 | D165: 57.2 | E165: 51.5 | F165: 52.25 | G165: 52.45 | H165: 53.3 | I165: 71269 | J165: 3855748.8 | K165: 2019-08-13 | L165: 1096 | M165: INE794B01026
A166: BALAMINES | B166: EQ | C166: 274.7 | D166: 274.7 | E166: 256 | F166: 257.5 | G166: 257.9 | H166: 266.75 | I166: 15057 | J166: 4022063.45 | K166: 2019-08-13 | L166: 608 | M166: INE050E01027
A167: BALAXI | B167: BE | C167: 71.9 | D167: 75.45 | E167: 71.9 | F167: 75.45 | G167: 75.45 | H167: 71.9 | I167: 1765 | J167: 132166.75 | K167: 2019-08-13 | L167: 21 | M167: INE618N01014
A168: BALKRISHNA | B168: EQ | C168: 21.9 | D168: 21.9 | E168: 18 | F168: 18.35 | G168: 18 | H168: 20.95 | I168: 10759 | J168: 208643 | K168: 2019-08-13 | L168: 243 | M168: INE875R01011
A169: BALKRISIND | B169: EQ | C169: 748 | D169: 761.9 | E169: 728.7 | F169: 749.35 | G169: 752 | H169: 772.2 | I169: 1084235 | J169: 812264329.4 | K169: 2019-08-13 | L169: 41152 | M169: INE787D01026
A170: BALLARPUR | B170: EQ | C170: 0.65 | D170: 0.65 | E170: 0.65 | F170: 0.65 | G170: 0.65 | H170: 0.6 | I170: 184379 | J170: 119846.35 | K170: 2019-08-13 | L170: 68 | M170: INE294A01037
A171: BALMLAWRIE | B171: EQ | C171: 172 | D171: 178 | E171: 172 | F171: 172.85 | G171: 173 | H171: 171.8 | I171: 65719 | J171: 11445610.45 | K171: 2019-08-13 | L171: 1345 | M171: INE164A01016
A172: BALPHARMA | B172: EQ | C172: 47.1 | D172: 50 | E172: 46.9 | F172: 47.1 | G172: 47 | H172: 48.05 | I172: 15854 | J172: 768991.8 | K172: 2019-08-13 | L172: 262 | M172: INE083D01012
A173: BALRAMCHIN | B173: EQ | C173: 116.4 | D173: 117.8 | E173: 109.55 | F173: 110.25 | G173: 110.5 | H173: 115.7 | I173: 2275502 | J173: 255671826.8 | K173: 2019-08-13 | L173: 36155 | M173: INE119A01028
A174: BANARBEADS | B174: EQ | C174: 42.65 | D174: 43 | E174: 41.1 | F174: 41.55 | G174: 41.9 | H174: 42.65 | I174: 174 | J174: 7217.35 | K174: 2019-08-13 | L174: 25 | M174: INE655B01011
A175: BANARISUG | B175: EQ | C175: 1282 | D175: 1294.05 | E175: 1250.15 | F175: 1263.25 | G175: 1250.15 | H175: 1309.7 | I175: 216 | J175: 277251.65 | K175: 2019-08-13 | L175: 183 | M175: INE459A01010
A176: BANCOINDIA | B176: EQ | C176: 99.25 | D176: 104.7 | E176: 97 | F176: 97.95 | G176: 98.45 | H176: 98 | I176: 46869 | J176: 4751859.35 | K176: 2019-08-13 | L176: 1056 | M176: INE213C01025
A177: BANDHANBNK | B177: EQ | C177: 499.8 | D177: 505.7 | E177: 489.15 | F177: 494 | G177: 491.2 | H177: 499.45 | I177: 315301 | J177: 156479328.8 | K177: 2019-08-13 | L177: 14991 | M177: INE545U01014
A178: BANG | B178: EQ | C178: 32.95 | D178: 32.95 | E178: 32 | F178: 32.4 | G178: 32.5 | H178: 32.25 | I178: 19670 | J178: 642755.1 | K178: 2019-08-13 | L178: 163 | M178: INE863I01016
A179: BANKBARODA | B179: EQ | C179: 100 | D179: 102.4 | E179: 97.1 | F179: 98.1 | G179: 97.6 | H179: 99.85 | I179: 22374374 | J179: 2218569347 | K179: 2019-08-13 | L179: 71884 | M179: INE028A01039
A180: BANKBEES | B180: EQ | C180: 2917 | D180: 2917 | E180: 2829.15 | F180: 2831.03 | G180: 2830 | H180: 2906.97 | I180: 7940 | J180: 22645168.55 | K180: 2019-08-13 | L180: 1054 | M180: INF732E01078
A181: BANKINDIA | B181: EQ | C181: 69.2 | D181: 69.45 | E181: 66.1 | F181: 66.7 | G181: 66.5 | H181: 68.05 | I181: 5875135 | J181: 397115913.4 | K181: 2019-08-13 | L181: 15417 | M181: INE084A01016
A182: BANSWRAS | B182: EQ | C182: 59 | D182: 63.95 | E182: 56.45 | F182: 62 | G182: 60.1 | H182: 60.9 | I182: 372 | J182: 22011.35 | K182: 2019-08-13 | L182: 33 | M182: INE629D01012
A183: BARTRONICS | B183: EQ | C183: 2.7 | D183: 3.05 | E183: 2.55 | F183: 2.6 | G183: 2.7 | H183: 2.8 | I183: 61379 | J183: 162172.25 | K183: 2019-08-13 | L183: 134 | M183: INE855F01034
A184: BASF | B184: EQ | C184: 1050.15 | D184: 1056.45 | E184: 996.2 | F184: 1004.95 | G184: 1013.95 | H184: 1045.5 | I184: 13703 | J184: 13934738.1 | K184: 2019-08-13 | L184: 1464 | M184: INE373A01013
A185: BASML | B185: EQ | C185: 125 | D185: 136 | E185: 120.05 | F185: 123.8 | G185: 120.05 | H185: 130.55 | I185: 1835 | J185: 233667.75 | K185: 2019-08-13 | L185: 39 | M185: INE186H01014
A186: BATAINDIA | B186: EQ | C186: 1430 | D186: 1458 | E186: 1420.15 | F186: 1432.8 | G186: 1431.15 | H186: 1426.35 | I186: 958382 | J186: 1383839567 | K186: 2019-08-13 | L186: 36847 | M186: INE176A01028
A187: BAYERCROP | B187: EQ | C187: 3249.7 | D187: 3253.15 | E187: 3061.1 | F187: 3112.25 | G187: 3070.1 | H187: 3238.5 | I187: 2688 | J187: 8481089.05 | K187: 2019-08-13 | L187: 1197 | M187: INE462A01022
A188: BBL | B188: EQ | C188: 907.05 | D188: 910 | E188: 890 | F188: 897.25 | G188: 890 | H188: 907.05 | I188: 2703 | J188: 2429020.1 | K188: 2019-08-13 | L188: 290 | M188: INE464A01028
A189: BBTC | B189: EQ | C189: 820 | D189: 824.1 | E189: 774 | F189: 783.2 | G189: 775.5 | H189: 808.2 | I189: 59898 | J189: 48405213.5 | K189: 2019-08-13 | L189: 3111 | M189: INE050A01025
A190: BCG | B190: EQ | C190: 3.35 | D190: 3.35 | E190: 3.1 | F190: 3.15 | G190: 3.2 | H190: 3.2 | I190: 252621 | J190: 824588.75 | K190: 2019-08-13 | L190: 149 | M190: INE425B01027
A191: BDL | B191: EQ | C191: 288.3 | D191: 300.95 | E191: 285.85 | F191: 291.85 | G191: 290.3 | H191: 295.25 | I191: 41398 | J191: 12126998.2 | K191: 2019-08-13 | L191: 2389 | M191: INE171Z01018
A192: BEARDSELL | B192: EQ | C192: 13.5 | D192: 13.9 | E192: 12.6 | F192: 12.95 | G192: 13 | H192: 13.85 | I192: 5238 | J192: 67705.95 | K192: 2019-08-13 | L192: 90 | M192: INE520H01022
A193: BEDMUTHA | B193: EQ | C193: 14.3 | D193: 14.5 | E193: 12.55 | F193: 13.8 | G193: 13.55 | H193: 13.05 | I193: 30880 | J193: 435008.95 | K193: 2019-08-13 | L193: 68 | M193: INE844K01012
A194: BEL | B194: EQ | C194: 97.65 | D194: 98.45 | E194: 93.4 | F194: 94.25 | G194: 94.3 | H194: 97.65 | I194: 7439250 | J194: 709846285 | K194: 2019-08-13 | L194: 32892 | M194: INE263A01024
A195: BEML | B195: EQ | C195: 816 | D195: 821.95 | E195: 698.25 | F195: 711.35 | G195: 700 | H195: 816.1 | I195: 1505702 | J195: 1109584029 | K195: 2019-08-13 | L195: 45223 | M195: INE258A01016
A196: BEPL | B196: EQ | C196: 60.9 | D196: 60.95 | E196: 56.7 | F196: 57.05 | G196: 56.95 | H196: 60.4 | I196: 196602 | J196: 11593766.6 | K196: 2019-08-13 | L196: 2246 | M196: INE922A01025
A197: BERGEPAINT | B197: EQ | C197: 359 | D197: 365 | E197: 355.85 | F197: 363.55 | G197: 363.2 | H197: 359.35 | I197: 1541929 | J197: 558911411.9 | K197: 2019-08-13 | L197: 31217 | M197: INE463A01038
A198: BFINVEST | B198: EQ | C198: 243 | D198: 247.75 | E198: 235.55 | F198: 241.95 | G198: 242 | H198: 242.25 | I198: 24042 | J198: 5828942.1 | K198: 2019-08-13 | L198: 1153 | M198: INE878K01010
A199: BFUTILITIE | B199: EQ | C199: 164.6 | D199: 166.65 | E199: 160 | F199: 161.1 | G199: 160.35 | H199: 164.65 | I199: 242951 | J199: 39744812.35 | K199: 2019-08-13 | L199: 5621 | M199: INE243D01012
A200: BGLOBAL | B200: BE | C200: 1 | D200: 1 | E200: 0.95 | F200: 1 | G200: 0.95 | H200: 0.95 | I200: 6249 | J200: 6236.5 | K200: 2019-08-13 | L200: 8 | M200: INE224M01013
... 1470 more rows

Sheet Sheet1 (hidden)

Sheet Sheet3 (hidden)

Sheet Sheet4 (hidden)
